Departmental Family,Entity,Date,Expense Type,Expense Area,Supplier,Transaction Number,Amount
Department for Work and Pensions,Jobcentre Plus,31/03/2011,ACCOMMODATION,Jobcentre Plus,TELEREAL TRILLIUM,2020240267,"30,441,483.99"
Department for Work and Pensions,Employment Programmes,17/03/2011,Grant in Aid,WWEG EMPLOYMENT PROGRAMMES,REMPLOY,1004705,"30,000,000.00"
Department for Work and Pensions,Employment Programmes,31/03/2011,Grant in Aid,WWEG EMPLOYMENT PROGRAMMES,REMPLOY LTD,1004733,"25,800,000.00"
Department for Work and Pensions,Corporate,23/03/2011,Grant in Aid,Balance Sheet Payments,NEST CORPORTATION,2002516,"23,898,249.00"
Department for Work and Pensions,Jobcentre Plus,31/03/2011,OTHER GOODS AND SERVICES,Jobcentre Plus,TRIBUNALS SERVICE,2002544,"16,911,673.00"
Department for Work and Pensions,European Social Fund,28/03/2011,ESF NON-PREFUNDED EXPENDITURE,WWEG EUROPEAN SOCIAL FUND,EAST OF ENGLAND LEARNING & SKILLS COUNCIL,5000000513,"10,784,841.00"
Department for Work and Pensions,Employment Programmes,30/03/2011,Grant in Aid,WWEG EMPLOYMENT PROGRAMMES,REMPLOY LTD,1004731,"9,680,000.00"
Department for Work and Pensions,Corporate,11/03/2011,HOSTING,Corporate IT ,HP ENTERPRISE SERVICES UK LTD,2019917581,"7,888,542.96"
Department for Work and Pensions,Corporate,15/03/2011,COMPUTER SERVICES,Corporate IT ,HP ENTERPRISE SERVICES UK LTD,2019932575,"7,102,385.30"
Department for Work and Pensions,Corporate,25/03/2011,BANKING AND ENCASHMENT COSTS,Group Finance,POST OFFICE LTD,1004720,"5,629,855.45"
Department for Work and Pensions,Corporate,15/03/2011,HOSTING,Corporate IT ,HP ENTERPRISE SERVICES UK LTD,2019932574,"5,272,750.54"
Department for Work and Pensions,Jobcentre Plus,31/03/2011,ACCOMMODATION,Jobcentre Plus,TELEREAL TRILLIUM,2020240268,"4,852,031.06"
Department for Work and Pensions,European Social Fund,04/03/2011,ESF NON-PREFUNDED EXPENDITURE,WWEG EUROPEAN SOCIAL FUND,SOUTH WEST LEARNING & SKILLS COUNCIL,5000000497,"4,769,114.00"
Department for Work and Pensions,Employment Programmes,31/03/2011,PRINCES YOUTH TRUST,WWEG EMPLOYMENT PROGRAMMES,LEGAL SERVICES COMMISSION,2002546,"4,500,000.00"
Department for Work and Pensions,European Social Fund,28/03/2011,ESF NON-PREFUNDED EXPENDITURE,WWEG EUROPEAN SOCIAL FUND,SOUTH WEST LEARNING & SKILLS COUNCIL,5000000519,"4,238,352.00"
Department for Work and Pensions,Jobcentre Plus,15/03/2011,MEDICAL SERVICES,Jobcentre Plus,ATOS ORIGIN MEDICAL SERVICES,2019928972,"4,134,181.20"
Department for Work and Pensions,Employment Programmes,11/03/2011,WORKING NEIGHBOURHOOD PILOTS,WWEG EMPLOYMENT PROGRAMMES,DCLG,2002482,"3,697,500.00"
Department for Work and Pensions,Corporate,15/03/2011,COMPUTER SERVICES,Corporate IT ,HP ENTERPRISE SERVICES UK LTD,2019932574,"3,630,838.09"
Department for Work and Pensions,Jobcentre Plus,18/03/2011,MEDICAL SERVICES,Jobcentre Plus,ATOS ORIGIN MEDICAL SERVICES,2020025415,"3,344,977.43"
Department for Work and Pensions,Corporate,17/03/2011,Pensions Programme Costs,Corporate and Support Services,PENSION PROTECTION FUND,1004704,"3,238,000.00"
Department for Work and Pensions,Corporate,29/03/2011,HELP FOR UNEMPLOYED PEOPLE OTHER,WWG SUMMARY,INTERNATIONAL LABOUR ORGANISATION,3004296,"3,200,035.00"
Department for Work and Pensions,Corporate,15/03/2011,NETWORK,Corporate IT ,BT GLOBAL SERVICES,2019929198,"3,112,760.32"
Department for Work and Pensions,Jobcentre Plus,25/03/2011,MEDICAL SERVICES,Jobcentre Plus,ATOS ORIGIN MEDICAL SERVICES,2020134352,"2,998,992.41"
Department for Work and Pensions,Jobcentre Plus,10/03/2011,AOS CONTRACTED OUT SERVICES,Jobcentre Plus,BALFOUR BEATTY WORKPLACE LTD,2019908190,"2,668,135.71"
Department for Work and Pensions,Corporate,30/03/2011,OTHER PROJECTS,WWG SUMMARY,BRITISH COUNCIL,2020165638,"2,613,820.39"
Department for Work and Pensions,"Pension, Disability Carers Services",31/03/2011,ACCOMMODATION,Pensions & Disability Carers Service ,TELEREAL TRILLIUM,2020240267,"2,427,726.56"
Department for Work and Pensions,Jobcentre Plus,03/03/2011,EMPLOYMENT PROGRAMMES,Balance Sheet Payments,A4E LTD,2019800868,"2,366,647.82"
Department for Work and Pensions,Employment Programmes,21/03/2011,YOUNG PERSON'S GUARANTEE,WWEG EMPLOYMENT PROGRAMMES,NORTH TYNESIDE COUNCIL,2020035784,"2,241,200.00"
Department for Work and Pensions,Corporate,15/03/2011,COMPUTER SERVICES,Corporate IT ,HP ENTERPRISE SERVICES UK LTD,2019932575,"2,104,294.54"
Department for Work and Pensions,Jobcentre Plus,31/03/2011,EMPLOYMENT PROGRAMMES,Balance Sheet Payments,A4E LTD,2020235454,"2,098,249.01"
Department for Work and Pensions,Corporate,15/03/2011,IS/IT,Corporate IT ,HP ENTERPRISE SERVICES UK LTD,2019932575,"2,032,304.38"
Department for Work and Pensions,Employment Programmes,02/03/2011,REMPLOY,WWEG EMPLOYMENT PROGRAMMES,REMPLOY LTD,2019783915,"1,967,009.00"
Department for Work and Pensions,Jobcentre Plus,31/03/2011,ACCOMMODATION,Jobcentre Plus,TELEREAL TRILLIUM,2020240270,"1,951,168.29"
Department for Work and Pensions,Corporate,15/03/2011,COMPUTER SERVICES,Corporate IT ,BT GLOBAL SERVICES,2019929198,"1,937,179.79"
Department for Work and Pensions,"Pension, Disability Carers Services",21/03/2011,COMPUTER SERVICES,Pensions & Disability Carers Service ,ATOS ORIGIN IT SERVICES UK,2020032279,"1,909,185.77"
Department for Work and Pensions,Corporate,24/03/2011,TELEPHONE AND POSTAGE,Group Finance,UK MAIL,2020131731,"1,826,730.25"
Department for Work and Pensions,Corporate,15/03/2011,SIAM,Corporate IT ,HP ENTERPRISE SERVICES UK LTD,2019932574,"1,813,926.70"
Department for Work and Pensions,Corporate,15/03/2011,COMPUTER SERVICES,Corporate IT ,HP ENTERPRISE SERVICES UK LTD,2019932574,"1,618,234.26"
Department for Work and Pensions,Employment Programmes,23/03/2011,YOUNG PERSON'S GUARANTEE,WWEG EMPLOYMENT PROGRAMMES,NATIONAL SKILLS ACADEMY FOR SPORT & ACTIVE LEISURE,2020104173,"1,571,400.00"
Department for Work and Pensions,Jobcentre Plus,15/03/2011,CONTRACTED OUT SERVICES,Jobcentre Plus,DEPARTMENT OF SOCIAL DEVELOPMENT,1004693,"1,552,041.00"
Department for Work and Pensions,Jobcentre Plus,25/03/2011,CONTRACTED OUT SERVICES,Jobcentre Plus,DEPARTMENT OF SOCIAL DEVELOPMENT,1004722,"1,502,933.00"
Department for Work and Pensions,Jobcentre Plus,31/03/2011,EMPLOYMENT PROGRAMMES,Balance Sheet Payments,WORKING LINKS,2020240452,"1,464,080.42"
Department for Work and Pensions,Jobcentre Plus,03/03/2011,EMPLOYMENT PROGRAMMES,Balance Sheet Payments,BUSINESS EMPLOYMENT SERVICES TRAINING LTD,2019801043,"1,459,061.90"
Department for Work and Pensions,Jobcentre Plus,23/03/2011,IS/IT,Jobcentre Plus,SPECIALIST COMPUTER CENTRES PLC,2020119029,"1,436,975.90"
Department for Work and Pensions,Corporate,15/03/2011,TELEPHONE AND POSTAGE,Group Finance,ROYAL MAIL GROUP PLC,2019936681,"1,433,400.57"
Department for Work and Pensions,Corporate,03/03/2011,OTHER GOODS AND SERVICES,WWG SUMMARY,VALUATION OFFICE AGENCY,2002472,"1,420,000.00"
Department for Work and Pensions,Jobcentre Plus,31/03/2011,EMPLOYMENT PROGRAMMES,Balance Sheet Payments,BUSINESS EMPLOYMENT SERVICES TRAINING LTD,2020235616,"1,416,051.49"
Department for Work and Pensions,Corporate,16/03/2011,CONTRACTED OUT SERVICES,Group Finance,XEROX UK LTD 3W,2020013985,"1,388,392.00"
Department for Work and Pensions,Corporate,18/03/2011,POSTAGE,WWG SUMMARY,TNT UK LTD,2020030049,"1,334,456.00"
Department for Work and Pensions,Corporate,11/03/2011,APPS DEV,CHANGE MANAGEMENT DIRECTORATE,HP ENTERPRISE SERVICES UK LTD,2019917581,"1,310,710.82"
Department for Work and Pensions,Jobcentre Plus,31/03/2011,EMPLOYMENT PROGRAMMES,Balance Sheet Payments,CAREERS DEVELOPMENT GROUP LTD,2020235884,"1,277,344.91"
Department for Work and Pensions,Jobcentre Plus,15/03/2011,APPS DEV,Jobcentre Plus,ACCENTURE,2019928945,"1,252,214.60"
Department for Work and Pensions,Employment Programmes,17/03/2011,YOUNG PERSON'S GUARANTEE,WWEG EMPLOYMENT PROGRAMMES,GROUNDWORK UK,2020019732,"1,238,400.00"
Department for Work and Pensions,Corporate,24/03/2011,Grant in Aid,Corporate and Support Services,IMPROVEMENT & DEVELOPMENT AGENCY,1004715,"1,234,061.00"
Department for Work and Pensions,Jobcentre Plus,31/03/2011,EMPLOYMENT PROGRAMMES,Balance Sheet Payments,INGEUS UK LTD,2020237761,"1,222,512.43"
Department for Work and Pensions,Corporate,31/03/2011,ACCOMMODATION,Group Finance,TELEREAL TRILLIUM,2020240267,"1,172,032.05"
Department for Work and Pensions,Jobcentre Plus,03/03/2011,EMPLOYMENT PROGRAMMES,Balance Sheet Payments,CAREERS DEVELOPMENT GROUP LTD,2019801276,"1,126,288.08"
Department for Work and Pensions,European Social Fund,03/03/2011,ESF NON-PREFUNDED EXPENDITURE,WWEG EUROPEAN SOCIAL FUND,WEST MIDLANDS LEARNING & SKILLS COUNCIL,5000000493,"1,092,857.00"
Department for Work and Pensions,Employment Programmes,18/03/2011,EP GENERIC PROVIDER PAYMENTS,WWEG EMPLOYMENT PROGRAMMES,A4E LTD,2020025368,"1,077,915.67"
Department for Work and Pensions,Corporate,17/03/2011,Grant in Aid,Corporate and Support Services,THE BOARD OF THE PENSION PROTECTION FUND AS FAS SCHEME MANAGER,1004706,"1,068,000.00"
Department for Work and Pensions,Housing Benefits,14/03/2011,Housing Benefit Admin,WWG Housing Benefit,BIRMINGHAM CITY COUNCIL,2019927848,"1,067,804.00"
Department for Work and Pensions,Jobcentre Plus,31/03/2011,ACCOMMODATION,Jobcentre Plus,TELEREAL TRILLIUM,2020240267,"1,055,312.68"
Department for Work and Pensions,Corporate,15/03/2011,COMPUTER SERVICES,Corporate IT ,BT GLOBAL SERVICES,2019929198,"1,033,881.98"
Department for Work and Pensions,Corporate,16/03/2011,OTHER MAJOR CONTRACTS,Group Finance,SANTANDER,1004698,"1,013,694.00"
Department for Work and Pensions,Employment Programmes,18/03/2011,EP GENERIC PROVIDER PAYMENTS,WWEG EMPLOYMENT PROGRAMMES,SERCO LTD,2020029850,"1,013,347.50"
Department for Work and Pensions,Corporate,08/03/2011,COMPUTER SERVICES,Corporate IT ,XEROX UK LTD 3W,2019830046,"1,008,096.98"
Department for Work and Pensions,Employment Programmes,03/03/2011,Grant in Aid,WWEG EMPLOYMENT PROGRAMMES,REMPLOY LIMITED,1004668,"1,000,000.00"
Department for Work and Pensions,Corporate,30/03/2011,Pensions Programme Costs,Corporate and Support Services,PENSION PROTECTION FUND,1004730,"975,000.00"
Department for Work and Pensions,Employment Programmes,18/03/2011,EP GENERIC PROVIDER PAYMENTS,WWEG EMPLOYMENT PROGRAMMES,CALDER UK LTD,2020025775,"969,432.10"
Department for Work and Pensions,Employment Programmes,11/03/2011,EP GENERIC PROVIDER PAYMENTS,WWEG EMPLOYMENT PROGRAMMES,A4E LTD,2019915372,"962,271.85"
Department for Work and Pensions,Corporate,16/03/2011,HOSTING,Corporate IT ,HP ENTERPRISE SERVICES UK LTD,2019966328,"933,026.73"
Department for Work and Pensions,Corporate,17/03/2011,IS/IT,CHANGE MANAGEMENT DIRECTORATE,SPECIALIST COMPUTER CENTRES PLC,2020022198,"931,450.80"
Department for Work and Pensions,Corporate,21/03/2011,COMPUTER SERVICES,Corporate IT ,ACCENTURE UK LTD,2020032245,"924,868.86"
Department for Work and Pensions,Jobcentre Plus,01/03/2011,MEDICAL SERVICES,Jobcentre Plus,ATOS ORIGIN MEDICAL SERVICES,2019713697,"901,906.00"
Department for Work and Pensions,Jobcentre Plus,15/03/2011,ACCOMMODATION,Jobcentre Plus,TELEREAL TRILLIUM,2019937941,"887,083.55"
Department for Work and Pensions,Corporate,24/03/2011,PROFESSIONAL FEES,Corporate and Support Services,OFFICE FOR NATIONAL STATISTICS,2020130580,"870,000.00"
Department for Work and Pensions,Housing Benefits,14/03/2011,Housing Benefit Admin,WWG Housing Benefit,CITY OF GLASGOW,2019927896,"867,342.00"
Department for Work and Pensions,Corporate,11/03/2011,Pensions Programme Costs,Corporate and Support Services,THE PENSIONS REGULATOR,1004690,"851,000.00"
Department for Work and Pensions,Corporate,15/03/2011,EU PROGRAMMES,WWG SUMMARY,DFE RM SHARED SERVICES,2002490,"825,868.08"
Department for Work and Pensions,Corporate,17/03/2011,COMPUTER SERVICES,Corporate IT ,ATOS ORIGIN IT SERVICES UK LTD,2020017532,"822,169.01"
Department for Work and Pensions,Corporate,11/03/2011,EU PROGRAMMES,WWG SUMMARY,DFE RM SHARED SERVICES,2002483,"819,041.71"
Department for Work and Pensions,Corporate,08/03/2011,EU PROGRAMMES,WWG SUMMARY,DFE RM SHARED SERVICES,2002474,"818,003.20"
Department for Work and Pensions,Jobcentre Plus,03/03/2011,EMPLOYMENT PROGRAMMES,Balance Sheet Payments,SHAW TRUST LTD,2019805520,"814,196.43"
Department for Work and Pensions,Jobcentre Plus,03/03/2011,EMPLOYMENT PROGRAMMES,Balance Sheet Payments,INGEUS UK LTD,2019803465,"813,844.74"
Department for Work and Pensions,Jobcentre Plus,03/03/2011,EMPLOYMENT PROGRAMMES,Balance Sheet Payments,SKILLS TRAINING UK LTD,2019805542,"807,356.66"
Department for Work and Pensions,Jobcentre Plus,03/03/2011,EMPLOYMENT PROGRAMMES,Balance Sheet Payments,SEETEC BUSINESS TECHNOLOGY CENTRE LTD,2019805511,"805,107.21"
Department for Work and Pensions,"Pension, Disability Carers Services",31/03/2011,TEMPORARY (TEMP) STAFF COSTS,Pensions & Disability Carers Service ,CLUB 24 LTD T/A VENTURA,2020235916,"800,397.32"
Department for Work and Pensions,Employment Programmes,18/03/2011,EP GENERIC PROVIDER PAYMENTS,WWEG EMPLOYMENT PROGRAMMES,WORKING LINKS,2020030181,"781,586.95"
Department for Work and Pensions,Jobcentre Plus,03/03/2011,EMPLOYMENT PROGRAMMES,Balance Sheet Payments,WORKING LINKS,2019805851,"777,017.41"
Department for Work and Pensions,Jobcentre Plus,03/03/2011,EMPLOYMENT PROGRAMMES,Balance Sheet Payments,CAREERS DEVELOPMENT GROUP,2019801275,"768,494.30"
Department for Work and Pensions,Jobcentre Plus,03/03/2011,EMPLOYMENT PROGRAMMES,Balance Sheet Payments,SENCIA LTD,2019805514,"767,561.09"
Department for Work and Pensions,Corporate,15/03/2011,COMPUTER SERVICES,Corporate IT ,HP ENTERPRISE SERVICES UK LTD,2019932574,"758,006.12"
Department for Work and Pensions,Employment Programmes,18/03/2011,EP GENERIC PROVIDER PAYMENTS,WWEG EMPLOYMENT PROGRAMMES,A4E LTD,2020025368,"748,004.66"
Department for Work and Pensions,Employment Programmes,18/03/2011,EP GENERIC PROVIDER PAYMENTS,WWEG EMPLOYMENT PROGRAMMES,DUDLEY MBC FUTURE SKILLS,2020027282,"746,609.67"
Department for Work and Pensions,Employment Programmes,07/03/2011,YOUNG PERSON'S GUARANTEE,WWEG EMPLOYMENT PROGRAMMES,IXION HOLDINGS LTD,2019815759,"743,600.00"
Department for Work and Pensions,Jobcentre Plus,31/03/2011,EMPLOYMENT PROGRAMMES,Balance Sheet Payments,SEETEC BUSINESS TECHNOLOGY CENTRE LTD,2020240064,"742,191.57"
Department for Work and Pensions,Employment Programmes,28/03/2011,YOUNG PERSON'S GUARANTEE,WWEG EMPLOYMENT PROGRAMMES,KENT COUNTY COUNCIL,2020143021,"738,400.00"
Department for Work and Pensions,Jobcentre Plus,28/03/2011,OTHER EXPENDITURE,Jobcentre Plus,CAPITA BUSINESS SERVICES LTD,2020140427,"735,307.44"
Department for Work and Pensions,Employment Programmes,18/03/2011,EP GENERIC PROVIDER PAYMENTS,WWEG EMPLOYMENT PROGRAMMES,A4E LTD,2020025368,"717,767.34"
Department for Work and Pensions,Corporate,28/03/2011,PROFESSIONAL FEES,WWG SUMMARY,OFFICE FOR NATIONAL STATISTIC,2020143748,"708,969.00"
Department for Work and Pensions,Employment Programmes,18/03/2011,EP GENERIC PROVIDER PAYMENTS,WWEG EMPLOYMENT PROGRAMMES,WORKING LINKS,2020030181,"697,742.26"
Department for Work and Pensions,Jobcentre Plus,24/03/2011,IS/IT,Jobcentre Plus,SPECIALIST COMPUTER CENTRES PLC,2020131505,"697,233.79"
Department for Work and Pensions,Corporate,31/03/2011,ACCOMMODATION,Group Finance,TELEREAL TRILLIUM,2020240267,"680,201.46"
Department for Work and Pensions,Employment Programmes,18/03/2011,EP GENERIC PROVIDER PAYMENTS,WWEG EMPLOYMENT PROGRAMMES,WORKING LINKS,2020030181,"679,445.53"
Department for Work and Pensions,Jobcentre Plus,31/03/2011,EMPLOYMENT PROGRAMMES,Balance Sheet Payments,CAREERS DEVELOPMENT GROUP,2020235883,"678,218.36"
Department for Work and Pensions,Jobcentre Plus,30/03/2011,STATIONERY/ PUBLICATIONS/IT CONSUMABLES,Jobcentre Plus,RICOH UK LTD,2020217698,"675,500.09"
Department for Work and Pensions,"Pension, Disability Carers Services",10/03/2011,AOS CONTRACTED OUT SERVICES,Pensions & Disability Carers Service ,BALFOUR BEATTY WORKPLACE LTD,2019908190,"671,076.38"
Department for Work and Pensions,Jobcentre Plus,31/03/2011,EMPLOYMENT PROGRAMMES,Balance Sheet Payments,SENCIA LTD,2020240065,"660,524.50"
Department for Work and Pensions,Employment Programmes,22/03/2011,YOUNG PERSON'S GUARANTEE,WWEG EMPLOYMENT PROGRAMMES,WALES COUNCIL FOR VOLUNTARY ACTION,2020048796,"652,200.00"
Department for Work and Pensions,Jobcentre Plus,31/03/2011,EMPLOYMENT PROGRAMMES,Balance Sheet Payments,SKILLS TRAINING UK LTD,2020240083,"646,721.54"
Department for Work and Pensions,Jobcentre Plus,22/03/2011,OTHER EXPENDITURE,Jobcentre Plus,CAPITA BUSINESS SERVICES LTD,1004711,"642,473.95"
Department for Work and Pensions,Corporate,16/03/2011,EU PROGRAMMES,WWG SUMMARY,BRITISH COUNCIL INDIA,2019947350,"639,000.00"
Department for Work and Pensions,Employment Programmes,18/03/2011,EP GENERIC PROVIDER PAYMENTS,WWEG EMPLOYMENT PROGRAMMES,A4E LTD,2020025368,"624,671.67"
Department for Work and Pensions,Employment Programmes,18/03/2011,EP GENERIC PROVIDER PAYMENTS,WWEG EMPLOYMENT PROGRAMMES,A4E LTD,2020025368,"614,416.17"
Department for Work and Pensions,Housing Benefits,14/03/2011,Housing Benefit Admin,WWG Housing Benefit,LIVERPOOL CITY COUNCIL,2019927997,"608,982.00"
Department for Work and Pensions,Jobcentre Plus,31/03/2011,EMPLOYMENT PROGRAMMES,Balance Sheet Payments,SHAW TRUST LTD,2020240072,"603,611.49"
Department for Work and Pensions,Jobcentre Plus,22/03/2011,OTHER EXPENDITURE,Jobcentre Plus,CAPITA BUSINESS SERVICES LTD,1004709,"603,561.84"
Department for Work and Pensions,Employment Programmes,18/03/2011,EP GENERIC PROVIDER PAYMENTS,WWEG EMPLOYMENT PROGRAMMES,SEETEC BUSINESS TECHNOLOGY CENTRE LTD,2020029848,"598,372.85"
Department for Work and Pensions,Corporate,31/03/2011,BANKING AND ENCASHMENT COSTS,Group Finance,HSBC BANK,2020237700,"598,260.35"
Department for Work and Pensions,Employment Programmes,14/03/2011,YOUNG PERSON'S GUARANTEE,WWEG EMPLOYMENT PROGRAMMES,3SC,2019921895,"591,450.00"
Department for Work and Pensions,Corporate,18/03/2011,COMPUTER SERVICES,SHARED SERVICES,FUJITSU SERVICES,2020027467,"585,914.00"
Department for Work and Pensions,Employment Programmes,18/03/2011,EP GENERIC PROVIDER PAYMENTS,WWEG EMPLOYMENT PROGRAMMES,SKILLS TRAINING UK LIMITED,2020029869,"579,110.75"
Department for Work and Pensions,Employment Programmes,18/03/2011,EP GENERIC PROVIDER PAYMENTS,WWEG EMPLOYMENT PROGRAMMES,INGEUS UK LTD,2020027746,"572,880.89"
Department for Work and Pensions,Employment Programmes,18/03/2011,PRINCES YOUTH TRUST,WWEG EMPLOYMENT PROGRAMMES,DCLG,2002499,"561,675.86"
Department for Work and Pensions,Housing Benefits,14/03/2011,Housing Benefit Admin,WWG Housing Benefit,LEEDS CITY COUNCIL,2019927992,"547,800.00"
Department for Work and Pensions,Corporate,18/03/2011,COMPUTER SERVICES,Corporate IT ,ATOS ORIGIN IT SERVICES UK LTD,2020025412,"547,699.80"
Department for Work and Pensions,Corporate,14/03/2011,COMPUTER SERVICES,Corporate IT ,HP ENTERPRISE SERVICES UK LTD,2019924414,"542,601.06"
Department for Work and Pensions,Housing Benefits,14/03/2011,Housing Benefit Admin,WWG Housing Benefit,MANCHESTER CITY COUNCIL,2019928030,"540,491.00"
Department for Work and Pensions,Corporate,04/03/2011,COMPUTER SERVICES,SHARED SERVICES,FUJITSU SERVICES LTD,2019809318,"540,159.00"
Department for Work and Pensions,Employment Programmes,02/03/2011,YOUNG PERSON'S GUARANTEE,WWEG EMPLOYMENT PROGRAMMES,WALES COUNCIL FOR VOLUNTARY ACTION,2019797780,"533,400.00"
Department for Work and Pensions,Corporate,14/03/2011,COMPUTER SERVICES,CHANGE MANAGEMENT DIRECTORATE,ACCENTURE,2019922147,"531,240.17"
Department for Work and Pensions,Jobcentre Plus,17/03/2011,EMPLOYMENT PROGRAMMES,Balance Sheet Payments,SHAW TRUST LTD,2020022157,"530,355.60"
Department for Work and Pensions,Corporate,31/03/2011,ACCOMMODATION,SHARED SERVICES,TELEREAL TRILLIUM,2020240267,"526,986.96"
Department for Work and Pensions,Employment Programmes,18/03/2011,EP GENERIC PROVIDER PAYMENTS,WWEG EMPLOYMENT PROGRAMMES,INGEUS UK LTD,2020027746,"525,899.09"
Department for Work and Pensions,Corporate,31/03/2011,ACCOMMODATION,Group Finance,TELEREAL TRILLIUM,2020240267,"523,892.08"
Department for Work and Pensions,Corporate,31/03/2011,ACCOMMODATION,Group Finance,TELEREAL TRILLIUM,2020240267,"521,527.38"
Department for Work and Pensions,Corporate,11/03/2011,COMPUTER SERVICES,Corporate IT ,HP ENTERPRISE SERVICES UK LTD,2019917580,"519,957.23"
Department for Work and Pensions,Corporate,04/03/2011,COMPUTER SERVICES,SHARED SERVICES,FUJITSU SERVICES,2019809316,"517,079.00"
Department for Work and Pensions,Corporate,18/03/2011,COMPUTER SERVICES,Corporate IT ,ATOS ORIGIN IT SERVICES UK LTD,2020025413,"506,400.45"
Department for Work and Pensions,Corporate,15/03/2011,Accommodation Costs,Group Finance,STANDARD LIFE INVESTMENTS,2019937646,"492,161.25"
Department for Work and Pensions,Employment Programmes,04/03/2011,JOBCENTRE PLUS PATHWAYS TO WORK,WWEG EMPLOYMENT PROGRAMMES,NORTHUMBERLAND NHS CARE TRUST,2019810687,"492,004.00"
Department for Work and Pensions,Jobcentre Plus,31/03/2011,EMPLOYMENT PROGRAMMES,Balance Sheet Payments,WORKING LINKS,2020240450,"487,808.27"
Department for Work and Pensions,Employment Programmes,18/03/2011,EP GENERIC PROVIDER PAYMENTS,WWEG EMPLOYMENT PROGRAMMES,THE WISE GROUP,2020030037,"478,842.33"
Department for Work and Pensions,Jobcentre Plus,03/03/2011,EMPLOYMENT PROGRAMMES,Balance Sheet Payments,SHAW TRUST LTD,2019805523,"474,654.78"
Department for Work and Pensions,Employment Programmes,18/03/2011,EP GENERIC PROVIDER PAYMENTS,WWEG EMPLOYMENT PROGRAMMES,SERCO LTD,2020029850,"472,365.17"
Department for Work and Pensions,Jobcentre Plus,31/03/2011,EMPLOYMENT PROGRAMMES,Balance Sheet Payments,REED IN PARTNERSHIP,2020239633,"471,776.73"
Department for Work and Pensions,Employment Programmes,18/03/2011,EP GENERIC PROVIDER PAYMENTS,WWEG EMPLOYMENT PROGRAMMES,SERCO LTD,2020029850,"470,488.83"
Department for Work and Pensions,Employment Programmes,22/03/2011,EMPLOYMENT INITIATIVES,WWEG EMPLOYMENT PROGRAMMES,REED IN PARTNERSHIP HACKNEY LTD,2020047165,"458,176.00"
Department for Work and Pensions,Housing Benefits,14/03/2011,Housing Benefit Admin,WWG Housing Benefit,DURHAM COUNCIL,2019927925,"456,043.00"
Department for Work and Pensions,Housing Benefits,14/03/2011,Housing Benefit Admin,WWG Housing Benefit,BRADFORD METROPOLITAN BOROUGH COUNCIL,2019927861,"454,776.00"
Department for Work and Pensions,Employment Programmes,22/03/2011,EMPLOYMENT INITIATIVES,WWEG EMPLOYMENT PROGRAMMES,REED IN PARTNERSHIP HACKNEY LTD,2020047165,"454,320.00"
Department for Work and Pensions,Jobcentre Plus,03/03/2011,EMPLOYMENT PROGRAMMES,Balance Sheet Payments,WORKING LINKS,2019805849,"446,598.02"
Department for Work and Pensions,Employment Programmes,04/03/2011,FND,WWEG EMPLOYMENT PROGRAMMES,SKILLS DEVELOPMENT SCOTLAND,1004671,"446,400.00"
Department for Work and Pensions,Jobcentre Plus,10/03/2011,EMPLOYMENT PROGRAMMES,Balance Sheet Payments,WORKING LINKS,2019912791,"445,271.58"
Department for Work and Pensions,Employment Programmes,18/03/2011,EP GENERIC PROVIDER PAYMENTS,WWEG EMPLOYMENT PROGRAMMES,WORKING LINKS,2020030181,"443,844.23"
Department for Work and Pensions,Jobcentre Plus,31/03/2011,EMPLOYMENT PROGRAMMES,Balance Sheet Payments,TNG BUSINESS SUPPORT LTD.,2020240299,"443,564.58"
Department for Work and Pensions,Corporate,30/03/2011,Pensions Programme Costs,Corporate and Support Services,PENSION PROTECTION FUND,1004730,"438,000.00"
Department for Work and Pensions,"Pension, Disability Carers Services",28/03/2011,COMPUTER SERVICES,Pensions & Disability Carers Service ,ATOS ORIGIN IT SERVICES UK,2020140111,"437,511.00"
Department for Work and Pensions,Corporate,08/03/2011,COMPUTER SERVICES,Corporate IT ,TELEFONICA O2 UK LTD,2019829728,"436,830.42"
Department for Work and Pensions,Corporate,18/03/2011,NETWORK,CHANGE MANAGEMENT DIRECTORATE,BT GLOBAL SERVICES,2020025518,"435,011.94"
Department for Work and Pensions,Employment Programmes,24/03/2011,YOUNG PERSON'S GUARANTEE,WWEG EMPLOYMENT PROGRAMMES,MERTHYR TYDFIL COUNTY BOROUGH COUNCIL,2020134063,"428,100.00"
Department for Work and Pensions,Jobcentre Plus,24/03/2011,EMPLOYMENT PROGRAMMES,Balance Sheet Payments,A4E LTD,2020127371,"427,207.03"
Department for Work and Pensions,Corporate,29/03/2011,PROFESSIONAL FEES,EG SUMMARY,SKILLS FUNDING AGENCY,1004728,"425,178.67"
Department for Work and Pensions,Jobcentre Plus,31/03/2011,EMPLOYMENT PROGRAMMES,Balance Sheet Payments,THE INTRAINING GROUP,2020240278,"424,277.09"
Department for Work and Pensions,Employment Programmes,15/03/2011,EMPLOYMENT INITIATIVES,WWEG EMPLOYMENT PROGRAMMES,WORKING LINKS,2019938216,"423,094.00"
Department for Work and Pensions,"Pension, Disability Carers Services",31/03/2011,ACCOMMODATION,Pensions & Disability Carers Service ,TELEREAL TRILLIUM,2020240268,"420,708.68"
Department for Work and Pensions,Corporate,28/03/2011,OFFICE MACHINERY HIRE,Corporate IT ,RICOH UK LTD,2020144147,"416,869.49"
Department for Work and Pensions,Jobcentre Plus,31/03/2011,EMPLOYMENT PROGRAMMES,Balance Sheet Payments,BTCV,2020235610,"410,278.62"
Department for Work and Pensions,Employment Programmes,01/03/2011,YOUNG PERSON'S GUARANTEE,WWEG EMPLOYMENT PROGRAMMES,SHEFFIELD CITY COUNCIL,2019722134,"408,300.00"
Department for Work and Pensions,Jobcentre Plus,31/03/2011,EMPLOYMENT PROGRAMMES,Balance Sheet Payments,BTCV ENTERPRISES LTD,2020235612,"405,050.14"
Department for Work and Pensions,Employment Programmes,18/03/2011,JSP ESF DEL P COSTS,WWEG EMPLOYMENT PROGRAMMES,INGEUS UK LTD,2020027746,"400,389.00"
Department for Work and Pensions,Corporate,15/03/2011,PRINCES YOUTH TRUST,WWG SUMMARY,DEPARTMENT OF HEALTH,2002489,"400,000.00"
Department for Work and Pensions,Housing Benefits,14/03/2011,Housing Benefit Admin,WWG Housing Benefit,LONDON BOROUGH OF LAMBETH,2019928015,"395,892.00"
Department for Work and Pensions,Jobcentre Plus,03/03/2011,EMPLOYMENT PROGRAMMES,Balance Sheet Payments,BTCV ENTERPRISES LTD,2019801037,"395,356.30"
Department for Work and Pensions,Employment Programmes,30/03/2011,EP GENERIC PROVIDER PAYMENTS,WWEG EMPLOYMENT PROGRAMMES,SHAW TRUST,2020226283,"393,954.56"
Department for Work and Pensions,Housing Benefits,14/03/2011,Housing Benefit Admin,WWG Housing Benefit,SHEFFIELD CITY COUNCIL,2019928111,"392,922.00"
Department for Work and Pensions,Employment Programmes,02/03/2011,EP GENERIC PROVIDER PAYMENTS,WWEG EMPLOYMENT PROGRAMMES,SHAW TRUST,2019792472,"392,754.56"
Department for Work and Pensions,"Pension, Disability Carers Services",15/03/2011,MEDICAL SERVICES,Pensions & Disability Carers Service ,ATOS ORIGIN IT SERVICES UK LTD,2019928971,"391,933.57"
Department for Work and Pensions,Corporate,07/03/2011,AOS CONTRACTED OUT SERVICES,SHARED SERVICES,CAPITA BUSINESS SERVICES LTD,2019813645,"388,945.43"
Department for Work and Pensions,Housing Benefits,14/03/2011,Housing Benefit Admin,WWG Housing Benefit,LONDON BOROUGH OF TOWER HAMLETS,2019928023,"388,879.00"
Department for Work and Pensions,Housing Benefits,14/03/2011,Housing Benefit Admin,WWG Housing Benefit,BRISTOL CITY COUNCIL,2019927867,"387,914.00"
Department for Work and Pensions,Housing Benefits,14/03/2011,Housing Benefit Admin,WWG Housing Benefit,HACKNEY LBC,2019927964,"386,921.00"
Department for Work and Pensions,Corporate,30/03/2011,EU PROGRAMMES,WWG SUMMARY,BRITISH COUNCIL,2020165637,"386,048.00"
Department for Work and Pensions,Corporate,24/03/2011,EU PROGRAMMES,WWG SUMMARY,ECOTECH LTD,2020128674,"384,929.00"
Department for Work and Pensions,Employment Programmes,09/03/2011,JOBCENTRE PLUS PATHWAYS TO WORK,WWEG EMPLOYMENT PROGRAMMES,NHS BLACKBURN WITH DARWEN,2019884994,"384,016.35"
Department for Work and Pensions,Housing Benefits,14/03/2011,Housing Benefit Admin,WWG Housing Benefit,CORNWALL COUNCIL,2019927905,"381,855.00"
Department for Work and Pensions,Jobcentre Plus,31/03/2011,EMPLOYMENT PROGRAMMES,Balance Sheet Payments,TRIAGE CENTRAL LTD,2020240317,"369,149.61"
Department for Work and Pensions,Jobcentre Plus,31/03/2011,EMPLOYMENT PROGRAMMES,Balance Sheet Payments,TRAINING WEST LANCASHIRE LTD,2020240309,"368,725.34"
Department for Work and Pensions,Housing Benefits,14/03/2011,Housing Benefit Admin,WWG Housing Benefit,LONDON BOROUGH OF LEWISHAM,2019928016,"367,569.00"
Department for Work and Pensions,Corporate,03/03/2011,MISCELLANEOUS EXPENDITURE,WWG SUMMARY,DEPARTMENT OF HEALTH,2002470,"365,000.00"
Department for Work and Pensions,Jobcentre Plus,31/03/2011,EMPLOYMENT PROGRAMMES,Balance Sheet Payments,SHAW TRUST LTD,2020240070,"361,059.09"
Department for Work and Pensions,Corporate,24/03/2011,Grant in Aid,Corporate and Support Services,PENSION PROTECTION FUND,1004717,"360,000.00"
Department for Work and Pensions,Jobcentre Plus,03/03/2011,EMPLOYMENT PROGRAMMES,Balance Sheet Payments,TNG BUSINESS SUPPORT LTD.,2019805724,"357,846.56"
Department for Work and Pensions,Employment Programmes,11/03/2011,EP GENERIC PROVIDER PAYMENTS,WWEG EMPLOYMENT PROGRAMMES,A4E LTD,2019915372,"357,208.15"
Department for Work and Pensions,Jobcentre Plus,03/03/2011,EMPLOYMENT PROGRAMMES,Balance Sheet Payments,TRAINING WEST LANCASHIRE LTD,2019805738,"357,137.39"
Department for Work and Pensions,Housing Benefits,14/03/2011,Housing Benefit Admin,WWG Housing Benefit,LONDON BOROUGH OF SOUTHWARK,2019928021,"357,136.00"
Department for Work and Pensions,Jobcentre Plus,02/03/2011,MEDICAL SERVICES,Jobcentre Plus,ATOS ORIGIN MEDICAL SERVICES,2019730029,"354,392.14"
Department for Work and Pensions,Housing Benefits,14/03/2011,Housing Benefit Admin,WWG Housing Benefit,LONDON BOROUGH OF NEWHAM,2019928018,"354,301.00"
Department for Work and Pensions,Jobcentre Plus,02/03/2011,IS/IT,Jobcentre Plus,SPECIALIST COMPUTER CENTRE PLC,2019792721,"354,257.36"
Department for Work and Pensions,Employment Programmes,21/03/2011,JOBCENTRE PLUS PATHWAYS TO WORK,WWEG EMPLOYMENT PROGRAMMES,HARTLEPOOL PRIMARY CARE TRUST,2020034542,"353,858.37"
Department for Work and Pensions,Employment Programmes,11/03/2011,EP GENERIC PROVIDER PAYMENTS,WWEG EMPLOYMENT PROGRAMMES,STANDGUIDE LTD,2019919933,"351,068.75"
Department for Work and Pensions,Corporate,11/03/2011,PROFESSIONAL FEES,EG SUMMARY,OFFICE FOR NATIONAL STATISTIC,2019919062,"350,433.00"
Department for Work and Pensions,Employment Programmes,24/03/2011,YOUNG PERSON'S GUARANTEE,WWEG EMPLOYMENT PROGRAMMES,SHEFFIELD CITY COUNCIL,2020131454,"350,400.00"
Department for Work and Pensions,Housing Benefits,14/03/2011,Housing Benefit Admin,WWG Housing Benefit,EDINBURGH DISTRICT COUNCIL,2019927942,"349,772.00"
Department for Work and Pensions,Employment Programmes,31/03/2011,NDDP,WWEG EMPLOYMENT PROGRAMMES,ACTION FOR EMPLOYMENTS,2020235469,"347,199.72"
Department for Work and Pensions,Jobcentre Plus,03/03/2011,EMPLOYMENT PROGRAMMES,Balance Sheet Payments,BTCV,2019801035,"346,579.03"
Department for Work and Pensions,Jobcentre Plus,17/03/2011,EMPLOYMENT PROGRAMMES,Balance Sheet Payments,A4E LTD,2020017471,"346,530.57"
Department for Work and Pensions,Corporate,31/03/2011,ACCOMMODATION,Group Finance,TELEREAL TRILLIUM,2020240268,"345,486.73"
Department for Work and Pensions,Employment Programmes,30/03/2011,YOUNG PERSON'S GUARANTEE,WWEG EMPLOYMENT PROGRAMMES,CITY & COUNTY OF SWANSEA,2020171090,"340,050.00"
Department for Work and Pensions,Housing Benefits,14/03/2011,Housing Benefit Admin,WWG Housing Benefit,LONDON BOROUGH OF BRENT,2019928001,"335,728.00"
Department for Work and Pensions,Employment Programmes,10/03/2011,YOUNG PERSON'S GUARANTEE,WWEG EMPLOYMENT PROGRAMMES,CSV,2019908549,"334,650.00"
Department for Work and Pensions,Housing Benefits,14/03/2011,Housing Benefit Admin,WWG Housing Benefit,LEICESTER CITY COUNCIL,2019927993,"333,775.00"
Department for Work and Pensions,Employment Programmes,22/03/2011,EMPLOYMENT INITIATIVES,WWEG EMPLOYMENT PROGRAMMES,REED IN PARTNERSHIP HACKNEY LTD,2020047165,"333,058.00"
Department for Work and Pensions,Employment Programmes,28/03/2011,YOUNG PERSON'S GUARANTEE,WWEG EMPLOYMENT PROGRAMMES,GROUNDWORK WEST MIDLANDS,2020142294,"328,650.00"
Department for Work and Pensions,Jobcentre Plus,31/03/2011,EMPLOYMENT PROGRAMMES,Balance Sheet Payments,RBLI ROYAL BRITISH LEGION INDUSTRIES LTD,2020239628,"328,192.91"
Department for Work and Pensions,Housing Benefits,14/03/2011,Housing Benefit Admin,WWG Housing Benefit,KIRKLEES METROPOLITAN BOROUGH COUNCIL,2019927989,"327,533.00"
Department for Work and Pensions,Corporate,18/03/2011,PROFESSIONAL FEES,Corporate and Support Services,ORC INTERNATIONAL LIMITED,2020029048,"326,249.67"
Department for Work and Pensions,Employment Programmes,08/03/2011,RESIDENTIAL TRAINING,WWEG EMPLOYMENT PROGRAMMES,FINCHALE TRAINING COLLEGE,1004675,"325,299.98"
Department for Work and Pensions,Employment Programmes,15/03/2011,Grant in Aid,WWEG EMPLOYMENT PROGRAMMES,BIS,2002486,"325,000.00"
Department for Work and Pensions,Housing Benefits,14/03/2011,Housing Benefit Admin,WWG Housing Benefit,LONDON BOROUGH OF EALING,2019928004,"322,597.00"
Department for Work and Pensions,European Social Fund,22/03/2011,ESF NON-PREFUNDED EXPENDITURE,WWEG EUROPEAN SOCIAL FUND,UNIVERSITY OF EXETER,5000000508,"320,623.00"
Department for Work and Pensions,Housing Benefits,14/03/2011,Housing Benefit Admin,WWG Housing Benefit,SANDWELL BOROUGH COUNCIL,2019928104,"320,252.00"
Department for Work and Pensions,Employment Programmes,28/03/2011,YOUNG PERSON'S GUARANTEE,WWEG EMPLOYMENT PROGRAMMES,THE ROYAL SOCIETY OF WILDLIFE TRUSTS,2020144665,"319,800.00"
Department for Work and Pensions,Employment Programmes,18/03/2011,EMPLOYMENT INITIATIVES,WWEG EMPLOYMENT PROGRAMMES,THE WISE GROUP,2020030036,"319,216.00"
Department for Work and Pensions,Employment Programmes,08/03/2011,YOUNG PERSON'S GUARANTEE,WWEG EMPLOYMENT PROGRAMMES,GATEWAY KNOWLEDGE ALLIANCE NORTH WEST KENT COLLEGE,2019824085,"316,950.00"
Department for Work and Pensions,Corporate,09/03/2011,IS/IT,CHANGE MANAGEMENT DIRECTORATE,SPECIALIST COMPUTER CENTRE PLC,2019899715,"312,059.48"
Department for Work and Pensions,Housing Benefits,14/03/2011,Housing Benefit Admin,WWG Housing Benefit,LONDON BOROUGH OF ISLINGTON,2019928013,"311,890.00"
Department for Work and Pensions,Corporate,15/03/2011,COMPUTER SERVICES,Corporate IT ,HP ENTERPRISE SERVICES UK LTD,2019932574,"311,073.96"
Department for Work and Pensions,Employment Programmes,03/03/2011,YOUNG PERSON'S GUARANTEE,WWEG EMPLOYMENT PROGRAMMES,CITY & COUNTY OF SWANSEA,2019801304,"306,900.00"
Department for Work and Pensions,Housing Benefits,14/03/2011,Housing Benefit Admin,WWG Housing Benefit,SUNDERLAND CITY COUNCIL,2019928150,"306,808.00"
Department for Work and Pensions,Corporate,31/03/2011,OTHER GOODS AND SERVICES,WWG SUMMARY,DEPARTMENT OF HEALTH,2002550,"305,404.00"
Department for Work and Pensions,Housing Benefits,14/03/2011,Housing Benefit Admin,WWG Housing Benefit,NOTTINGHAM CITY COUNCIL,2019928067,"304,681.00"
Department for Work and Pensions,Employment Programmes,23/03/2011,RESIDENTIAL TRAINING,WWEG EMPLOYMENT PROGRAMMES,QUEEN ELIZABETHS FOUNDATION TRAINING COLLEGE,2020107018,"303,817.47"
Department for Work and Pensions,Housing Benefits,14/03/2011,Housing Benefit Admin,WWG Housing Benefit,LONDON BOROUGH OF CAMDEN,2019928003,"301,992.00"
Department for Work and Pensions,Jobcentre Plus,16/03/2011,AOS CONTRACTED OUT SERVICES,Jobcentre Plus,VERTEX DATA SCIENCE LIMITED,2020013210,"300,821.35"
Department for Work and Pensions,Housing Benefits,14/03/2011,Housing Benefit Admin,WWG Housing Benefit,NORTH LANARKSHIRE COUNCIL,2019928057,"300,014.00"
Department for Work and Pensions,Corporate,28/03/2011,CAPITAL GRANTS,Group Finance,CITY SAVE CREDIT UNION LTD,2020140446,"300,000.00"
Department for Work and Pensions,Employment Programmes,22/03/2011,EMPLOYMENT INITIATIVES,WWEG EMPLOYMENT PROGRAMMES,TNG WORKZONE LTD,2020048534,"297,950.00"
Department for Work and Pensions,Housing Benefits,14/03/2011,Housing Benefit Admin,WWG Housing Benefit,LONDON BOROUGH OF HARINGEY,2019928008,"297,436.00"
Department for Work and Pensions,"Pension, Disability Carers Services",10/03/2011,CONTRACTED OUT OFFICE SERVICES,Pensions & Disability Carers Service ,BALFOUR BEATTY WORKPLACE LTD,2019908190,"297,261.20"
Department for Work and Pensions,Housing Benefits,14/03/2011,Housing Benefit Admin,WWG Housing Benefit,CROYDON PEO%,2019927912,"297,244.00"
Department for Work and Pensions,Corporate,31/03/2011,ACCOMMODATION,Group Finance,TELEREAL TRILLIUM,2020240267,"297,211.19"
Department for Work and Pensions,Housing Benefits,14/03/2011,Housing Benefit Admin,WWG Housing Benefit,BRIGHTON & HOVE COUNCIL,2019927866,"296,968.00"
Department for Work and Pensions,Housing Benefits,14/03/2011,Housing Benefit Admin,WWG Housing Benefit,CARDIFF CITY COUNCIL,2019927879,"295,580.00"
Department for Work and Pensions,Employment Programmes,02/03/2011,EP GENERIC PROVIDER PAYMENTS,WWEG EMPLOYMENT PROGRAMMES,WORKING LINKS,2019797817,"294,795.65"
Department for Work and Pensions,Employment Programmes,30/03/2011,EP GENERIC PROVIDER PAYMENTS,WWEG EMPLOYMENT PROGRAMMES,WORKING LINKS,2020231632,"294,795.65"
Department for Work and Pensions,Housing Benefits,14/03/2011,Housing Benefit Admin,WWG Housing Benefit,KINGSTON UPON HULL CITY COUNCIL,2019927988,"292,991.00"
Department for Work and Pensions,Housing Benefits,14/03/2011,Housing Benefit Admin,WWG Housing Benefit,WALSALL BOROUGH COUNCIL,2019928177,"292,794.00"
Department for Work and Pensions,Housing Benefits,14/03/2011,Housing Benefit Admin,WWG Housing Benefit,LONDON BOROUGH OF ENFIELD,2019928005,"291,623.00"
Department for Work and Pensions,Housing Benefits,14/03/2011,Housing Benefit Admin,WWG Housing Benefit,WAKEFIELD METROPOLITAN DISTRICT COUNCIL,2019928176,"291,379.00"
Department for Work and Pensions,Employment Programmes,23/03/2011,RESIDENTIAL TRAINING,WWEG EMPLOYMENT PROGRAMMES,FINCHALE TRAINING COLLEGE,2020072728,"290,799.98"
Department for Work and Pensions,Housing Benefits,14/03/2011,Housing Benefit Admin,WWG Housing Benefit,COVENTRY CITY COUNCIL,2019927909,"290,746.00"
Department for Work and Pensions,Corporate,29/03/2011,EU PROGRAMMES,WWG SUMMARY,OECD,3004297,"289,325.37"
Department for Work and Pensions,Housing Benefits,14/03/2011,Housing Benefit Admin,WWG Housing Benefit,FIFE COUNCIL,2019927951,"288,153.00"
Department for Work and Pensions,Jobcentre Plus,17/03/2011,EMPLOYMENT PROGRAMMES,Balance Sheet Payments,INBIZ LTD,2020019885,"288,102.20"
Department for Work and Pensions,Housing Benefits,14/03/2011,Housing Benefit Admin,WWG Housing Benefit,WIRRAL BOROUGH COUNCIL,2019928199,"284,704.00"
Department for Work and Pensions,Jobcentre Plus,24/03/2011,EMPLOYMENT PROGRAMMES,Balance Sheet Payments,REED IN PARTNERSHIP,2020131005,"284,514.52"
Department for Work and Pensions,Corporate,31/03/2011,ACCOMMODATION,Group Finance,TELEREAL TRILLIUM,2020240268,"284,232.74"
Department for Work and Pensions,Corporate,28/03/2011,EMPLOYMENT ZONES,WWG SUMMARY,LECT,2020143226,"284,098.88"
Department for Work and Pensions,Employment Programmes,23/03/2011,RESIDENTIAL TRAINING,WWEG EMPLOYMENT PROGRAMMES,ST LOYES COLLEGE FOUNDATION,2020119042,"284,023.33"
Department for Work and Pensions,Employment Programmes,04/03/2011,YOUNG PERSON'S GUARANTEE,WWEG EMPLOYMENT PROGRAMMES,THE INTRAINING GROUP,2019811499,"283,200.00"
Department for Work and Pensions,Jobcentre Plus,10/03/2011,EMPLOYMENT PROGRAMMES,Balance Sheet Payments,INGEUS UK LTD,2019910293,"282,854.24"
Department for Work and Pensions,Employment Programmes,02/03/2011,EP GENERIC PROVIDER PAYMENTS,WWEG EMPLOYMENT PROGRAMMES,SHAW TRUST,2019792472,"280,826.51"
Department for Work and Pensions,Employment Programmes,11/03/2011,EP GENERIC PROVIDER PAYMENTS,WWEG EMPLOYMENT PROGRAMMES,PERTEMPS,2019919256,"280,662.20"
Department for Work and Pensions,Employment Programmes,30/03/2011,EP GENERIC PROVIDER PAYMENTS,WWEG EMPLOYMENT PROGRAMMES,SHAW TRUST,2020226283,"279,626.51"
Department for Work and Pensions,Housing Benefits,14/03/2011,Housing Benefit Admin,WWG Housing Benefit,LONDON BOROUGH OF GREENWICH,2019928006,"272,849.00"
Department for Work and Pensions,Corporate,31/03/2011,ACCOMMODATION,Group Finance,TELEREAL TRILLIUM,2020240267,"272,160.49"
Department for Work and Pensions,Employment Programmes,08/03/2011,RESIDENTIAL TRAINING,WWEG EMPLOYMENT PROGRAMMES,QUEEN ELIZABETHS FOUNDATION TRAINING COLLEGE,1004678,"271,817.47"
Department for Work and Pensions,Employment Programmes,11/03/2011,EP GENERIC PROVIDER PAYMENTS,WWEG EMPLOYMENT PROGRAMMES,ESG HOLDINGS LTD,2019917256,"270,433.41"
Department for Work and Pensions,Employment Programmes,22/03/2011,EMPLOYMENT INITIATIVES,WWEG EMPLOYMENT PROGRAMMES,REED IN PARTNERSHIP HACKNEY LTD,2020047165,"270,169.00"
Department for Work and Pensions,Housing Benefits,14/03/2011,Housing Benefit Admin,WWG Housing Benefit,LONDON BOROUGH OF WANDSWORTH,2019928025,"267,993.00"
Department for Work and Pensions,Jobcentre Plus,31/03/2011,EMPLOYMENT PROGRAMMES,Balance Sheet Payments,REMPLOY,2020239636,"267,796.15"
Department for Work and Pensions,Employment Programmes,08/03/2011,RESIDENTIAL TRAINING,WWEG EMPLOYMENT PROGRAMMES,ST LOYES COLLEGE FOUNDATION,1004681,"267,773.33"
Department for Work and Pensions,Employment Programmes,21/03/2011,YOUNG PERSON'S GUARANTEE,WWEG EMPLOYMENT PROGRAMMES,KENT COUNTY COUNCIL,2020035154,"267,750.00"
Department for Work and Pensions,Employment Programmes,25/03/2011,HELP FOR UNEMPLOYED PEOPLE OTHER,WWEG EMPLOYMENT PROGRAMMES,DUNDEE CITY COUNCIL,2020136124,"266,865.50"
Department for Work and Pensions,Housing Benefits,14/03/2011,Housing Benefit Admin,WWG Housing Benefit,WOLVERHAMPTON CITY COUNCIL,2019928202,"266,731.00"
Department for Work and Pensions,Employment Programmes,02/03/2011,EP GENERIC PROVIDER PAYMENTS,WWEG EMPLOYMENT PROGRAMMES,THE PLUSS ORGANISATION,2019795819,"266,667.77"
Department for Work and Pensions,Employment Programmes,30/03/2011,EP GENERIC PROVIDER PAYMENTS,WWEG EMPLOYMENT PROGRAMMES,THE PLUSS ORGANISATION,2020229628,"266,667.77"
Department for Work and Pensions,Employment Programmes,04/03/2011,YOUNG PERSON'S GUARANTEE,WWEG EMPLOYMENT PROGRAMMES,TNG LTD,2019811511,"265,898.00"
Department for Work and Pensions,Employment Programmes,02/03/2011,EP GENERIC PROVIDER PAYMENTS,WWEG EMPLOYMENT PROGRAMMES,SEETEC BUSINESS TECHNOLOGY CENTRE LTD,2019792454,"265,529.03"
Department for Work and Pensions,Employment Programmes,30/03/2011,EP GENERIC PROVIDER PAYMENTS,WWEG EMPLOYMENT PROGRAMMES,SEETEC BUSINESS TECHNOLOGY CENTRE LTD,2020226266,"265,529.03"
Department for Work and Pensions,Employment Programmes,04/03/2011,YOUNG PERSON'S GUARANTEE,WWEG EMPLOYMENT PROGRAMMES,THE INTRAINING GROUP,2019811499,"262,517.00"
Department for Work and Pensions,Corporate,15/03/2011,AMS,Corporate IT ,HP ENTERPRISE SERVICES UK LTD,2019932574,"262,027.89"
Department for Work and Pensions,Employment Programmes,02/03/2011,EP GENERIC PROVIDER PAYMENTS,WWEG EMPLOYMENT PROGRAMMES,SHAW TRUST,2019792472,"261,667.25"
Department for Work and Pensions,Employment Programmes,30/03/2011,EP GENERIC PROVIDER PAYMENTS,WWEG EMPLOYMENT PROGRAMMES,SHAW TRUST,2020226283,"261,667.25"
Department for Work and Pensions,Corporate,15/03/2011,MISCELLANEOUS EXPENDITURE,WWG SUMMARY,DEPARTMENT OF HEALTH,2002489,"260,798.00"
Department for Work and Pensions,Employment Programmes,24/03/2011,YOUNG PERSON'S GUARANTEE,WWEG EMPLOYMENT PROGRAMMES,STOKE ON TRENT CITY COUNCIL,2020131530,"257,550.00"
Department for Work and Pensions,Housing Benefits,14/03/2011,Housing Benefit Admin,WWG Housing Benefit,LONDON BOROUGH OF BARNET,2019927999,"257,063.00"
Department for Work and Pensions,Housing Benefits,14/03/2011,Housing Benefit Admin,WWG Housing Benefit,DONCASTER METROPOLITAN BOROUGH COUNCIL,2019927920,"256,641.00"
Department for Work and Pensions,Employment Programmes,02/03/2011,EP GENERIC PROVIDER PAYMENTS,WWEG EMPLOYMENT PROGRAMMES,SHAW TRUST,2019792472,"255,919.85"
Department for Work and Pensions,Employment Programmes,30/03/2011,EP GENERIC PROVIDER PAYMENTS,WWEG EMPLOYMENT PROGRAMMES,SHAW TRUST,2020226283,"255,919.85"
Department for Work and Pensions,Jobcentre Plus,03/03/2011,EMPLOYMENT PROGRAMMES,Balance Sheet Payments,TNG NETWORK LTD,2019805728,"255,433.14"
Department for Work and Pensions,Employment Programmes,11/03/2011,EP GENERIC PROVIDER PAYMENTS,WWEG EMPLOYMENT PROGRAMMES,A4E LTD,2019915372,"255,321.19"
Department for Work and Pensions,Housing Benefits,14/03/2011,Housing Benefit Admin,WWG Housing Benefit,SOUTH LANARKSHIRE COUNCIL,2019928126,"255,242.00"
Department for Work and Pensions,Corporate,01/03/2011,EU PROGRAMMES,WWG SUMMARY,BRITISH COUNCIL,2019713952,"254,604.75"
Department for Work and Pensions,Employment Programmes,11/03/2011,EP GENERIC PROVIDER PAYMENTS,WWEG EMPLOYMENT PROGRAMMES,JHP GROUP LTD,2019918029,"253,734.83"
Department for Work and Pensions,Corporate,15/03/2011,COMPUTER SERVICES,Corporate IT ,HP ENTERPRISE SERVICES UK LTD,2019932574,"253,541.60"
Department for Work and Pensions,Employment Programmes,11/03/2011,EP GENERIC PROVIDER PAYMENTS,WWEG EMPLOYMENT PROGRAMMES,PINNACLE PEOPLE,2019919261,"253,142.58"
Department for Work and Pensions,Employment Programmes,11/03/2011,EP GENERIC PROVIDER PAYMENTS,WWEG EMPLOYMENT PROGRAMMES,A4E LTD,2019915372,"252,843.20"
Department for Work and Pensions,Employment Programmes,14/03/2011,YOUNG PERSON'S GUARANTEE,WWEG EMPLOYMENT PROGRAMMES,KIRKLEES COUNCIL,2019924934,"252,000.00"
Department for Work and Pensions,Housing Benefits,14/03/2011,Housing Benefit Admin,WWG Housing Benefit,NEWCASTLE CITY COUNCIL,2019928047,"250,520.00"
Department for Work and Pensions,Employment Programmes,11/03/2011,EP GENERIC PROVIDER PAYMENTS,WWEG EMPLOYMENT PROGRAMMES,REED IN PARTNERSHIP,2019919464,"250,083.33"
Department for Work and Pensions,Jobcentre Plus,24/03/2011,EMPLOYMENT PROGRAMMES,Balance Sheet Payments,SEETEC BUSINESS TECHNOLOGY CENTRE LTD,2020131445,"249,761.79"
Department for Work and Pensions,Housing Benefits,14/03/2011,Housing Benefit Admin,WWG Housing Benefit,SALFORD CITY COUNCIL,2019928103,"249,568.00"
Department for Work and Pensions,Jobcentre Plus,24/03/2011,EMPLOYMENT PROGRAMMES,Balance Sheet Payments,INGEUS UK LTD,2020129081,"249,469.34"
Department for Work and Pensions,Employment Programmes,11/03/2011,EP GENERIC PROVIDER PAYMENTS,WWEG EMPLOYMENT PROGRAMMES,INGEUS UK LTD,2019917633,"248,306.51"
Department for Work and Pensions,Corporate,10/03/2011,AOS CONTRACTED OUT SERVICES,Group Finance,BALFOUR BEATTY WORKPLACE LTD,2019908190,"247,082.57"
Department for Work and Pensions,Employment Programmes,04/03/2011,YOUNG PERSON'S GUARANTEE,WWEG EMPLOYMENT PROGRAMMES,SARINA RUSSO JOB ACCESS GB PTY LTD,2019811367,"246,819.00"
Department for Work and Pensions,Employment Programmes,07/03/2011,YOUNG PERSON'S GUARANTEE,WWEG EMPLOYMENT PROGRAMMES,SCOTTISH COUNCIL FOR VOLUNTARY ORGANISATIONS,2019817754,"246,750.00"
Department for Work and Pensions,Corporate,18/03/2011,COMPUTER SERVICES,Corporate IT ,ATOS ORIGIN IT SERVICES UK LTD,2020025413,"246,467.45"
Department for Work and Pensions,Jobcentre Plus,17/03/2011,EMPLOYMENT PROGRAMMES,Balance Sheet Payments,WORKING LINKS,2020022503,"245,950.76"
Department for Work and Pensions,Corporate,31/03/2011,OTHER PROJECTS,Corporate and Support Services,DEPARTMENT FOR COMMUNITIES & LOCAL GOVERNMENT,2002549,"245,000.00"
Department for Work and Pensions,Housing Benefits,14/03/2011,Housing Benefit Admin,WWG Housing Benefit,LONDON BOROUGH OF WALTHAM FOREST,2019928024,"244,197.00"
Department for Work and Pensions,Corporate,16/03/2011,Pensions Programme Costs,Corporate and Support Services,THE PENSIONS OMBUDSMAN,1004700,"244,000.00"
Department for Work and Pensions,Jobcentre Plus,24/03/2011,EMPLOYMENT PROGRAMMES,Balance Sheet Payments,WORKING LINKS,2020131885,"242,315.56"
Department for Work and Pensions,Employment Programmes,30/03/2011,EP GENERIC PROVIDER PAYMENTS,WWEG EMPLOYMENT PROGRAMMES,THE PLUSS ORGANISATION,2020229628,"242,289.42"
Department for Work and Pensions,Housing Benefits,14/03/2011,Housing Benefit Admin,WWG Housing Benefit,CITY OF WESTMINSTER,2019927897,"242,252.00"
Department for Work and Pensions,Employment Programmes,02/03/2011,EP GENERIC PROVIDER PAYMENTS,WWEG EMPLOYMENT PROGRAMMES,THE PLUSS ORGANISATION,2019795819,"241,889.42"
Department for Work and Pensions,Corporate,29/03/2011,COMPUTER SERVICES,Corporate IT ,TELEFONICA O2 UK LTD,2020156488,"241,236.38"
Department for Work and Pensions,Jobcentre Plus,31/03/2011,EMPLOYMENT PROGRAMMES,Balance Sheet Payments,TOMORROWS PEOPLE TRUST LTD,2020240306,"241,139.47"
Department for Work and Pensions,Employment Programmes,08/03/2011,EMPLOYMENT INITIATIVES,WWEG EMPLOYMENT PROGRAMMES,PERTEMPS,2019827986,"241,088.00"
Department for Work and Pensions,Corporate,18/03/2011,PRINTING STATIONERY IT CONSUMABLES,Group Finance,XEROX UK LTD 3W,2020030186,"240,189.97"
Department for Work and Pensions,Jobcentre Plus,31/03/2011,EMPLOYMENT PROGRAMMES,Balance Sheet Payments,TNG NETWORK LTD,2020240304,"238,709.63"
Department for Work and Pensions,Housing Benefits,14/03/2011,Housing Benefit Admin,WWG Housing Benefit,WILTSHIRE COUNCIL,2019928196,"237,901.00"
Department for Work and Pensions,Employment Programmes,02/03/2011,EP GENERIC PROVIDER PAYMENTS,WWEG EMPLOYMENT PROGRAMMES,ADVANCE HOUSING & SUPPORT LTD,2019729772,"237,501.14"
Department for Work and Pensions,Employment Programmes,30/03/2011,EP GENERIC PROVIDER PAYMENTS,WWEG EMPLOYMENT PROGRAMMES,ADVANCE HOUSING & SUPPORT LTD,2020164067,"237,501.14"
Department for Work and Pensions,Corporate,15/03/2011,STAFF COSTS,Corporate and Support Services,CABINET OFFICE RM SHARED SERVICES,1004692,"237,500.00"
Department for Work and Pensions,Housing Benefits,14/03/2011,Housing Benefit Admin,WWG Housing Benefit,DUDLEY METROPOLITAN BOROUGH COUNCIL,2019927922,"237,479.00"
Department for Work and Pensions,Corporate,09/03/2011,AOS CONTRACTED OUT SERVICES,SHARED SERVICES,MINISTRY OF DEFENCE,2019882109,"235,607.28"
Department for Work and Pensions,Employment Programmes,04/03/2011,YOUNG PERSON'S GUARANTEE,WWEG EMPLOYMENT PROGRAMMES,TNG LTD,2019811511,"235,592.00"
Department for Work and Pensions,Housing Benefits,14/03/2011,Housing Benefit Admin,WWG Housing Benefit,WIGAN BOROUGH COUNCIL,2019928195,"233,854.00"
Department for Work and Pensions,Employment Programmes,11/03/2011,EP GENERIC PROVIDER PAYMENTS,WWEG EMPLOYMENT PROGRAMMES,PINNACLE PEOPLE,2019919261,"233,101.08"
Department for Work and Pensions,Employment Programmes,02/03/2011,EP GENERIC PROVIDER PAYMENTS,WWEG EMPLOYMENT PROGRAMMES,SHAW TRUST,2019792472,"232,996.40"
Department for Work and Pensions,Employment Programmes,30/03/2011,EP GENERIC PROVIDER PAYMENTS,WWEG EMPLOYMENT PROGRAMMES,SHAW TRUST,2020226283,"232,596.40"
Department for Work and Pensions,"Pension, Disability Carers Services",28/03/2011,COMPUTER SERVICES,Pensions & Disability Carers Service ,ATOS ORIGIN IT SERVICES UK,2020140111,"232,163.93"
Department for Work and Pensions,Employment Programmes,02/03/2011,EP GENERIC PROVIDER PAYMENTS,WWEG EMPLOYMENT PROGRAMMES,SHAW TRUST,2019792472,"232,151.39"
Department for Work and Pensions,Employment Programmes,09/03/2011,YOUNG PERSON'S GUARANTEE,WWEG EMPLOYMENT PROGRAMMES,ENABLE,2019852709,"231,300.00"
Department for Work and Pensions,Employment Programmes,30/03/2011,EP GENERIC PROVIDER PAYMENTS,WWEG EMPLOYMENT PROGRAMMES,SHAW TRUST,2020226283,"230,951.39"
Department for Work and Pensions,Employment Programmes,09/03/2011,JOBCENTRE PLUS PATHWAYS TO WORK,WWEG EMPLOYMENT PROGRAMMES,CUMBRIA PARTNERSHIP FOUNDATION NHS TRUST,2019844407,"230,854.49"
Department for Work and Pensions,Jobcentre Plus,31/03/2011,EMPLOYMENT PROGRAMMES,Balance Sheet Payments,WORKING LINKS EMPLOYMENT LTD,2020240455,"229,648.61"
Department for Work and Pensions,Employment Programmes,04/03/2011,YOUNG PERSON'S GUARANTEE,WWEG EMPLOYMENT PROGRAMMES,THE INTRAINING GROUP,2019811499,"229,611.00"
Department for Work and Pensions,Corporate,03/03/2011,COMPUTER SERVICES,SHARED SERVICES,PROCSERV SHARED SERVICES LTD,2019804931,"229,148.00"
Department for Work and Pensions,Employment Programmes,18/03/2011,YOUNG PERSON'S GUARANTEE,WWEG EMPLOYMENT PROGRAMMES,KIRKLEES COUNCIL,2020028308,"228,300.00"
Department for Work and Pensions,Housing Benefits,14/03/2011,Housing Benefit Admin,WWG Housing Benefit,STOKE ON TRENT CITY COUNCIL,2019928146,"228,034.00"
Department for Work and Pensions,Corporate,24/03/2011,CAPITAL GRANTS,Group Finance,CALDERDALE CREDIT UNION LTD,2020127831,"228,000.00"
Department for Work and Pensions,Corporate,24/03/2011,NETWORK,Corporate IT ,BT GLOBAL SERVICES,2020127576,"227,628.01"
Department for Work and Pensions,Jobcentre Plus,17/03/2011,EMPLOYMENT PROGRAMMES,Balance Sheet Payments,SHAW TRUST LTD,2020022161,"226,851.23"
Department for Work and Pensions,Corporate,21/03/2011,PRINTING STATIONERY IT CONSUMABLES,Group Finance,XEROX UK LTD 3W,2020036834,"225,457.97"
Department for Work and Pensions,Housing Benefits,14/03/2011,Housing Benefit Admin,WWG Housing Benefit,SEFTON METROPOLITAN BOROUGH COUNCIL,2019928108,"224,787.00"
Department for Work and Pensions,"Pension, Disability Carers Services",31/03/2011,ACCOMMODATION,Pensions & Disability Carers Service ,TELEREAL TRILLIUM,2020240270,"222,996.59"
Department for Work and Pensions,Jobcentre Plus,31/03/2011,EMPLOYMENT PROGRAMMES,Balance Sheet Payments,CROSBY TRAINING,2020235942,"221,911.36"
Department for Work and Pensions,Jobcentre Plus,31/03/2011,EMPLOYMENT PROGRAMMES,Balance Sheet Payments,PERTEMPS EMPLOYMENT ALLIANCE,2020239404,"221,640.66"
Department for Work and Pensions,Employment Programmes,07/03/2011,NDDP,WWEG EMPLOYMENT PROGRAMMES,SHAW TRUST LTD,2019817769,"220,662.04"
Department for Work and Pensions,Housing Benefits,14/03/2011,Housing Benefit Admin,WWG Housing Benefit,LONDON BOROUGH OF HOUNSLOW,2019928012,"220,469.00"
Department for Work and Pensions,Corporate,28/03/2011,PROFESSIONAL FEES,Group Finance,DRIVERS JONAS,2020141942,"220,322.00"
Department for Work and Pensions,Employment Programmes,15/03/2011,EMPLOYMENT INITIATIVES,WWEG EMPLOYMENT PROGRAMMES,INGEUS UK LTD,2019932687,"220,109.00"
Department for Work and Pensions,Jobcentre Plus,02/03/2011,COMPUTER SERVICES,Jobcentre Plus,ACCENTURE UK LTD,2019729750,"218,361.88"
Department for Work and Pensions,Housing Benefits,14/03/2011,Housing Benefit Admin,WWG Housing Benefit,BOLTON METROPOLITAN BOROUGH COUNCIL,2019927854,"218,052.00"
Department for Work and Pensions,Employment Programmes,02/03/2011,EP GENERIC PROVIDER PAYMENTS,WWEG EMPLOYMENT PROGRAMMES,WORKING LINKS,2019797817,"217,773.19"
Department for Work and Pensions,Employment Programmes,21/03/2011,YOUNG PERSON'S GUARANTEE,WWEG EMPLOYMENT PROGRAMMES,NORFOLK COUNTY COUNCIL,2020035782,"216,750.00"
Department for Work and Pensions,Employment Programmes,17/03/2011,YOUNG PERSON'S GUARANTEE,WWEG EMPLOYMENT PROGRAMMES,NORTH LANARKSHIRE COUNCIL,2020021333,"215,550.00"
Department for Work and Pensions,Employment Programmes,30/03/2011,EP GENERIC PROVIDER PAYMENTS,WWEG EMPLOYMENT PROGRAMMES,WORKING LINKS,2020231632,"214,373.19"
Department for Work and Pensions,Employment Programmes,18/03/2011,EP GENERIC PROVIDER PAYMENTS,WWEG EMPLOYMENT PROGRAMMES,REMPLOY LTD,2020029469,"214,331.50"
Department for Work and Pensions,Jobcentre Plus,03/03/2011,EMPLOYMENT PROGRAMMES,Balance Sheet Payments,TRIAGE CENTRAL LTD,2019805742,"213,860.68"
Department for Work and Pensions,Corporate,02/03/2011,OTHER GOODS AND SERVICES,LSPG,CABINET OFFICE,2019736806,"213,798.00"
Department for Work and Pensions,European Social Fund,28/03/2011,MA ESF(D) LA NON-PREFUNDED EXPENDITURE,WWEG EUROPEAN SOCIAL FUND,WIRRAL BOROUGH COUNCIL,5000000521,"213,655.00"
Department for Work and Pensions,Jobcentre Plus,17/03/2011,EMPLOYMENT PROGRAMMES,Balance Sheet Payments,REED IN PARTNERSHIP,2020021763,"213,032.40"
Department for Work and Pensions,Employment Programmes,11/03/2011,EP GENERIC PROVIDER PAYMENTS,WWEG EMPLOYMENT PROGRAMMES,SEETEC BUSINESS TECHNOLOGY CENTRE LTD,2019919867,"212,698.42"
Department for Work and Pensions,Jobcentre Plus,11/03/2011,APPS DEV,Jobcentre Plus,HP ENTERPRISE SERVICES UK LTD,2019917580,"212,215.22"
Department for Work and Pensions,Employment Programmes,18/03/2011,EMPLOYMENT INITIATIVES,WWEG EMPLOYMENT PROGRAMMES,SENCIA LTD,2020029849,"212,156.00"
Department for Work and Pensions,Employment Programmes,02/03/2011,EP GENERIC PROVIDER PAYMENTS,WWEG EMPLOYMENT PROGRAMMES,SHAW TRUST,2019792472,"209,863.46"
Department for Work and Pensions,Employment Programmes,30/03/2011,EP GENERIC PROVIDER PAYMENTS,WWEG EMPLOYMENT PROGRAMMES,SHAW TRUST,2020226283,"209,663.46"
Department for Work and Pensions,Employment Programmes,02/03/2011,EP GENERIC PROVIDER PAYMENTS,WWEG EMPLOYMENT PROGRAMMES,SHAW TRUST,2019792472,"207,977.51"
Department for Work and Pensions,Corporate,30/03/2011,OTHER GOODS AND SERVICES,Corporate and Support Services,CAPITA BUSINESS SERVICES LTD,2020171033,"207,918.12"
Department for Work and Pensions,Employment Programmes,01/03/2011,JOBCENTRE PLUS PATHWAYS TO WORK,WWEG EMPLOYMENT PROGRAMMES,NORTH STAFFORDSHIRE PCT,2019720161,"207,680.43"
Department for Work and Pensions,Employment Programmes,16/03/2011,YOUNG PERSON'S GUARANTEE,WWEG EMPLOYMENT PROGRAMMES,KIRKLEES COUNCIL,2019979213,"207,600.00"
Department for Work and Pensions,Employment Programmes,11/03/2011,YOUNG PERSON'S GUARANTEE,WWEG EMPLOYMENT PROGRAMMES,URBAN FUTURES LONDON LTD,2019920152,"207,581.22"
Department for Work and Pensions,Employment Programmes,30/03/2011,EP GENERIC PROVIDER PAYMENTS,WWEG EMPLOYMENT PROGRAMMES,SHAW TRUST,2020226283,"207,577.51"
Department for Work and Pensions,Housing Benefits,14/03/2011,Housing Benefit Admin,WWG Housing Benefit,PLYMOUTH CITY COUNCIL,2019928077,"207,144.00"
Department for Work and Pensions,Housing Benefits,14/03/2011,Housing Benefit Admin,WWG Housing Benefit,ROTHERHAM BOROUGH COUNCIL,2019928095,"207,043.00"
Department for Work and Pensions,Housing Benefits,14/03/2011,Housing Benefit Admin,WWG Housing Benefit,STOCKPORT BOROUGH COUNCIL,2019928144,"206,420.00"
Department for Work and Pensions,Corporate,03/03/2011,PROFESSIONAL FEES,Corporate and Support Services,OFFICE FOR NATIONAL STATISTICS,2019804718,"205,750.00"
Department for Work and Pensions,Housing Benefits,14/03/2011,Housing Benefit Admin,WWG Housing Benefit,NORTHUMBERLAND COUNCIL,2019928065,"205,092.00"
Department for Work and Pensions,Corporate,10/03/2011,PRINCES YOUTH TRUST,WWG SUMMARY,LEICESTER CITY COUNCIL,1004685,"204,700.00"
Department for Work and Pensions,Employment Programmes,29/03/2011,YOUNG PERSON'S GUARANTEE,WWEG EMPLOYMENT PROGRAMMES,URBAN FUTURES LONDON LTD,2020156547,"204,436.05"
Department for Work and Pensions,Housing Benefits,14/03/2011,Housing Benefit Admin,WWG Housing Benefit,TAMESIDE BOROUGH COUNCIL,2019928155,"204,336.00"
Department for Work and Pensions,Corporate,25/03/2011,TOTAL SUPPLIES & SERVICES,Group Finance,HMRC,2002522,"204,261.55"
Department for Work and Pensions,Employment Programmes,02/03/2011,EP GENERIC PROVIDER PAYMENTS,WWEG EMPLOYMENT PROGRAMMES,SHAW TRUST,2019792472,"204,173.82"
Department for Work and Pensions,Employment Programmes,30/03/2011,EP GENERIC PROVIDER PAYMENTS,WWEG EMPLOYMENT PROGRAMMES,SHAW TRUST,2020226283,"204,173.82"
Department for Work and Pensions,Employment Programmes,02/03/2011,EP GENERIC PROVIDER PAYMENTS,WWEG EMPLOYMENT PROGRAMMES,MOMENTUM SCOTLAND,2019775124,"204,147.14"
Department for Work and Pensions,Employment Programmes,30/03/2011,EP GENERIC PROVIDER PAYMENTS,WWEG EMPLOYMENT PROGRAMMES,MOMENTUM SCOTLAND,2020208852,"204,147.14"
Department for Work and Pensions,Corporate,31/03/2011,PRINCES YOUTH TRUST,WWG SUMMARY,NORTHERN IRELAND SOCIAL SECURITY AGENCY,1004740,"203,993.00"
Department for Work and Pensions,Jobcentre Plus,03/03/2011,EMPLOYMENT PROGRAMMES,Balance Sheet Payments,A4E WALES LTD,2019807772,"203,816.93"
Department for Work and Pensions,Jobcentre Plus,31/03/2011,EMPLOYMENT PROGRAMMES,Balance Sheet Payments,A4E WALES LTD,2020242839,"203,816.93"
Department for Work and Pensions,Housing Benefits,14/03/2011,Housing Benefit Admin,WWG Housing Benefit,LONDON BOROUGH OF HAMMERSMITH & FULHAM,2019928007,"203,289.00"
Department for Work and Pensions,Corporate,10/03/2011,AOS CONTRACTED OUT SERVICES,SHARED SERVICES,BALFOUR BEATTY WORKPLACE LTD,2019908190,"203,013.95"
Department for Work and Pensions,Housing Benefits,14/03/2011,Housing Benefit Admin,WWG Housing Benefit,CHESHIRE EAST BOROUGH COUNCIL,2019927888,"202,731.00"
Department for Work and Pensions,Housing Benefits,14/03/2011,Housing Benefit Admin,WWG Housing Benefit,LONDON BOROUGH OF HILLINGDON,2019928011,"202,104.00"
Department for Work and Pensions,Housing Benefits,14/03/2011,Housing Benefit Admin,WWG Housing Benefit,CHESHIRE WEST & CHESTER COUNCIL,2019927889,"201,170.00"
Department for Work and Pensions,Employment Programmes,15/03/2011,EMPLOYMENT INITIATIVES,WWEG EMPLOYMENT PROGRAMMES,WORKING LINKS,2019938216,"200,582.00"
Department for Work and Pensions,Jobcentre Plus,31/03/2011,EMPLOYMENT PROGRAMMES,Balance Sheet Payments,YMCA TRAINING LTD,2020240473,"200,539.59"
Department for Work and Pensions,Housing Benefits,14/03/2011,Housing Benefit Admin,WWG Housing Benefit,RHONDDA CYNON TAFF COUNTY BOROUGH COUNCIL,2019928087,"199,625.00"
Department for Work and Pensions,Housing Benefits,14/03/2011,Housing Benefit Admin,WWG Housing Benefit,PORTSMOUTH CITY COUNCIL,2019928079,"199,580.00"
Department for Work and Pensions,Employment Programmes,11/03/2011,EP GENERIC PROVIDER PAYMENTS,WWEG EMPLOYMENT PROGRAMMES,CAPITAL TRAINING GROUP LTD,2019915795,"199,399.17"
Department for Work and Pensions,Employment Programmes,11/03/2011,EP GENERIC PROVIDER PAYMENTS,WWEG EMPLOYMENT PROGRAMMES,A4E LTD,2019915372,"198,836.67"
Department for Work and Pensions,Employment Programmes,11/03/2011,EP GENERIC PROVIDER PAYMENTS,WWEG EMPLOYMENT PROGRAMMES,JHP GROUP LTD,2019918029,"198,759.92"
Department for Work and Pensions,Housing Benefits,14/03/2011,Housing Benefit Admin,WWG Housing Benefit,MEDWAY TOWNS COUNCIL,2019928032,"198,269.00"
Department for Work and Pensions,Employment Programmes,02/03/2011,EP GENERIC PROVIDER PAYMENTS,WWEG EMPLOYMENT PROGRAMMES,SHAW TRUST,2019792472,"198,164.74"
Department for Work and Pensions,Employment Programmes,30/03/2011,EP GENERIC PROVIDER PAYMENTS,WWEG EMPLOYMENT PROGRAMMES,SHAW TRUST,2020226283,"198,164.74"
Department for Work and Pensions,Employment Programmes,21/03/2011,YOUNG PERSON'S GUARANTEE,WWEG EMPLOYMENT PROGRAMMES,IXION HOLDINGS LTD,2020034607,"197,550.00"
Department for Work and Pensions,Housing Benefits,14/03/2011,Housing Benefit Admin,WWG Housing Benefit,SOUTHAMPTON CITY COUNCIL,2019928134,"196,258.00"
Department for Work and Pensions,Employment Programmes,02/03/2011,EP GENERIC PROVIDER PAYMENTS,WWEG EMPLOYMENT PROGRAMMES,SHAW TRUST,2019792472,"194,924.94"
Department for Work and Pensions,Employment Programmes,30/03/2011,EP GENERIC PROVIDER PAYMENTS,WWEG EMPLOYMENT PROGRAMMES,SHAW TRUST,2020226283,"194,524.94"
Department for Work and Pensions,Corporate,24/03/2011,OFFICE MACHINERY HIRE,Corporate IT ,RICOH UK LTD,2020131023,"194,250.00"
Department for Work and Pensions,Corporate,30/03/2011,AOS CONTRACTED OUT SERVICES,SHARED SERVICES,HOME OFFICE,2020184311,"193,954.97"
Department for Work and Pensions,Jobcentre Plus,03/03/2011,EMPLOYMENT PROGRAMMES,Balance Sheet Payments,YMCA TRAINING LTD,2019805867,"193,338.85"
Department for Work and Pensions,Employment Programmes,31/03/2011,YOUNG PERSON'S GUARANTEE,WWEG EMPLOYMENT PROGRAMMES,KNOWSLEY METROPOLITAN BOROUGH COUNCIL,2020238400,"192,300.00"
Department for Work and Pensions,Employment Programmes,02/03/2011,EP GENERIC PROVIDER PAYMENTS,WWEG EMPLOYMENT PROGRAMMES,SHAW TRUST,2019792472,"192,103.57"
Department for Work and Pensions,Employment Programmes,30/03/2011,EP GENERIC PROVIDER PAYMENTS,WWEG EMPLOYMENT PROGRAMMES,SHAW TRUST,2020226283,"192,103.57"
Department for Work and Pensions,Housing Benefits,14/03/2011,Housing Benefit Admin,WWG Housing Benefit,EAST RIDING OF YORKSHIRE BOROUGH COUNCIL,2019927937,"191,848.00"
Department for Work and Pensions,Jobcentre Plus,03/03/2011,EMPLOYMENT PROGRAMMES,Balance Sheet Payments,CROSBY TRAINING,2019801334,"191,341.45"
Department for Work and Pensions,Employment Programmes,02/03/2011,EP GENERIC PROVIDER PAYMENTS,WWEG EMPLOYMENT PROGRAMMES,WORKING LINKS,2019797817,"189,160.11"
Department for Work and Pensions,Corporate,31/03/2011,PROFESSIONAL FEES,Corporate and Support Services,NATIONAL CENTRE FOR SOCIAL RESEARCH NCSR,2020239164,"188,976.50"
Department for Work and Pensions,Housing Benefits,14/03/2011,Housing Benefit Admin,WWG Housing Benefit,BARNSLEY BOROUGH COUNCIL,2019927841,"188,963.00"
Department for Work and Pensions,Housing Benefits,14/03/2011,Housing Benefit Admin,WWG Housing Benefit,MILTON KEYNES BOROUGH COUNCIL,2019928041,"188,746.00"
Department for Work and Pensions,Housing Benefits,14/03/2011,Housing Benefit Admin,WWG Housing Benefit,LONDON BOROUGH OF KENSINGTON & CHELSEA,2019928014,"188,443.00"
Department for Work and Pensions,Housing Benefits,14/03/2011,Housing Benefit Admin,WWG Housing Benefit,ROCHDALE BOROUGH COUNCIL,2019928090,"188,324.00"
Department for Work and Pensions,Employment Programmes,25/03/2011,JOBCENTRE PLUS PATHWAYS TO WORK,WWEG EMPLOYMENT PROGRAMMES,NHS GREATER GLASGOW & CLYDE,2020137503,"187,512.00"
Department for Work and Pensions,Housing Benefits,14/03/2011,Housing Benefit Admin,WWG Housing Benefit,DERBY CITY COUNCIL,2019927918,"186,931.00"
Department for Work and Pensions,Jobcentre Plus,28/03/2011,Accommodation Costs,Jobcentre Plus,TELEREAL TRILLIUM,2020144654,"186,588.48"
Department for Work and Pensions,Employment Programmes,15/03/2011,YOUNG PERSON'S GUARANTEE,WWEG EMPLOYMENT PROGRAMMES,LANCASHIRE COUNTY COUNCIL,2019934625,"186,450.00"
Department for Work and Pensions,Employment Programmes,30/03/2011,EP GENERIC PROVIDER PAYMENTS,WWEG EMPLOYMENT PROGRAMMES,WORKING LINKS,2020231632,"186,360.11"
Department for Work and Pensions,Housing Benefits,14/03/2011,Housing Benefit Admin,WWG Housing Benefit,SWANSEA CITY COUNCIL,2019928153,"185,901.00"
Department for Work and Pensions,Employment Programmes,02/03/2011,EP GENERIC PROVIDER PAYMENTS,WWEG EMPLOYMENT PROGRAMMES,SHAW TRUST,2019792472,"185,624.04"
Department for Work and Pensions,Employment Programmes,30/03/2011,EP GENERIC PROVIDER PAYMENTS,WWEG EMPLOYMENT PROGRAMMES,SHAW TRUST,2020226283,"185,224.04"
Department for Work and Pensions,Corporate,04/03/2011,BANKING AND ENCASHMENT COSTS,Group Finance,HSBC BANK PLC,2019809536,"184,019.80"
Department for Work and Pensions,Jobcentre Plus,10/03/2011,EMPLOYMENT PROGRAMMES,Balance Sheet Payments,SEETEC BUSINESS TECHNOLOGY CENTRE LTD,2019912436,"183,581.53"
Department for Work and Pensions,Employment Programmes,15/03/2011,EMPLOYMENT INITIATIVES,WWEG EMPLOYMENT PROGRAMMES,WORKING LINKS,2019938216,"183,502.00"
Department for Work and Pensions,Housing Benefits,14/03/2011,Housing Benefit Admin,WWG Housing Benefit,LONDON BOROUGH OF HARROW,2019928009,"183,284.00"
Department for Work and Pensions,Housing Benefits,14/03/2011,Housing Benefit Admin,WWG Housing Benefit,OLDHAM BOROUGH COUNCIL,2019928070,"183,164.00"
Department for Work and Pensions,Employment Programmes,17/03/2011,YOUNG PERSON'S GUARANTEE,WWEG EMPLOYMENT PROGRAMMES,LEEDS CITY COUNCIL,2020020738,"182,850.00"
Department for Work and Pensions,Jobcentre Plus,24/03/2011,EMPLOYMENT PROGRAMMES,Balance Sheet Payments,SHAW TRUST LTD,2020131452,"182,419.26"
Department for Work and Pensions,Housing Benefits,14/03/2011,Housing Benefit Admin,WWG Housing Benefit,LONDON BOROUGH OF BROMLEY,2019928002,"182,362.00"
Department for Work and Pensions,Corporate,17/03/2011,OTHER GOODS AND SERVICES,WWG SUMMARY,HM REVENUE & CUSTOMS,2002498,"181,785.28"
Department for Work and Pensions,Housing Benefits,14/03/2011,Housing Benefit Admin,WWG Housing Benefit,LONDON BOROUGH OF BARKING & DAGENHAM,2019927998,"180,606.00"
Department for Work and Pensions,Corporate,14/03/2011,APPS DEV,CHANGE MANAGEMENT DIRECTORATE,HP ENTERPRISE SERVICES UK LTD,2019924415,"180,321.77"
Department for Work and Pensions,Housing Benefits,14/03/2011,Housing Benefit Admin,WWG Housing Benefit,KNOWSLEY BOROUGH COUNCIL,2019927990,"179,847.00"
Department for Work and Pensions,Employment Programmes,04/03/2011,YOUNG PERSON'S GUARANTEE,WWEG EMPLOYMENT PROGRAMMES,TNG LTD,2019811511,"179,421.00"
Department for Work and Pensions,Corporate,09/03/2011,IS/IT,Corporate IT ,SPECIALIST COMPUTER CENTRES PLC,2019899716,"179,237.40"
Department for Work and Pensions,Corporate,18/03/2011,AOS CONTRACTED OUT SERVICES,SHARED SERVICES,HOME OFFICE,2020027695,"178,591.26"
Department for Work and Pensions,Housing Benefits,14/03/2011,Housing Benefit Admin,WWG Housing Benefit,GATESHEAD BOROUGH COUNCIL,2019927956,"178,510.00"
Department for Work and Pensions,European Social Fund,28/03/2011,ESF NON-PREFUNDED EXPENDITURE,WWEG EUROPEAN SOCIAL FUND,TRIBAL EDUCATION LTD,5000000520,"178,389.00"
Department for Work and Pensions,Corporate,18/03/2011,COMPUTER SERVICES,SHARED SERVICES,HP ENTERPRISE SERVICES UK LTD,2020027697,"177,761.67"
Department for Work and Pensions,Employment Programmes,11/03/2011,EP GENERIC PROVIDER PAYMENTS,WWEG EMPLOYMENT PROGRAMMES,JHP GROUP LTD,2019918029,"177,750.83"
Department for Work and Pensions,Employment Programmes,02/03/2011,EP GENERIC PROVIDER PAYMENTS,WWEG EMPLOYMENT PROGRAMMES,CDG WISE ABILITY LTD,2019736835,"177,465.23"
Department for Work and Pensions,Employment Programmes,30/03/2011,EP GENERIC PROVIDER PAYMENTS,WWEG EMPLOYMENT PROGRAMMES,CDG WISE ABILITY LTD,2020171052,"177,065.23"
Department for Work and Pensions,European Social Fund,28/03/2011,MA ESF(D) LA NON-PREFUNDED EXPENDITURE,WWEG EUROPEAN SOCIAL FUND,KNOWSLEY METROPOLITIAN BOROUGH COUNCIL,5000000515,"175,806.00"
Department for Work and Pensions,Corporate,21/03/2011,AOS CONTRACTED OUT SERVICES,SHARED SERVICES,HOME OFFICE,2020034554,"175,592.01"
Department for Work and Pensions,Employment Programmes,02/03/2011,EP GENERIC PROVIDER PAYMENTS,WWEG EMPLOYMENT PROGRAMMES,INGEUS UK LTD,2019750997,"174,983.45"
Department for Work and Pensions,Employment Programmes,24/03/2011,YOUNG PERSON'S GUARANTEE,WWEG EMPLOYMENT PROGRAMMES,THE SALVATION ARMY,2020131690,"174,675.68"
Department for Work and Pensions,Jobcentre Plus,03/03/2011,EMPLOYMENT PROGRAMMES,Balance Sheet Payments,MBW TRAINING SERVICES,2019804558,"174,423.96"
Department for Work and Pensions,Corporate,16/03/2011,COMPUTER SERVICES,Corporate IT ,HP ENTERPRISE SERVICES UK LTD,2019966328,"174,139.56"
Department for Work and Pensions,Employment Programmes,11/03/2011,EP GENERIC PROVIDER PAYMENTS,WWEG EMPLOYMENT PROGRAMMES,TNG LTD,2019920122,"173,489.33"
Department for Work and Pensions,Employment Programmes,30/03/2011,EP GENERIC PROVIDER PAYMENTS,WWEG EMPLOYMENT PROGRAMMES,INGEUS UK LTD,2020184919,"173,383.45"
Department for Work and Pensions,Corporate,29/03/2011,EU PROGRAMMES,WWG SUMMARY,ECORYS UK LTD,2020150355,"173,157.00"
Department for Work and Pensions,Housing Benefits,14/03/2011,Housing Benefit Admin,WWG Housing Benefit,SHROPSHIRE COUNCIL,2019928114,"172,841.00"
Department for Work and Pensions,Employment Programmes,02/03/2011,EP GENERIC PROVIDER PAYMENTS,WWEG EMPLOYMENT PROGRAMMES,SHAW TRUST,2019792472,"171,989.38"
Department for Work and Pensions,Employment Programmes,30/03/2011,EP GENERIC PROVIDER PAYMENTS,WWEG EMPLOYMENT PROGRAMMES,SHAW TRUST,2020226283,"171,989.38"
Department for Work and Pensions,Jobcentre Plus,03/03/2011,EMPLOYMENT PROGRAMMES,Balance Sheet Payments,WORKING LINKS,2019805848,"171,943.03"
Department for Work and Pensions,Corporate,17/03/2011,COMPUTER SERVICES,Corporate IT ,ATOS ORIGIN IT SERVICES UK LTD,2020017532,"171,694.99"
Department for Work and Pensions,Housing Benefits,14/03/2011,Housing Benefit Admin,WWG Housing Benefit,LONDON BOROUGH OF REDBRIDGE,2019928019,"171,240.00"
Department for Work and Pensions,Housing Benefits,14/03/2011,Housing Benefit Admin,WWG Housing Benefit,STOCKTON  BOROUGH COUNCIL,2019928145,"170,877.00"
Department for Work and Pensions,Corporate,28/03/2011,Accommodation Costs,Group Finance,TELEREAL TRILLIUM,2020144653,"170,222.13"
Department for Work and Pensions,Employment Programmes,03/03/2011,NDDP,WWEG EMPLOYMENT PROGRAMMES,SEETEC,2019805505,"169,315.48"
Department for Work and Pensions,Corporate,15/03/2011,ACCOMMODATION,Group Finance,TELEREAL TRILLIUM,2019937941,"168,842.31"
Department for Work and Pensions,Housing Benefits,14/03/2011,Housing Benefit Admin,WWG Housing Benefit,RENFREWSHIRE COUNCIL,2019928086,"168,753.00"
Department for Work and Pensions,Employment Programmes,18/03/2011,EP GENERIC PROVIDER PAYMENTS,WWEG EMPLOYMENT PROGRAMMES,MAXIMUS EMPLOYMENT UK LTD,2020028873,"168,738.70"
Department for Work and Pensions,Housing Benefits,14/03/2011,Housing Benefit Admin,WWG Housing Benefit,NORTHAMPTON BOROUGH COUNCIL,2019928064,"168,359.00"
Department for Work and Pensions,Housing Benefits,14/03/2011,Housing Benefit Admin,WWG Housing Benefit,BLACKPOOL BOROUGH COUNCIL,2019927851,"167,399.00"
Department for Work and Pensions,Corporate,22/03/2011,EMPLOYMENT ZONES,WWG SUMMARY,SPECIALIST SCHOOLS & ACADEMIES TRUST,2020048202,"166,532.00"
Department for Work and Pensions,Jobcentre Plus,31/03/2011,EMPLOYMENT PROGRAMMES,Balance Sheet Payments,PROSPECTS SERVICES LTD 2,2020239422,"166,271.16"
Department for Work and Pensions,Jobcentre Plus,31/03/2011,EMPLOYMENT PROGRAMMES,Balance Sheet Payments,WORKING LINKS,2020240449,"166,013.96"
Department for Work and Pensions,"Pension, Disability Carers Services",11/03/2011,CONTRACTED OUT OFFICE SERVICES,Pensions & Disability Carers Service ,CAPITA BUSINESS SERVICES LTD,2019915793,"165,883.08"
Department for Work and Pensions,Housing Benefits,14/03/2011,Housing Benefit Admin,WWG Housing Benefit,SOUTH GLOUCESTERSHIRE COUNCIL,2019928121,"165,632.00"
Department for Work and Pensions,Housing Benefits,14/03/2011,Housing Benefit Admin,WWG Housing Benefit,CALDERDALE BOROUGH COUNCIL,2019927875,"165,332.00"
Department for Work and Pensions,Housing Benefits,14/03/2011,Housing Benefit Admin,WWG Housing Benefit,MIDDLESBROUGH COUNCIL,2019928039,"165,275.00"
Department for Work and Pensions,Employment Programmes,11/03/2011,EP GENERIC PROVIDER PAYMENTS,WWEG EMPLOYMENT PROGRAMMES,A4E LTD,2019915372,"165,094.28"
Department for Work and Pensions,Corporate,17/03/2011,PROFESSIONAL FEES,Corporate and Support Services,OFFICE FOR NATIONAL STATISTICS,2020021353,"165,049.33"
Department for Work and Pensions,Housing Benefits,14/03/2011,Housing Benefit Admin,WWG Housing Benefit,THANET DISTRICT COUNCIL,2019928163,"164,291.00"
Department for Work and Pensions,Employment Programmes,17/03/2011,YOUNG PERSON'S GUARANTEE,WWEG EMPLOYMENT PROGRAMMES,WAKEFIELD METROPLITAN DISTRICT COUNCIL,2020022479,"163,844.85"
Department for Work and Pensions,Employment Programmes,18/03/2011,YOUNG PERSON'S GUARANTEE,WWEG EMPLOYMENT PROGRAMMES,LEICESTER CITY COUNCIL,2020028527,"163,800.00"
Department for Work and Pensions,Housing Benefits,14/03/2011,Housing Benefit Admin,WWG Housing Benefit,PETERBOROUGH CITY COUNCIL,2019928076,"163,735.00"
Department for Work and Pensions,Housing Benefits,14/03/2011,Housing Benefit Admin,WWG Housing Benefit,DUNDEE CITY COUNCIL,2019927924,"163,217.00"
Department for Work and Pensions,Jobcentre Plus,31/03/2011,EMPLOYMENT PROGRAMMES,Balance Sheet Payments,KENNEDY SCOTT LTD,2020238382,"162,280.78"
Department for Work and Pensions,Employment Programmes,04/03/2011,YOUNG PERSON'S GUARANTEE,WWEG EMPLOYMENT PROGRAMMES,SARINA RUSSO JOB ACCESS GB PTY LTD,2019811367,"161,711.00"
Department for Work and Pensions,Corporate,18/03/2011,NETWORK,CHANGE MANAGEMENT DIRECTORATE,BT GLOBAL SERVICES,2020025518,"161,600.73"
Department for Work and Pensions,Employment Programmes,02/03/2011,EP GENERIC PROVIDER PAYMENTS,WWEG EMPLOYMENT PROGRAMMES,SHAW TRUST,2019792472,"161,208.59"
Department for Work and Pensions,Employment Programmes,30/03/2011,EP GENERIC PROVIDER PAYMENTS,WWEG EMPLOYMENT PROGRAMMES,SHAW TRUST,2020226283,"161,208.59"
Department for Work and Pensions,Employment Programmes,02/03/2011,EP GENERIC PROVIDER PAYMENTS,WWEG EMPLOYMENT PROGRAMMES,WORKING LINKS,2019797817,"161,118.99"
Department for Work and Pensions,Employment Programmes,30/03/2011,EP GENERIC PROVIDER PAYMENTS,WWEG EMPLOYMENT PROGRAMMES,WORKING LINKS,2020231632,"161,118.99"
Department for Work and Pensions,Housing Benefits,14/03/2011,Housing Benefit Admin,WWG Housing Benefit,NORTH TYNESIDE BOROUGH COUNCIL,2019928061,"160,376.00"
Department for Work and Pensions,Employment Programmes,11/03/2011,EP GENERIC PROVIDER PAYMENTS,WWEG EMPLOYMENT PROGRAMMES,INGEUS UK LTD,2019917633,"160,052.27"
Department for Work and Pensions,Housing Benefits,14/03/2011,Housing Benefit Admin,WWG Housing Benefit,NORTH EAST LINCOLNSHIRE COUNCIL,2019928054,"159,706.00"
Department for Work and Pensions,Housing Benefits,14/03/2011,Housing Benefit Admin,WWG Housing Benefit,ST HELENS BOROUGH COUNCIL,2019928139,"159,651.00"
Department for Work and Pensions,Employment Programmes,18/03/2011,EP GENERIC PROVIDER PAYMENTS,WWEG EMPLOYMENT PROGRAMMES,TNG LTD,2020030046,"158,694.61"
Department for Work and Pensions,Corporate,09/03/2011,STAFF COSTS,Corporate and Support Services,RIGHT CORECARE,2019890969,"157,994.61"
Department for Work and Pensions,Housing Benefits,14/03/2011,Housing Benefit Admin,WWG Housing Benefit,HIGHLAND COUNCIL,2019927977,"157,794.00"
Department for Work and Pensions,Corporate,24/03/2011,EMPLOYMENT ZONES,Group Finance,CALDERDALE CREDIT UNION LTD,2020127831,"157,158.00"
Department for Work and Pensions,Employment Programmes,15/03/2011,YOUNG PERSON'S GUARANTEE,WWEG EMPLOYMENT PROGRAMMES,CHESHIRE WEST & CHESTER COUNCIL,2019929875,"156,750.00"
Department for Work and Pensions,Employment Programmes,17/03/2011,YOUNG PERSON'S GUARANTEE,WWEG EMPLOYMENT PROGRAMMES,LEICESTER CITY COUNCIL,2020020744,"156,000.00"
Department for Work and Pensions,Housing Benefits,14/03/2011,Housing Benefit Admin,WWG Housing Benefit,LUTON BOROUGH COUNCIL,2019928026,"155,470.00"
Department for Work and Pensions,Employment Programmes,30/03/2011,YOUNG PERSON'S GUARANTEE,WWEG EMPLOYMENT PROGRAMMES,LONDON BOROUGH OF HACKNEY,2020203114,"155,400.00"
Department for Work and Pensions,Jobcentre Plus,31/03/2011,EMPLOYMENT PROGRAMMES,Balance Sheet Payments,MBW TRAINING SERVICES,2020238985,"155,109.32"
Department for Work and Pensions,Jobcentre Plus,17/03/2011,EMPLOYMENT PROGRAMMES,Balance Sheet Payments,TNG NETWORK LTD,2020022368,"154,975.82"
Department for Work and Pensions,Employment Programmes,16/03/2011,YOUNG PERSON'S GUARANTEE,WWEG EMPLOYMENT PROGRAMMES,DORSET COUNTY COUNCIL,2019957677,"154,950.00"
Department for Work and Pensions,Employment Programmes,04/03/2011,JOBCENTRE PLUS PATHWAYS TO WORK,WWEG EMPLOYMENT PROGRAMMES,GATESHEAD PRIMARY CARE TRUST,2019809429,"154,653.00"
Department for Work and Pensions,Housing Benefits,14/03/2011,Housing Benefit Admin,WWG Housing Benefit,BOURNEMOUTH BOROUGH COUNCIL,2019927859,"154,523.00"
Department for Work and Pensions,Corporate,08/03/2011,PROFESSIONAL FEES,Corporate and Support Services,NATIONAL CENTRE FOR SOCIAL RESEARCH NCSR,2019827507,"154,376.50"
Department for Work and Pensions,Employment Programmes,30/03/2011,EP GENERIC PROVIDER PAYMENTS,WWEG EMPLOYMENT PROGRAMMES,WORKING LINKS,2020231632,"154,073.05"
Department for Work and Pensions,Corporate,16/03/2011,STAFF COSTS,Corporate and Support Services,FLETCHER CONSULTANCY,2019962361,"153,100.00"
Department for Work and Pensions,Jobcentre Plus,03/03/2011,EMPLOYMENT PROGRAMMES,Balance Sheet Payments,TNG NETWORK LTD,2019805729,"153,024.23"
Department for Work and Pensions,Jobcentre Plus,11/03/2011,APPS DEV,Jobcentre Plus,HP ENTERPRISE SERVICES UK LTD,2019917581,"152,893.42"
Department for Work and Pensions,Employment Programmes,11/03/2011,EP GENERIC PROVIDER PAYMENTS,WWEG EMPLOYMENT PROGRAMMES,INGEUS UK LTD,2019917633,"152,161.27"
Department for Work and Pensions,Housing Benefits,14/03/2011,Housing Benefit Admin,WWG Housing Benefit,NORTH SOMERSET COUNCIL,2019928060,"151,413.00"
Department for Work and Pensions,Housing Benefits,14/03/2011,Housing Benefit Admin,WWG Housing Benefit,SOUTHEND ON SEA BOROUGH COUNCIL,2019928135,"151,045.00"
Department for Work and Pensions,Employment Programmes,02/03/2011,EP GENERIC PROVIDER PAYMENTS,WWEG EMPLOYMENT PROGRAMMES,SHAW TRUST,2019792472,"151,019.47"
Department for Work and Pensions,Employment Programmes,30/03/2011,EP GENERIC PROVIDER PAYMENTS,WWEG EMPLOYMENT PROGRAMMES,SHAW TRUST,2020226283,"151,019.47"
Department for Work and Pensions,Employment Programmes,14/03/2011,YOUNG PERSON'S GUARANTEE,WWEG EMPLOYMENT PROGRAMMES,STOKE ON TRENT CITY COUNCIL,2019926219,"150,750.00"
Department for Work and Pensions,Corporate,16/03/2011,COMPUTER SERVICES,Corporate IT ,HP ENTERPRISE SERVICES UK LTD,2019966328,"150,383.35"
Department for Work and Pensions,Corporate,14/03/2011,CAPITAL GRANTS,Group Finance,POLLOK CREDIT UNION,2019925706,"150,000.00"
Department for Work and Pensions,Corporate,24/03/2011,CAPITAL GRANTS,Group Finance,POLLOK CREDIT UNION,2020130775,"150,000.00"
Department for Work and Pensions,Employment Programmes,11/03/2011,YOUNG PERSON'S GUARANTEE,WWEG EMPLOYMENT PROGRAMMES,FUTURE JOBS SOUTH LONDON BUSINESS,2019917321,"149,550.00"
Department for Work and Pensions,Corporate,31/03/2011,COMPUTER SERVICES,WWG SUMMARY,ACCENTURE UK LTD,2020235465,"149,196.39"
Department for Work and Pensions,Corporate,18/03/2011,PRINCES YOUTH TRUST,WWG SUMMARY,MANCHESTER CITY COUNCIL,1004707,"149,000.00"
Department for Work and Pensions,Jobcentre Plus,17/03/2011,EMPLOYMENT PROGRAMMES,Balance Sheet Payments,SHAW TRUST LTD,2020022160,"148,940.46"
Department for Work and Pensions,Housing Benefits,14/03/2011,Housing Benefit Admin,WWG Housing Benefit,BASILDON DISTRICT COUNCIL,2019927843,"148,287.00"
Department for Work and Pensions,Corporate,30/03/2011,EMPLOYMENT ZONES,Group Finance,HULL & EAST YORKSHIRE CREDIT UNION LTD,2020184324,"147,613.00"
Department for Work and Pensions,Jobcentre Plus,03/03/2011,JOBCENTRE PLUS PATHWAYS TO WORK,Jobcentre Plus,SOMERSET PCT,2019805552,"146,955.00"
Department for Work and Pensions,Housing Benefits,14/03/2011,Housing Benefit Admin,WWG Housing Benefit,TRAFFORD BOROUGH COUNCIL,2019928171,"146,888.00"
Department for Work and Pensions,Corporate,28/03/2011,PRINTING STATIONERY IT CONSUMABLES,Group Finance,XEROX UK LTD 3W,2020144821,"146,747.38"
Department for Work and Pensions,Jobcentre Plus,03/03/2011,EMPLOYMENT PROGRAMMES,Balance Sheet Payments,PROSPECTS SERVICES LTD 2,2019804934,"146,644.58"
Department for Work and Pensions,Housing Benefits,14/03/2011,Housing Benefit Admin,WWG Housing Benefit,TORBAY  COUNCIL,2019928168,"146,182.00"
Department for Work and Pensions,Housing Benefits,14/03/2011,Housing Benefit Admin,WWG Housing Benefit,SWINDON BOROUGH COUNCIL,2019928154,"145,513.00"
Department for Work and Pensions,Corporate,11/03/2011,STAFF COSTS,Corporate and Support Services,RIGHT CORECARE,2019919474,"145,422.33"
Department for Work and Pensions,Employment Programmes,11/03/2011,EP GENERIC PROVIDER PAYMENTS,WWEG EMPLOYMENT PROGRAMMES,JHP GROUP LTD,2019918029,"144,528.00"
Department for Work and Pensions,Housing Benefits,14/03/2011,Housing Benefit Admin,WWG Housing Benefit,SOUTH TYNESIDE METROPOLITAN BOROUGH COUNCIL,2019928133,"144,437.00"
Department for Work and Pensions,Housing Benefits,14/03/2011,Housing Benefit Admin,WWG Housing Benefit,BOROUGH OF TELFORD  & WREKIN COUNCIL,2019927856,"143,984.00"
Department for Work and Pensions,Housing Benefits,14/03/2011,Housing Benefit Admin,WWG Housing Benefit,LONDON BOROUGH OF BEXLEY,2019928000,"143,575.00"
Department for Work and Pensions,Employment Programmes,04/03/2011,YOUNG PERSON'S GUARANTEE,WWEG EMPLOYMENT PROGRAMMES,GROUNDWORK UK,2019809445,"143,441.00"
Department for Work and Pensions,"Pension, Disability Carers Services",10/03/2011,COMPUTER SERVICES,Pensions & Disability Carers Service ,ACCENTURE,2019908054,"143,200.29"
Department for Work and Pensions,Employment Programmes,02/03/2011,EP GENERIC PROVIDER PAYMENTS,WWEG EMPLOYMENT PROGRAMMES,WORKING LINKS,2019797817,"143,073.05"
Department for Work and Pensions,Jobcentre Plus,28/03/2011,Accommodation Costs,Jobcentre Plus,TELEREAL TRILLIUM,2020144653,"142,824.78"
Department for Work and Pensions,Corporate,30/03/2011,PROFESSIONAL FEES,Corporate and Support Services,EQUIFAX PLC,2020179431,"142,800.00"
Department for Work and Pensions,Employment Programmes,04/03/2011,YOUNG PERSON'S GUARANTEE,WWEG EMPLOYMENT PROGRAMMES,TBG LEARNING LTD,2019811493,"142,736.00"
Department for Work and Pensions,Jobcentre Plus,03/03/2011,EMPLOYMENT PROGRAMMES,Balance Sheet Payments,KENNEDY SCOTT LTD,2019804000,"142,323.02"
Department for Work and Pensions,Employment Programmes,04/03/2011,YOUNG PERSON'S GUARANTEE,WWEG EMPLOYMENT PROGRAMMES,A4E LTD,2019808095,"142,060.00"
Department for Work and Pensions,Housing Benefits,14/03/2011,Housing Benefit Admin,WWG Housing Benefit,LONDON BOROUGH OF HAVERING,2019928010,"141,828.00"
Department for Work and Pensions,Employment Programmes,08/03/2011,RESIDENTIAL TRAINING,WWEG EMPLOYMENT PROGRAMMES,DONCASTER DEAF TRUST,1004672,"141,810.97"
Department for Work and Pensions,Jobcentre Plus,17/03/2011,EMPLOYMENT PROGRAMMES,Balance Sheet Payments,WORKING LINKS EMPLOYMENT LTD,2020022505,"141,774.90"
Department for Work and Pensions,Corporate,09/03/2011,COMPUTER SERVICES,Corporate IT ,ACCENTURE,2019837168,"141,307.17"
Department for Work and Pensions,Housing Benefits,14/03/2011,Housing Benefit Admin,WWG Housing Benefit,BURY METROPOLITAN BOROUGH COUNCIL,2019927873,"141,217.00"
Department for Work and Pensions,Corporate,14/03/2011,APPS DEV,CHANGE MANAGEMENT DIRECTORATE,HP ENTERPRISE SERVICES UK LTD,2019924415,"140,285.91"
Department for Work and Pensions,Employment Programmes,04/03/2011,YOUNG PERSON'S GUARANTEE,WWEG EMPLOYMENT PROGRAMMES,SARINA RUSSO JOB ACCESS GB PTY LTD,2019811367,"139,478.00"
Department for Work and Pensions,European Social Fund,02/03/2011,MA ESF(D) LA NON-PREFUNDED EXPENDITURE,WWEG EUROPEAN SOCIAL FUND,ST HELENS COUNCIL,5000000492,"139,285.00"
Department for Work and Pensions,Housing Benefits,14/03/2011,Housing Benefit Admin,WWG Housing Benefit,CAERPHILLY COUNTY BOROUGH COUNCIL,2019927874,"138,886.00"
Department for Work and Pensions,European Social Fund,18/03/2011,ESF NON-PREFUNDED EXPENDITURE,WWEG EUROPEAN SOCIAL FUND,GOVERNMENT OF GIBRALTAR DEPARTMENT OF EDUCATION & TRAINING,5000000507,"138,462.00"
Department for Work and Pensions,Housing Benefits,14/03/2011,Housing Benefit Admin,WWG Housing Benefit,ABERDEEN CITY COUNCIL,2019927829,"138,404.00"
Department for Work and Pensions,Housing Benefits,14/03/2011,Housing Benefit Admin,WWG Housing Benefit,LONDON BOROUGH OF SUTTON,2019928022,"137,860.00"
Department for Work and Pensions,Housing Benefits,14/03/2011,Housing Benefit Admin,WWG Housing Benefit,NORTH AYRSHIRE COUNCIL,2019928050,"137,720.00"
Department for Work and Pensions,Employment Programmes,08/03/2011,RESIDENTIAL TRAINING,WWEG EMPLOYMENT PROGRAMMES,ROYAL NATIONAL COLLEGE FOR THE BLIND,1004680,"137,230.00"
Department for Work and Pensions,Jobcentre Plus,17/03/2011,EMPLOYMENT PROGRAMMES,Balance Sheet Payments,INGEUS UK LTD,2020019888,"136,944.37"
Department for Work and Pensions,Jobcentre Plus,31/03/2011,EMPLOYMENT PROGRAMMES,Balance Sheet Payments,TNG LTD,2020240301,"135,869.89"
Department for Work and Pensions,Employment Programmes,17/03/2011,YOUNG PERSON'S GUARANTEE,WWEG EMPLOYMENT PROGRAMMES,STOKE ON TRENT CITY COUNCIL,2020022213,"135,644.64"
Department for Work and Pensions,Jobcentre Plus,17/03/2011,EMPLOYMENT PROGRAMMES,Balance Sheet Payments,TNG LTD,2020022365,"135,582.24"
Department for Work and Pensions,Corporate,16/03/2011,TOTAL IT & EQUIPMENT COSTS,Group Finance,ATOS ORIGIN IT SERVICES UK LTD,2019945977,"135,179.30"
Department for Work and Pensions,Corporate,24/03/2011,CAPITAL GRANTS,Group Finance,JUST CREDIT UNION,2020129507,"135,000.00"
Department for Work and Pensions,Jobcentre Plus,03/03/2011,EMPLOYMENT PROGRAMMES,Balance Sheet Payments,COMMUNITY  LINKS,2019801316,"134,738.84"
Department for Work and Pensions,Employment Programmes,23/03/2011,RESIDENTIAL TRAINING,WWEG EMPLOYMENT PROGRAMMES,PORTLAND COLLEGE,2020106983,"134,319.00"
Department for Work and Pensions,Corporate,31/03/2011,APPS DEV,CHANGE MANAGEMENT DIRECTORATE,ACCENTURE,2020235464,"133,979.27"
Department for Work and Pensions,Corporate,15/03/2011,APPS DEV,CHANGE MANAGEMENT DIRECTORATE,HP ENTERPRISE SERVICES UK LTD,2019932575,"133,949.60"
Department for Work and Pensions,Employment Programmes,04/03/2011,HELP FOR UNEMPLOYED PEOPLE OTHER,WWEG EMPLOYMENT PROGRAMMES,DUNDEE CITY COUNCIL,2019809157,"133,432.75"
Department for Work and Pensions,Jobcentre Plus,22/03/2011,OTHER EXPENDITURE,Jobcentre Plus,CAPITA BUSINESS SERVICES LTD,1004710,"133,428.33"
Department for Work and Pensions,Housing Benefits,14/03/2011,Housing Benefit Admin,WWG Housing Benefit,REDCAR & CLEVELAND BOROUGH  COUNCIL,2019928084,"133,306.00"
Department for Work and Pensions,Jobcentre Plus,03/03/2011,EMPLOYMENT PROGRAMMES,Balance Sheet Payments,THE INTRAINING GROUP,2019805698,"132,639.00"
Department for Work and Pensions,Corporate,07/03/2011,IS/IT,Corporate IT ,COMPUTACENTER UK LTD,2019813695,"132,515.34"
Department for Work and Pensions,Corporate,04/03/2011,EU PROGRAMMES,WWG SUMMARY,BRITISH COUNCIL,2019808229,"131,443.00"
Department for Work and Pensions,Housing Benefits,14/03/2011,Housing Benefit Admin,WWG Housing Benefit,NORWICH CITY COUNCIL,2019928066,"131,292.00"
Department for Work and Pensions,Employment Programmes,16/03/2011,FND,WWEG EMPLOYMENT PROGRAMMES,REMPLOY LTD,2019999991,"131,109.00"
Department for Work and Pensions,Jobcentre Plus,31/03/2011,EMPLOYMENT PROGRAMMES,Balance Sheet Payments,TNG NETWORK LTD,2020240305,"130,977.99"
Department for Work and Pensions,Employment Programmes,29/03/2011,NDDP,WWEG EMPLOYMENT PROGRAMMES,SEETEC,2020156114,"130,954.82"
Department for Work and Pensions,Jobcentre Plus,31/03/2011,EMPLOYMENT PROGRAMMES,Balance Sheet Payments,COMMUNITY  LINKS,2020235926,"130,940.67"
Department for Work and Pensions,Corporate,30/03/2011,AOS CONTRACTED OUT SERVICES,SHARED SERVICES,XAFINITY CLAYBROOK,2020231650,"130,750.00"
Department for Work and Pensions,Jobcentre Plus,03/03/2011,EMPLOYMENT PROGRAMMES,Balance Sheet Payments,TOMORROWS PEOPLE TRUST LTD,2019805734,"130,562.23"
Department for Work and Pensions,Housing Benefits,14/03/2011,Housing Benefit Admin,WWG Housing Benefit,LONDON BOROUGH OF MERTON,2019928017,"130,529.00"
Department for Work and Pensions,European Social Fund,28/03/2011,ESF NON-PREFUNDED EXPENDITURE,WWEG EUROPEAN SOCIAL FUND,GROUNDWORK LONDON,5000000514,"130,184.00"
Department for Work and Pensions,Housing Benefits,14/03/2011,Housing Benefit Admin,WWG Housing Benefit,TENDRING DISTRICT COUNCIL,2019928160,"130,078.00"
Department for Work and Pensions,Employment Programmes,22/03/2011,RESIDENTIAL TRAINING,WWEG EMPLOYMENT PROGRAMMES,RNCB HEREFORD,2020047176,"129,230.00"
Department for Work and Pensions,Housing Benefits,14/03/2011,Housing Benefit Admin,WWG Housing Benefit,WEST LOTHIAN COUNCIL,2019928191,"129,195.00"
Department for Work and Pensions,Employment Programmes,04/03/2011,YOUNG PERSON'S GUARANTEE,WWEG EMPLOYMENT PROGRAMMES,WOLVERHAMPTON CITY COUNCIL,2019811623,"128,250.00"
Department for Work and Pensions,Housing Benefits,14/03/2011,Housing Benefit Admin,WWG Housing Benefit,CENTRAL BEDFORDSHIRE DISTRICT COUNCIL,2019927882,"128,075.00"
Department for Work and Pensions,Jobcentre Plus,10/03/2011,EMPLOYMENT PROGRAMMES,Balance Sheet Payments,SHAW TRUST LTD,2019912443,"127,202.52"
Department for Work and Pensions,Employment Programmes,14/03/2011,YOUNG PERSON'S GUARANTEE,WWEG EMPLOYMENT PROGRAMMES,LONDON BOROUGH OF HACKNEY,2019925125,"127,200.00"
Department for Work and Pensions,Housing Benefits,14/03/2011,Housing Benefit Admin,WWG Housing Benefit,BLACKBURN BOROUGH COUNCIL,2019927850,"127,145.00"
Department for Work and Pensions,Jobcentre Plus,24/03/2011,EMPLOYMENT PROGRAMMES,Balance Sheet Payments,A4E WALES LTD,2020134024,"126,049.08"
Department for Work and Pensions,Employment Programmes,28/03/2011,YOUNG PERSON'S GUARANTEE,WWEG EMPLOYMENT PROGRAMMES,WOLVERHAMPTON CITY COUNCIL,2020144813,"126,000.00"
Department for Work and Pensions,Corporate,04/03/2011,COMPUTER SERVICES,Corporate IT ,ORANGE PCS LTD,2019810703,"125,784.74"
Department for Work and Pensions,Corporate,14/03/2011,COMPUTER SERVICES,Corporate IT ,HP ENTERPRISE SERVICES UK LTD,2019924415,"125,780.25"
Department for Work and Pensions,Corporate,15/03/2011,APPS DEV,Group Finance,HP ENTERPRISE SERVICES UK LTD,2019932575,"125,284.90"
Department for Work and Pensions,Corporate,15/03/2011,Income from Outside Bodies,WWG SUMMARY,DEPARTMENT OF HEALTH,2002489,"125,000.00"
Department for Work and Pensions,Corporate,07/03/2011,CAPITAL GRANTS,Group Finance,SOUTH YORKSHIRE CREDIT UNION,2019817808,"125,000.00"
Department for Work and Pensions,Housing Benefits,14/03/2011,Housing Benefit Admin,WWG Housing Benefit,CARMARTHENSHIRE COUNTY COUNCIL,2019927880,"124,990.00"
Department for Work and Pensions,Jobcentre Plus,10/03/2011,EMPLOYMENT PROGRAMMES,Balance Sheet Payments,RBLI ROYAL BRITISH LEGION INDUSTRIES LTD,2019912022,"124,952.98"
Department for Work and Pensions,Housing Benefits,14/03/2011,Housing Benefit Admin,WWG Housing Benefit,SOLIHULL METROPOLITAN BOROUGH COUNCIL,2019928116,"124,889.00"
Department for Work and Pensions,Employment Programmes,18/03/2011,JSP ESF DEL P COSTS,WWEG EMPLOYMENT PROGRAMMES,SEETEC BUSINESS TECHNOLOGY CENTRE LTD,2020029848,"124,867.13"
Department for Work and Pensions,Employment Programmes,23/03/2011,RESIDENTIAL TRAINING,WWEG EMPLOYMENT PROGRAMMES,DONCASTER DEAF TRUST,2020067973,"124,560.97"
Department for Work and Pensions,Housing Benefits,14/03/2011,Housing Benefit Admin,WWG Housing Benefit,NORTH LINCOLNSHIRE COUNCIL,2019928058,"124,400.00"
Department for Work and Pensions,Jobcentre Plus,10/03/2011,EMPLOYMENT PROGRAMMES,Balance Sheet Payments,TWL TRAINING LTD,2019912668,"123,670.40"
Department for Work and Pensions,"Pension, Disability Carers Services",15/03/2011,ACCOMMODATION,Pensions & Disability Carers Service ,TELEREAL TRILLIUM,2019937941,"123,539.99"
Department for Work and Pensions,Housing Benefits,14/03/2011,Housing Benefit Admin,WWG Housing Benefit,DUMFRIES & GALLOWAY COUNCIL,2019927923,"123,429.00"
Department for Work and Pensions,Jobcentre Plus,11/03/2011,APPS DEV,Jobcentre Plus,HP ENTERPRISE SERVICES UK LTD,2019917581,"123,315.42"
Department for Work and Pensions,Corporate,08/03/2011,IS/IT,Corporate IT ,SPECIALIST COMPUTER CENTRES PLC,2019829441,"123,087.78"
Department for Work and Pensions,Housing Benefits,14/03/2011,Housing Benefit Admin,WWG Housing Benefit,ISLE OF WIGHT COUNTY COUNCIL,2019927985,"123,033.00"
Department for Work and Pensions,Employment Programmes,14/03/2011,YOUNG PERSON'S GUARANTEE,WWEG EMPLOYMENT PROGRAMMES,SCOTTISH PREMIER LEAGUE LTD,2019926177,"122,850.00"
Department for Work and Pensions,Employment Programmes,21/03/2011,YOUNG PERSON'S GUARANTEE,WWEG EMPLOYMENT PROGRAMMES,INSPIRE FUTURES LTD,2020034603,"122,354.70"
Department for Work and Pensions,Corporate,31/03/2011,ACCOMMODATION,Group Finance,TELEREAL TRILLIUM,2020240268,"121,586.40"
Department for Work and Pensions,Housing Benefits,14/03/2011,Housing Benefit Admin,WWG Housing Benefit,NEATH PORT TALBOT COUNTY BOROUGH COUNCIL,2019928044,"120,511.00"
Department for Work and Pensions,Housing Benefits,14/03/2011,Housing Benefit Admin,WWG Housing Benefit,SLOUGH BOROUGH COUNCIL,2019928115,"120,273.00"
Department for Work and Pensions,Jobcentre Plus,31/03/2011,ACCOMMODATION,Jobcentre Plus,TELEREAL TRILLIUM,2020240268,"120,189.22"
Department for Work and Pensions,Jobcentre Plus,17/03/2011,EMPLOYMENT PROGRAMMES,Balance Sheet Payments,TNG BUSINESS SUPPORT LTD.,2020022364,"119,976.20"
Department for Work and Pensions,Housing Benefits,14/03/2011,Housing Benefit Admin,WWG Housing Benefit,READING BOROUGH COUNCIL,2019928083,"119,744.00"
Department for Work and Pensions,Jobcentre Plus,22/03/2011,OTHER EXPENDITURE,Jobcentre Plus,CAPITA BUSINESS SERVICES LTD,1004712,"119,571.34"
Department for Work and Pensions,Jobcentre Plus,17/03/2011,EMPLOYMENT PROGRAMMES,Balance Sheet Payments,WORKING LINKS EMPLOYMENT LIMITED,2020022504,"119,260.69"
Department for Work and Pensions,Corporate,09/03/2011,Accommodation Costs,Group Finance,SOUTHERN ELECTRIC PLC,2019899701,"118,888.55"
Department for Work and Pensions,Jobcentre Plus,03/03/2011,EMPLOYMENT PROGRAMMES,Balance Sheet Payments,ARGYLL & BUTE COUNCIL,2019800900,"118,855.07"
Department for Work and Pensions,Corporate,18/03/2011,COMPUTER SERVICES,Corporate IT ,ATOS ORIGIN IT SERVICES UK LTD,2020025412,"118,761.01"
Department for Work and Pensions,Corporate,18/03/2011,COMPUTER SERVICES,Corporate IT ,ATOS ORIGIN IT SERVICES UK LTD,2020025413,"118,761.01"
Department for Work and Pensions,Jobcentre Plus,10/03/2011,EMPLOYMENT PROGRAMMES,Balance Sheet Payments,THE INTRAINING GROUP,2019912627,"118,716.93"
Department for Work and Pensions,Corporate,11/03/2011,COMPUTER SERVICES,Corporate IT ,ACCENTURE UK LTD,2019915380,"118,610.52"
Department for Work and Pensions,Corporate,09/03/2011,Accommodation Costs,Group Finance,THE NEWCASTLE ESTATES PARTNERSHIP LTD,603409,"118,530.45"
Department for Work and Pensions,Employment Programmes,10/03/2011,YOUNG PERSON'S GUARANTEE,WWEG EMPLOYMENT PROGRAMMES,LANCASHIRE COUNTY COUNCIL,2019911106,"118,350.00"
Department for Work and Pensions,Jobcentre Plus,03/03/2011,EMPLOYMENT PROGRAMMES,Balance Sheet Payments,TRIAGE CENTRAL LTD,2019805743,"118,230.91"
Department for Work and Pensions,Housing Benefits,14/03/2011,Housing Benefit Admin,WWG Housing Benefit,BEDFORD BOROUGH COUNCIL,2019927847,"117,299.00"
Department for Work and Pensions,Housing Benefits,14/03/2011,Housing Benefit Admin,WWG Housing Benefit,FALKIRK DISTRICT COUNCIL,2019927948,"117,210.00"
Department for Work and Pensions,Housing Benefits,14/03/2011,Housing Benefit Admin,WWG Housing Benefit,NEWPORT CITY COUNCIL,2019928049,"117,059.00"
Department for Work and Pensions,Corporate,31/03/2011,PRINCES YOUTH TRUST,WWG SUMMARY,NATCEN,2020239163,"117,000.00"
Department for Work and Pensions,Employment Programmes,11/03/2011,YOUNG PERSON'S GUARANTEE,WWEG EMPLOYMENT PROGRAMMES,HAMPSHIRE COUNTY COUNCIL,2019917547,"116,195.75"
Department for Work and Pensions,Corporate,25/03/2011,COMPUTER SERVICES,Corporate IT ,ATOS ORIGIN IT SERVICES UK LTD,2020134351,"116,107.50"
Department for Work and Pensions,Employment Programmes,17/03/2011,YOUNG PERSON'S GUARANTEE,WWEG EMPLOYMENT PROGRAMMES,INSPIRE FUTURES LTD,2020019891,"116,100.00"
Department for Work and Pensions,Employment Programmes,08/03/2011,RESIDENTIAL TRAINING,WWEG EMPLOYMENT PROGRAMMES,QUEEN ALEXANDRA COLLEGE,1004677,"115,926.66"
Department for Work and Pensions,Housing Benefits,14/03/2011,Housing Benefit Admin,WWG Housing Benefit,HALTON BOROUGH COUNCIL,2019927965,"115,755.00"
Department for Work and Pensions,Jobcentre Plus,31/03/2011,EMPLOYMENT PROGRAMMES,Balance Sheet Payments,ARMSTRONG LEARNING LTD,2020235495,"115,679.29"
Department for Work and Pensions,Jobcentre Plus,09/03/2011,Accommodation Costs,Jobcentre Plus,CROWN OFFICE,2002476,"115,263.67"
Department for Work and Pensions,Corporate,04/03/2011,COMPUTER SERVICES,SHARED SERVICES,FUJITSU SERVICES,2019809316,"115,021.00"
Department for Work and Pensions,Employment Programmes,29/03/2011,NDDP,WWEG EMPLOYMENT PROGRAMMES,SENCIA LTD,2020156118,"114,740.67"
Department for Work and Pensions,Employment Programmes,14/03/2011,FND,WWEG EMPLOYMENT PROGRAMMES,SERCO LTD,2019926185,"114,696.00"
Department for Work and Pensions,Housing Benefits,14/03/2011,Housing Benefit Admin,WWG Housing Benefit,ABERDEENSHIRE COUNCIL,2019927830,"114,234.00"
Department for Work and Pensions,Employment Programmes,11/03/2011,EP GENERIC PROVIDER PAYMENTS,WWEG EMPLOYMENT PROGRAMMES,WORKING LINKS,2019920311,"114,123.67"
Department for Work and Pensions,Jobcentre Plus,10/03/2011,EMPLOYMENT PROGRAMMES,Balance Sheet Payments,A4E LTD,2019908044,"113,629.10"
Department for Work and Pensions,Jobcentre Plus,24/03/2011,EMPLOYMENT PROGRAMMES,Balance Sheet Payments,SKILLS TRAINING UK LTD,2020131467,"113,579.05"
Department for Work and Pensions,Housing Benefits,14/03/2011,Housing Benefit Admin,WWG Housing Benefit,HASTINGS BOROUGH COUNCIL,2019927972,"113,573.00"
Department for Work and Pensions,Housing Benefits,14/03/2011,Housing Benefit Admin,WWG Housing Benefit,WARRINGTON BOROUGH COUNCIL,2019928178,"113,344.00"
Department for Work and Pensions,Housing Benefits,14/03/2011,Housing Benefit Admin,WWG Housing Benefit,THURROCK BOROUGH COUNCIL,2019928166,"112,758.00"
Department for Work and Pensions,Corporate,24/03/2011,PRINCES YOUTH TRUST,WWG SUMMARY,NHS GREATER GLASGOW & CLYDE,1004716,"112,500.00"
Department for Work and Pensions,Employment Programmes,16/03/2011,YOUNG PERSON'S GUARANTEE,WWEG EMPLOYMENT PROGRAMMES,TELFORD & WREKIN COUNCIL,2020011954,"112,500.00"
Department for Work and Pensions,Corporate,11/03/2011,MISCELLANEOUS EXPENDITURE,EG SUMMARY,WARWICK INSTITUTE FOR EMPLOYMENT RESEARCH,2019920270,"112,151.88"
Department for Work and Pensions,Corporate,14/03/2011,IS/IT,Corporate IT ,HP ENTERPRISE SERVICES UK LTD,2019924415,"112,140.00"
Department for Work and Pensions,Corporate,18/03/2011,COMPUTER SERVICES,Corporate IT ,ACCENTURE UK LTD,2020025377,"111,992.37"
Department for Work and Pensions,Housing Benefits,14/03/2011,Housing Benefit Admin,WWG Housing Benefit,GLOUCESTER CITY COUNCIL,2019927958,"111,990.00"
Department for Work and Pensions,Jobcentre Plus,17/03/2011,EMPLOYMENT PROGRAMMES,Balance Sheet Payments,CLAVERHOUSE GROUP,2020017942,"111,604.65"
Department for Work and Pensions,Housing Benefits,14/03/2011,Housing Benefit Admin,WWG Housing Benefit,EAST AYRSHIRE COUNCIL FINANCE DEPARTMENT,2019927926,"111,443.00"
Department for Work and Pensions,Corporate,14/03/2011,TOTAL IT & EQUIPMENT COSTS,Corporate IT ,METHODS CONSULTING LTD,2019925418,"111,174.50"
Department for Work and Pensions,Housing Benefits,14/03/2011,Housing Benefit Admin,WWG Housing Benefit,HARTLEPOOL BOROUGH COUNCIL,2019927971,"111,096.00"
Department for Work and Pensions,Corporate,15/03/2011,TOTAL IT & EQUIPMENT COSTS,Corporate and Support Services,MINISTRY OF DEFENCE,2002491,"110,570.00"
Department for Work and Pensions,Corporate,15/03/2011,COMPUTER SERVICES,Corporate IT ,HP ENTERPRISE SERVICES UK LTD,2019932574,"110,510.87"
Department for Work and Pensions,Corporate,01/03/2011,PROFESSIONAL FEES,Corporate and Support Services,ORC INTERNATIONAL LIMITED,2019720198,"110,416.67"
Department for Work and Pensions,Jobcentre Plus,03/03/2011,EMPLOYMENT PROGRAMMES,Balance Sheet Payments,WORKING LINKS EMPLOYMENT LIMITED,2019805852,"110,368.70"
Department for Work and Pensions,Housing Benefits,14/03/2011,Housing Benefit Admin,WWG Housing Benefit,HEREFORDSHIRE COUNCIL,2019927974,"110,314.00"
Department for Work and Pensions,Employment Programmes,09/03/2011,YOUNG PERSON'S GUARANTEE,WWEG EMPLOYMENT PROGRAMMES,SOCIAL ENTERPRISE LONDON,2019899697,"110,250.00"
Department for Work and Pensions,Housing Benefits,14/03/2011,Housing Benefit Admin,WWG Housing Benefit,EAST LINDSEY DISTRICT COUNCIL,2019927933,"110,223.00"
Department for Work and Pensions,Employment Programmes,29/03/2011,YOUNG PERSON'S GUARANTEE,WWEG EMPLOYMENT PROGRAMMES,RCT HOMES,2020155113,"110,100.00"
Department for Work and Pensions,Corporate,15/03/2011,COMPUTER SERVICES,Corporate IT ,HP ENTERPRISE SERVICES UK LTD,2019932574,"109,994.68"
Department for Work and Pensions,Employment Programmes,16/03/2011,FND,WWEG EMPLOYMENT PROGRAMMES,SERCO LTD,2020008569,"109,917.00"
Department for Work and Pensions,Jobcentre Plus,03/03/2011,EMPLOYMENT PROGRAMMES,Balance Sheet Payments,BOURNEMOUTH & POOLE COLLEGE,2019801022,"109,901.29"
Department for Work and Pensions,Corporate,24/03/2011,MANAGEMENT CONSULTANCY,Corporate IT ,SIEMENS ENTERPRISE COMMUNICATIONS LTD,2020131459,"109,820.00"
Department for Work and Pensions,Corporate,31/03/2011,ACCOMMODATION,Group Finance,TELEREAL TRILLIUM,2020240267,"109,507.38"
Department for Work and Pensions,Employment Programmes,02/03/2011,YOUNG PERSON'S GUARANTEE,WWEG EMPLOYMENT PROGRAMMES,DUDLEY METROPOLITAN BOROUGH COUNCIL,2019743029,"109,500.00"
Department for Work and Pensions,Employment Programmes,18/03/2011,JSP ESF DEL P COSTS,WWEG EMPLOYMENT PROGRAMMES,WORKING LINKS,2020030181,"109,340.00"
Department for Work and Pensions,Housing Benefits,14/03/2011,Housing Benefit Admin,WWG Housing Benefit,CITY OF YORK COUNCIL,2019927898,"109,308.00"
Department for Work and Pensions,Jobcentre Plus,03/03/2011,EMPLOYMENT PROGRAMMES,Balance Sheet Payments,WORKING LINKS EMPLOYMENT LTD,2019805853,"109,255.14"
Department for Work and Pensions,Housing Benefits,14/03/2011,Housing Benefit Admin,WWG Housing Benefit,BRAINTREE DISTRICT COUNCIL,2019927862,"109,167.00"
Department for Work and Pensions,Housing Benefits,14/03/2011,Housing Benefit Admin,WWG Housing Benefit,BRIDGEND COUNTY BOROUGH COUNCIL,2019927865,"109,118.00"
Department for Work and Pensions,Corporate,31/03/2011,ACCOMMODATION,Group Finance,TELEREAL TRILLIUM,2020240267,"109,017.11"
Department for Work and Pensions,"Pension, Disability Carers Services",18/03/2011,COMPUTER SERVICES,Pensions & Disability Carers Service ,ATOS ORIGIN IT SERVICES UK LTD,2020025413,"108,998.07"
Department for Work and Pensions,Jobcentre Plus,31/03/2011,EMPLOYMENT PROGRAMMES,Balance Sheet Payments,WORKING LINKS EMPLOYMENT LIMITED,2020240454,"108,323.56"
Department for Work and Pensions,Housing Benefits,14/03/2011,Housing Benefit Admin,WWG Housing Benefit,WEST DUNBARTONSHIRE COUNCIL,2019928188,"108,265.00"
Department for Work and Pensions,Corporate,31/03/2011,ACCOMMODATION,Group Finance,TELEREAL TRILLIUM,2020240267,"108,109.04"
Department for Work and Pensions,Employment Programmes,07/03/2011,FND,WWEG EMPLOYMENT PROGRAMMES,WORKING LINKS,2019818142,"107,415.00"
Department for Work and Pensions,Corporate,14/03/2011,COMPUTER SERVICES,Group Finance,DELOITTE & TOUCHE LLP,2019922676,"107,356.50"
Department for Work and Pensions,Jobcentre Plus,31/03/2011,EMPLOYMENT PROGRAMMES,Balance Sheet Payments,SEETEC,2020240062,"107,327.55"
Department for Work and Pensions,Housing Benefits,14/03/2011,Housing Benefit Admin,WWG Housing Benefit,LONDON BOROUGH OF RICHMOND UPON THAMES,2019928020,"107,295.00"
Department for Work and Pensions,Employment Programmes,18/03/2011,JSP ESF DEL P COSTS,WWEG EMPLOYMENT PROGRAMMES,ESG HOLDINGS LTD,2020027411,"105,820.19"
Department for Work and Pensions,"Pension, Disability Carers Services",14/03/2011,CONTRACTED OUT OFFICE SERVICES,Pensions & Disability Carers Service ,CAPITA BUSINESS SERVICES LTD,2019922429,"105,709.16"
Department for Work and Pensions,Jobcentre Plus,31/03/2011,EMPLOYMENT PROGRAMMES,Balance Sheet Payments,CLAVERHOUSE GROUP,2020235914,"105,605.98"
Department for Work and Pensions,Employment Programmes,09/03/2011,YOUNG PERSON'S GUARANTEE,WWEG EMPLOYMENT PROGRAMMES,EAST AYRSHIRE COUNCIL,2019852617,"105,600.00"
Department for Work and Pensions,Employment Programmes,17/03/2011,YOUNG PERSON'S GUARANTEE,WWEG EMPLOYMENT PROGRAMMES,THE ROYAL SOCIETY OF WILDLIFE TRUSTS,2020022349,"105,600.00"
Department for Work and Pensions,Corporate,28/03/2011,PUBLICITY,Corporate and Support Services,COI TRADING FUND,2020140458,"105,580.89"
Department for Work and Pensions,Jobcentre Plus,15/03/2011,APPS DEV,Jobcentre Plus,HP ENTERPRISE SERVICES UK LTD,2019932575,"105,572.69"
Department for Work and Pensions,Employment Programmes,08/03/2011,RESIDENTIAL TRAINING,WWEG EMPLOYMENT PROGRAMMES,PORTLAND COLLEGE,1004676,"105,319.00"
Department for Work and Pensions,Jobcentre Plus,03/03/2011,EMPLOYMENT PROGRAMMES,Balance Sheet Payments,SEETEC,2019805506,"104,771.15"
Department for Work and Pensions,Employment Programmes,23/03/2011,RESIDENTIAL TRAINING,WWEG EMPLOYMENT PROGRAMMES,QUEEN ALEXANDRA COLLEGE,2020107017,"104,426.66"
Department for Work and Pensions,Employment Programmes,11/03/2011,YOUNG PERSON'S GUARANTEE,WWEG EMPLOYMENT PROGRAMMES,INVERCLYDE COUNCIL,2019917640,"104,400.00"
Department for Work and Pensions,"Pension, Disability Carers Services",15/03/2011,MEDICAL SERVICES,Pensions & Disability Carers Service ,ATOS ORIGIN IT SERVICES UK LTD,2019928971,"104,390.00"
Department for Work and Pensions,Housing Benefits,14/03/2011,Housing Benefit Admin,WWG Housing Benefit,SCARBOROUGH BOROUGH COUNCIL,2019928105,"104,363.00"
Department for Work and Pensions,Employment Programmes,23/03/2011,NDLP,WWEG EMPLOYMENT PROGRAMMES,WORKING LINKS,2020124135,"104,040.71"
Department for Work and Pensions,Corporate,25/03/2011,OTHER GOODS AND SERVICES,Corporate and Support Services,GOVERNMENT ACTUARYS DEPARTMENT GAD,2002521,"103,968.98"
Department for Work and Pensions,Housing Benefits,14/03/2011,Housing Benefit Admin,WWG Housing Benefit,IPSWICH BOROUGH COUNCIL,2019927983,"103,746.00"
Department for Work and Pensions,Employment Programmes,18/03/2011,JSP ESF DEL P COSTS,WWEG EMPLOYMENT PROGRAMMES,SEETEC BUSINESS TECHNOLOGY CENTRE LTD,2020029848,"103,412.89"
Department for Work and Pensions,Employment Programmes,18/03/2011,JSP ESF DEL P COSTS,WWEG EMPLOYMENT PROGRAMMES,THE INTRAINING GROUP,2020030023,"103,282.16"
Department for Work and Pensions,Corporate,31/03/2011,ACCOMMODATION,Group Finance,TELEREAL TRILLIUM,2020240267,"103,262.22"
Department for Work and Pensions,Jobcentre Plus,31/03/2011,EMPLOYMENT PROGRAMMES,Balance Sheet Payments,THE WISE GROUP,2020240287,"103,129.33"
Department for Work and Pensions,Housing Benefits,14/03/2011,Housing Benefit Admin,WWG Housing Benefit,PRESTON BOROUGH COUNCIL,2019928081,"103,073.00"
Department for Work and Pensions,Employment Programmes,24/03/2011,YOUNG PERSON'S GUARANTEE,WWEG EMPLOYMENT PROGRAMMES,WILTSHIRE COUNCIL,2020131868,"102,950.38"
Department for Work and Pensions,Corporate,31/03/2011,APPS DEV,SHARED SERVICES,ACCENTURE,2020235464,"102,932.39"
Department for Work and Pensions,Employment Programmes,25/03/2011,YOUNG PERSON'S GUARANTEE,WWEG EMPLOYMENT PROGRAMMES,LANCASHIRE COUNTY COUNCIL,2020137130,"102,900.00"
Department for Work and Pensions,Employment Programmes,30/03/2011,YOUNG PERSON'S GUARANTEE,WWEG EMPLOYMENT PROGRAMMES,STOKE ON TRENT CITY COUNCIL,2020226531,"102,900.00"
Department for Work and Pensions,Housing Benefits,14/03/2011,Housing Benefit Admin,WWG Housing Benefit,BATH & NORTH EAST SOMERSET COUNCIL,2019927846,"102,811.00"
Department for Work and Pensions,Employment Programmes,04/03/2011,YOUNG PERSON'S GUARANTEE,WWEG EMPLOYMENT PROGRAMMES,TBG LEARNING LTD,2019811493,"102,667.00"
Department for Work and Pensions,Corporate,18/03/2011,Accommodation Costs,Group Finance,SOUTHERN ELECTRIC PLC,2020029878,"102,231.40"
Department for Work and Pensions,Housing Benefits,14/03/2011,Housing Benefit Admin,WWG Housing Benefit,ARUN DISTRICT COUNCIL,2019927836,"102,173.00"
Department for Work and Pensions,Housing Benefits,14/03/2011,Housing Benefit Admin,WWG Housing Benefit,SWALE BOROUGH COUNCIL,2019928152,"101,712.00"
Department for Work and Pensions,Corporate,08/03/2011,PRINCES YOUTH TRUST,WWG SUMMARY,MORI SOCIAL RESEARCH INSTITUTE,2019827185,"101,588.00"
Department for Work and Pensions,Housing Benefits,14/03/2011,Housing Benefit Admin,WWG Housing Benefit,KINGS LYNN & WEST NORFOLK BOROUGH COUNCIL,2019927987,"101,561.00"
Department for Work and Pensions,Employment Programmes,01/03/2011,YOUNG PERSON'S GUARANTEE,WWEG EMPLOYMENT PROGRAMMES,CARDIFF CITY COUNCIL,2019722841,"101,250.00"
Department for Work and Pensions,Employment Programmes,07/03/2011,NDDP,WWEG EMPLOYMENT PROGRAMMES,ACTION FOR EMPLOYMENTS,2019813284,"101,076.89"
Department for Work and Pensions,Corporate,31/03/2011,ACCOMMODATION,SHARED SERVICES,TELEREAL TRILLIUM,2020240268,"100,861.20"
Department for Work and Pensions,Housing Benefits,14/03/2011,Housing Benefit Admin,WWG Housing Benefit,COLCHESTER BOROUGH COUNCIL,2019927900,"100,060.00"
Department for Work and Pensions,Employment Programmes,03/03/2011,YOUNG PERSON'S GUARANTEE,WWEG EMPLOYMENT PROGRAMMES,LEICESTER CITY COUNCIL,2019804231,"99,450.00"
Department for Work and Pensions,Jobcentre Plus,03/03/2011,EMPLOYMENT PROGRAMMES,Balance Sheet Payments,REMPLOY,2019805136,"99,383.53"
Department for Work and Pensions,Jobcentre Plus,10/03/2011,EMPLOYMENT PROGRAMMES,Balance Sheet Payments,WORKING LINKS EMPLOYMENT LTD,2019912792,"98,989.04"
Department for Work and Pensions,Jobcentre Plus,24/03/2011,EMPLOYMENT PROGRAMMES,Balance Sheet Payments,WORKING LINKS,2020131882,"98,665.19"
Department for Work and Pensions,Jobcentre Plus,10/03/2011,EMPLOYMENT PROGRAMMES,Balance Sheet Payments,VT SOUTHERN CAREERS LTD COMMUNITY OUTREACH SERVICE,2019912732,"98,532.00"
Department for Work and Pensions,Employment Programmes,29/03/2011,WORK PREPARATION,WWEG EMPLOYMENT PROGRAMMES,MENCAP,2020153781,"98,351.65"
Department for Work and Pensions,Jobcentre Plus,03/03/2011,EMPLOYMENT PROGRAMMES,Balance Sheet Payments,CLAVERHOUSE GROUP,2019801310,"97,295.78"
Department for Work and Pensions,Housing Benefits,14/03/2011,Housing Benefit Admin,WWG Housing Benefit,WAVENEY DISTRICT COUNCIL,2019928181,"97,077.00"
Department for Work and Pensions,Corporate,17/03/2011,COMPUTER SERVICES,Corporate IT ,ACCENTURE UK LTD,2020017480,"97,003.89"
Department for Work and Pensions,Housing Benefits,14/03/2011,Housing Benefit Admin,WWG Housing Benefit,INVERCLYDE DISTRICT COUNCIL,2019927982,"96,963.00"
Department for Work and Pensions,Housing Benefits,14/03/2011,Housing Benefit Admin,WWG Housing Benefit,ROYAL BOROUGH OF KINGSTON UPON THAMES,2019928096,"96,277.00"
Department for Work and Pensions,Corporate,23/03/2011,EU PROGRAMMES,WWG SUMMARY,DFE RM SHARED SERVICES,2002514,"96,116.37"
Department for Work and Pensions,Jobcentre Plus,31/03/2011,EMPLOYMENT PROGRAMMES,Balance Sheet Payments,TRIAGE CENTRAL LTD,2020240318,"95,946.55"
Department for Work and Pensions,Housing Benefits,14/03/2011,Housing Benefit Admin,WWG Housing Benefit,SOUTH SOMERSET DISTRICT COUNCIL,2019928131,"95,928.00"
Department for Work and Pensions,Jobcentre Plus,31/03/2011,EMPLOYMENT PROGRAMMES,Balance Sheet Payments,BOURNEMOUTH & POOLE COLLEGE,2020235598,"95,671.05"
Department for Work and Pensions,Employment Programmes,02/03/2011,FND,WWEG EMPLOYMENT PROGRAMMES,SERCO LTD,2019792455,"95,580.00"
Department for Work and Pensions,Employment Programmes,01/03/2011,YOUNG PERSON'S GUARANTEE,WWEG EMPLOYMENT PROGRAMMES,BRISTOL CITY COUNCIL,2019713951,"95,550.00"
Department for Work and Pensions,Employment Programmes,14/03/2011,YOUNG PERSON'S GUARANTEE,WWEG EMPLOYMENT PROGRAMMES,SURREY COUNTY COUNCIL,2019926222,"95,500.00"
Department for Work and Pensions,Housing Benefits,14/03/2011,Housing Benefit Admin,WWG Housing Benefit,FLINTSHIRE COUNTY COUNCIL,2019927952,"94,931.00"
Department for Work and Pensions,Jobcentre Plus,03/03/2011,EMPLOYMENT PROGRAMMES,Balance Sheet Payments,VT SOUTHERN CAREERS LTD COMMUNITY OUTREACH SERVICE,2019805802,"94,229.07"
Department for Work and Pensions,Jobcentre Plus,31/03/2011,EMPLOYMENT PROGRAMMES,Balance Sheet Payments,VT SOUTHERN CAREERS LTD COMMUNITY OUTREACH SERVICE,2020240391,"94,229.07"
Department for Work and Pensions,Housing Benefits,14/03/2011,Housing Benefit Admin,WWG Housing Benefit,GREAT YARMOUTH COUNCIL,2019927961,"94,189.00"
Department for Work and Pensions,Jobcentre Plus,03/03/2011,EMPLOYMENT PROGRAMMES,Balance Sheet Payments,INBIZ LTD,2019803463,"94,053.46"
Department for Work and Pensions,Employment Programmes,17/03/2011,FND,WWEG EMPLOYMENT PROGRAMMES,SERCO LTD,2020022154,"93,987.00"
Department for Work and Pensions,Housing Benefits,14/03/2011,Housing Benefit Admin,WWG Housing Benefit,BASINGSTOKE DISTRICT COUNCIL,2019927844,"93,836.00"
Department for Work and Pensions,Jobcentre Plus,03/03/2011,EMPLOYMENT PROGRAMMES,Balance Sheet Payments,SEETEC,2019805509,"93,746.60"
Department for Work and Pensions,Housing Benefits,14/03/2011,Housing Benefit Admin,WWG Housing Benefit,BURNLEY BOROUGH COUNCIL,2019927872,"93,460.00"
Department for Work and Pensions,Housing Benefits,14/03/2011,Housing Benefit Admin,WWG Housing Benefit,HUNTINGDON DISTRICT COUNCIL,2019927980,"93,444.00"
Department for Work and Pensions,Jobcentre Plus,31/03/2011,EMPLOYMENT PROGRAMMES,Balance Sheet Payments,TWL TRAINING LTD,2020240324,"92,699.28"
Department for Work and Pensions,Housing Benefits,14/03/2011,Housing Benefit Admin,WWG Housing Benefit,LANCASTER CITY COUNCIL,2019927991,"92,694.00"
Department for Work and Pensions,Corporate,18/03/2011,TELEPHONE AND POSTAGE,Group Finance,G3 WORLDWIDE MAIL UK LTD,2020027573,"92,473.03"
Department for Work and Pensions,Jobcentre Plus,31/03/2011,EMPLOYMENT PROGRAMMES,Balance Sheet Payments,SEETEC,2020240060,"92,458.03"
Department for Work and Pensions,Jobcentre Plus,31/03/2011,EMPLOYMENT PROGRAMMES,Balance Sheet Payments,OMEGA RESOURCE GROUP PLC,2020239205,"92,350.00"
Department for Work and Pensions,Housing Benefits,14/03/2011,Housing Benefit Admin,WWG Housing Benefit,PERTH & KINROSS COUNCIL,2019928075,"92,249.00"
Department for Work and Pensions,Housing Benefits,14/03/2011,Housing Benefit Admin,WWG Housing Benefit,OXFORD CITY COUNCIL,2019928072,"92,020.00"
Department for Work and Pensions,Corporate,15/03/2011,NETWORK,Corporate IT ,BT GLOBAL SERVICES,2019929198,"91,606.80"
Department for Work and Pensions,Jobcentre Plus,03/03/2011,EMPLOYMENT PROGRAMMES,Balance Sheet Payments,THE WISE GROUP,2019805710,"91,465.81"
Department for Work and Pensions,Employment Programmes,02/03/2011,YOUNG PERSON'S GUARANTEE,WWEG EMPLOYMENT PROGRAMMES,LONDON BOROUGH OF GREENWICH,2019769380,"90,900.00"
Department for Work and Pensions,Jobcentre Plus,10/03/2011,EMPLOYMENT PROGRAMMES,Balance Sheet Payments,CAREERS DEVELOPMENT GROUP LTD,2019908487,"90,671.88"
Department for Work and Pensions,Housing Benefits,14/03/2011,Housing Benefit Admin,WWG Housing Benefit,DARLINGTON BOROUGH COUNCIL,2019927914,"90,656.00"
Department for Work and Pensions,Housing Benefits,14/03/2011,Housing Benefit Admin,WWG Housing Benefit,PENDLE BOROUGH COUNCIL,2019928074,"90,566.00"
Department for Work and Pensions,Housing Benefits,14/03/2011,Housing Benefit Admin,WWG Housing Benefit,EASTBOURNE BOROUGH COUNCIL,2019927939,"90,216.00"
Department for Work and Pensions,Housing Benefits,14/03/2011,Housing Benefit Admin,WWG Housing Benefit,NEW FOREST DISTRICT COUNCIL,2019928045,"89,983.00"
Department for Work and Pensions,Housing Benefits,14/03/2011,Housing Benefit Admin,WWG Housing Benefit,POOLE BOROUGH COUNCIL,2019928078,"89,657.00"
Department for Work and Pensions,"Pension, Disability Carers Services",01/03/2011,COMPUTER SERVICES,Pensions & Disability Carers Service ,ACCENTURE,2019713659,"89,473.97"
Department for Work and Pensions,Corporate,30/03/2011,IS/IT,Corporate IT ,SPECIALIST COMPUTER CENTRE PLC,2020226506,"89,443.54"
Department for Work and Pensions,Employment Programmes,23/03/2011,YOUNG PERSON'S GUARANTEE,WWEG EMPLOYMENT PROGRAMMES,HASTINGS BOROUGH COUNCIL,2020076648,"89,400.00"
Department for Work and Pensions,Jobcentre Plus,03/03/2011,EMPLOYMENT PROGRAMMES,Balance Sheet Payments,SCVO,2019805502,"89,265.74"
Department for Work and Pensions,Corporate,25/03/2011,CAPITAL GRANTS,Group Finance,STREET UK LTD,2020138165,"89,133.00"
Department for Work and Pensions,Housing Benefits,14/03/2011,Housing Benefit Admin,WWG Housing Benefit,NUNEATON BOROUGH COUNCIL,2019928068,"88,908.00"
Department for Work and Pensions,Housing Benefits,14/03/2011,Housing Benefit Admin,WWG Housing Benefit,SOUTH AYRSHIRE COUNCIL,2019928117,"88,625.00"
Department for Work and Pensions,Corporate,15/03/2011,APPS DEV,Corporate IT ,HP ENTERPRISE SERVICES UK LTD,2019932574,"88,088.83"
Department for Work and Pensions,Corporate,31/03/2011,OTHER GOODS AND SERVICES,WWG SUMMARY,HEALTH & SAFETY EXECUTIVE,2002552,"87,258.00"
Department for Work and Pensions,Jobcentre Plus,31/03/2011,EMPLOYMENT PROGRAMMES,Balance Sheet Payments,INBIZ LTD,2020237758,"87,207.68"
Department for Work and Pensions,Housing Benefits,14/03/2011,Housing Benefit Admin,WWG Housing Benefit,CANTERBURY CITY COUNCIL,2019927878,"87,006.00"
Department for Work and Pensions,Housing Benefits,14/03/2011,Housing Benefit Admin,WWG Housing Benefit,ASHFIELD DISTRICT COUNCIL,2019927837,"86,991.00"
Department for Work and Pensions,"Pension, Disability Carers Services",15/03/2011,TELEPHONE AND POSTAGE,Pensions & Disability Carers Service ,ROYAL MAIL GROUP PLC,2019936681,"86,549.72"
Department for Work and Pensions,Housing Benefits,14/03/2011,Housing Benefit Admin,WWG Housing Benefit,WYCOMBE DISTRICT COUNCIL,2019928207,"86,428.00"
Department for Work and Pensions,Employment Programmes,18/03/2011,YOUNG PERSON'S GUARANTEE,WWEG EMPLOYMENT PROGRAMMES,LONDON BOROUGH OF HARINGEY,2020028548,"86,400.00"
Department for Work and Pensions,Jobcentre Plus,10/03/2011,EMPLOYMENT PROGRAMMES,Balance Sheet Payments,REED IN PARTNERSHIP,2019912028,"86,101.56"
Department for Work and Pensions,Housing Benefits,14/03/2011,Housing Benefit Admin,WWG Housing Benefit,CHERWELL DISTRICT COUNCIL,2019927887,"85,565.00"
Department for Work and Pensions,Housing Benefits,14/03/2011,Housing Benefit Admin,WWG Housing Benefit,CHELMSFORD BOROUGH COUNCIL,2019927885,"85,484.00"
Department for Work and Pensions,Housing Benefits,14/03/2011,Housing Benefit Admin,WWG Housing Benefit,SCOTTISH BORDERS COUNCIL,2019928106,"85,327.00"
Department for Work and Pensions,Jobcentre Plus,24/03/2011,EMPLOYMENT PROGRAMMES,Balance Sheet Payments,WORKING LINKS,2020131883,"85,291.97"
Department for Work and Pensions,Employment Programmes,16/03/2011,ACCESS TO WORK,WWEG EMPLOYMENT PROGRAMMES,DEAFWAY,2019957561,"85,266.26"
Department for Work and Pensions,Corporate,24/03/2011,COMPUTER SERVICES,Corporate IT ,SIEMENS ENTERPRISE COMMUNICATIONS LTD,2020131459,"85,200.00"
Department for Work and Pensions,Housing Benefits,14/03/2011,Housing Benefit Admin,WWG Housing Benefit,MAIDSTONE BOROUGH COUNCIL,2019928027,"85,159.00"
Department for Work and Pensions,Housing Benefits,14/03/2011,Housing Benefit Admin,WWG Housing Benefit,CHESTERFIELD BOROUGH COUNCIL,2019927890,"85,108.00"
Department for Work and Pensions,Employment Programmes,18/03/2011,YOUNG PERSON'S GUARANTEE,WWEG EMPLOYMENT PROGRAMMES,WOLSELEY COMMUNITY ECONOMIC DEVELOPMENT TRUST,2020030176,"85,021.90"
Department for Work and Pensions,Housing Benefits,14/03/2011,Housing Benefit Admin,WWG Housing Benefit,MANSFIELD DISTRICT COUNCIL,2019928031,"84,756.00"
Department for Work and Pensions,"Pension, Disability Carers Services",18/03/2011,COMPUTER SERVICES,Pensions & Disability Carers Service ,ACCENTURE,2020025376,"84,751.16"
Department for Work and Pensions,Employment Programmes,17/03/2011,YOUNG PERSON'S GUARANTEE,WWEG EMPLOYMENT PROGRAMMES,HARTLEPOOL BOROUGH COUNCIL,2020019816,"84,450.00"
Department for Work and Pensions,Jobcentre Plus,03/03/2011,EMPLOYMENT PROGRAMMES,Balance Sheet Payments,BTCV ENTERPRISES LTD,2019801036,"84,414.80"
Department for Work and Pensions,Housing Benefits,14/03/2011,Housing Benefit Admin,WWG Housing Benefit,DACORUM BOROUGH COUNCIL,2019927913,"84,357.00"
Department for Work and Pensions,Housing Benefits,14/03/2011,Housing Benefit Admin,WWG Housing Benefit,TORFAEN BOROUGH COUNCIL,2019928169,"84,277.00"
Department for Work and Pensions,Corporate,24/03/2011,COMPUTER SERVICES,Corporate and Support Services,HMRC,2020129023,"84,209.00"
Department for Work and Pensions,Corporate,09/03/2011,COMPUTER SERVICES,SHARED SERVICES,FUJITSU SERVICES LTD,2019853644,"84,000.00"
Department for Work and Pensions,Housing Benefits,14/03/2011,Housing Benefit Admin,WWG Housing Benefit,WEST BERKSHIRE COUNCIL,2019928185,"83,922.00"
Department for Work and Pensions,Housing Benefits,14/03/2011,Housing Benefit Admin,WWG Housing Benefit,PEMBROKESHIRE COUNTY COUNCIL,2019928073,"83,846.00"
Department for Work and Pensions,Employment Programmes,03/03/2011,LOW VALUE PROCUREMENT,WWEG EMPLOYMENT PROGRAMMES,WILTSHIRE COUNCIL,2019805843,"83,779.80"
Department for Work and Pensions,Housing Benefits,14/03/2011,Housing Benefit Admin,WWG Housing Benefit,CRAWLEY BOROUGH COUNCIL,2019927911,"83,766.00"
Department for Work and Pensions,Jobcentre Plus,24/03/2011,EMPLOYMENT PROGRAMMES,Balance Sheet Payments,THE WISE GROUP,2020131692,"83,625.89"
Department for Work and Pensions,Housing Benefits,14/03/2011,Housing Benefit Admin,WWG Housing Benefit,SHEPWAY DISTRICT COUNCIL,2019928112,"83,515.00"
Department for Work and Pensions,Employment Programmes,21/03/2011,YOUNG PERSON'S GUARANTEE,WWEG EMPLOYMENT PROGRAMMES,THE FOOTBALL LEAGUE COMMUNITY LTD,2020036676,"83,400.00"
Department for Work and Pensions,Jobcentre Plus,03/03/2011,EMPLOYMENT PROGRAMMES,Balance Sheet Payments,CORNWALL COUNTY COUNCIL,2019801323,"83,324.01"
Department for Work and Pensions,Jobcentre Plus,31/03/2011,EMPLOYMENT PROGRAMMES,Balance Sheet Payments,CORNWALL COUNTY COUNCIL,2020235933,"83,324.01"
Department for Work and Pensions,Corporate,14/03/2011,IS/IT,Corporate IT ,HP ENTERPRISE SERVICES UK LTD,2019924414,"83,275.99"
Department for Work and Pensions,Jobcentre Plus,03/03/2011,EMPLOYMENT PROGRAMMES,Balance Sheet Payments,SEETEC,2019805508,"83,117.98"
Department for Work and Pensions,Jobcentre Plus,31/03/2011,EMPLOYMENT PROGRAMMES,Balance Sheet Payments,SEETEC,2020240061,"83,117.98"
Department for Work and Pensions,Housing Benefits,14/03/2011,Housing Benefit Admin,WWG Housing Benefit,AYLESBURY VALE DISTRICT COUNCIL,2019927839,"82,877.00"
Department for Work and Pensions,Housing Benefits,14/03/2011,Housing Benefit Admin,WWG Housing Benefit,DOVER DISTRICT COUNCIL,2019927921,"82,729.00"
Department for Work and Pensions,Housing Benefits,14/03/2011,Housing Benefit Admin,WWG Housing Benefit,GEDLING BOROUGH COUNCIL,2019927957,"82,671.00"
Department for Work and Pensions,Employment Programmes,09/03/2011,YOUNG PERSON'S GUARANTEE,WWEG EMPLOYMENT PROGRAMMES,REDCAR & CLEVELAND BOROUGH COUNCIL,2019890947,"82,650.00"
Department for Work and Pensions,Housing Benefits,14/03/2011,Housing Benefit Admin,WWG Housing Benefit,GUILDFORD BOROUGH COUNCIL,2019927962,"82,366.00"
Department for Work and Pensions,Housing Benefits,14/03/2011,Housing Benefit Admin,WWG Housing Benefit,WREXHAM COUNTY BOROUGH COUNCIL,2019928205,"81,829.00"
Department for Work and Pensions,Employment Programmes,10/03/2011,JSP ESF DEL P COSTS,WWEG EMPLOYMENT PROGRAMMES,INGEUS UK LTD,2019910294,"81,737.25"
Department for Work and Pensions,Housing Benefits,14/03/2011,Housing Benefit Admin,WWG Housing Benefit,CONWY COUNTY BOROUGH COUNCIL,2019927902,"81,558.00"
Department for Work and Pensions,Jobcentre Plus,16/03/2011,IS/IT,Jobcentre Plus,STERIA,2020008868,"81,390.37"
Department for Work and Pensions,Housing Benefits,14/03/2011,Housing Benefit Admin,WWG Housing Benefit,WYRE FOREST DISTRICT COUNCIL,2019928209,"81,319.00"
Department for Work and Pensions,Corporate,07/03/2011,EU PROGRAMMES,WWG SUMMARY,UNIVERSITY OF MANCHESTER,2019818017,"81,302.40"
Department for Work and Pensions,Housing Benefits,14/03/2011,Housing Benefit Admin,WWG Housing Benefit,TEIGNBRIDGE DISTRICT COUNCIL,2019928159,"81,249.00"
Department for Work and Pensions,Employment Programmes,04/03/2011,FND,WWEG EMPLOYMENT PROGRAMMES,SERCO LTD,2019811374,"81,243.00"
Department for Work and Pensions,Housing Benefits,14/03/2011,Housing Benefit Admin,WWG Housing Benefit,BRECKLAND DISTRICT COUNCIL,2019927863,"81,239.00"
Department for Work and Pensions,Housing Benefits,14/03/2011,Housing Benefit Admin,WWG Housing Benefit,CHARNWOOD BOROUGH COUNCIL,2019927884,"80,708.00"
Department for Work and Pensions,Corporate,09/03/2011,IS/IT,Corporate and Support Services,SPECIALIST COMPUTER CENTRE PLC,2019899715,"80,654.28"
Department for Work and Pensions,Housing Benefits,14/03/2011,Housing Benefit Admin,WWG Housing Benefit,HAVANT BOROUGH COUNCIL,2019927973,"80,018.00"
Department for Work and Pensions,Housing Benefits,14/03/2011,Housing Benefit Admin,WWG Housing Benefit,NEWCASTLE UNDER LYME BOROUGH COUNCIL,2019928048,"79,578.00"
Department for Work and Pensions,Corporate,31/03/2011,ACCOMMODATION,Group Finance,TELEREAL TRILLIUM,2020240267,"79,493.82"
Department for Work and Pensions,Housing Benefits,14/03/2011,Housing Benefit Admin,WWG Housing Benefit,VALE OF GLAMORGAN COUNCIL,2019928174,"79,449.00"
Department for Work and Pensions,Housing Benefits,14/03/2011,Housing Benefit Admin,WWG Housing Benefit,NORTH HERTFORDSHIRE DISTRICT COUNCIL,2019928055,"79,170.00"
Department for Work and Pensions,Employment Programmes,23/03/2011,YOUNG PERSON'S GUARANTEE,WWEG EMPLOYMENT PROGRAMMES,PETERBOROUGH CITY COUNCIL,2020106931,"79,050.00"
Department for Work and Pensions,Housing Benefits,14/03/2011,Housing Benefit Admin,WWG Housing Benefit,HARROGATE BOROUGH COUNCIL,2019927969,"78,904.00"
Department for Work and Pensions,Corporate,28/03/2011,EU PROGRAMMES,WWG SUMMARY,AUDIT COMMISSION,2020140113,"78,504.00"
Department for Work and Pensions,Employment Programmes,15/03/2011,YOUNG PERSON'S GUARANTEE,WWEG EMPLOYMENT PROGRAMMES,BLACK COUNTRY ACADEMY,2019929183,"78,263.46"
Department for Work and Pensions,"Pension, Disability Carers Services",10/03/2011,AOS CONTRACTED OUT SERVICES,Pensions & Disability Carers Service ,XEROX UK LIMITED,2019912797,"78,224.59"
Department for Work and Pensions,Housing Benefits,14/03/2011,Housing Benefit Admin,WWG Housing Benefit,AMBER VALLEY BOROUGH COUNCIL,2019927833,"78,203.00"
Department for Work and Pensions,Housing Benefits,14/03/2011,Housing Benefit Admin,WWG Housing Benefit,GWYNEDD COUNCIL,2019927963,"78,112.00"
Department for Work and Pensions,Housing Benefits,14/03/2011,Housing Benefit Admin,WWG Housing Benefit,HYNDBURN BOROUGH COUNCIL,2019927981,"77,999.00"
Department for Work and Pensions,Employment Programmes,18/03/2011,YOUNG PERSON'S GUARANTEE,WWEG EMPLOYMENT PROGRAMMES,LONDON BOROUGH OF LAMBETH LEMBETH FIRST,2020028550,"77,850.00"
Department for Work and Pensions,Employment Programmes,04/03/2011,YOUNG PERSON'S GUARANTEE,WWEG EMPLOYMENT PROGRAMMES,PROSPECT SERVICES LTD,2019810866,"77,550.00"
Department for Work and Pensions,Employment Programmes,23/03/2011,FND,WWEG EMPLOYMENT PROGRAMMES,FOURSTAR EMPLOYMENT & SKILLS LTD,2020072740,"77,463.00"
Department for Work and Pensions,Housing Benefits,14/03/2011,Housing Benefit Admin,WWG Housing Benefit,CHELTENHAM BOROUGH COUNCIL,2019927886,"77,452.00"
Department for Work and Pensions,Jobcentre Plus,03/03/2011,EMPLOYMENT PROGRAMMES,Balance Sheet Payments,CHESHIRE TRAINING ASSOCIATES LTD,2019801300,"77,112.71"
Department for Work and Pensions,Corporate,23/03/2011,PUBLICITY,Corporate and Support Services,COI CENTRAL OFFICE OF INFO,2020063277,"76,958.85"
Department for Work and Pensions,Housing Benefits,14/03/2011,Housing Benefit Admin,WWG Housing Benefit,FENLAND DISTRICT COUNCIL,2019927950,"76,675.00"
Department for Work and Pensions,Employment Programmes,16/03/2011,YOUNG PERSON'S GUARANTEE,WWEG EMPLOYMENT PROGRAMMES,CREATIVE & CULTURAL SKILLS,2019952999,"76,650.00"
Department for Work and Pensions,Housing Benefits,14/03/2011,Housing Benefit Admin,WWG Housing Benefit,EAST STAFFORDSHIRE DISTRICT COUNCIL,2019927938,"76,562.00"
Department for Work and Pensions,Housing Benefits,14/03/2011,Housing Benefit Admin,WWG Housing Benefit,WYRE BOROUGH COUNCIL,2019928208,"76,509.00"
Department for Work and Pensions,Employment Programmes,10/03/2011,YOUNG PERSON'S GUARANTEE,WWEG EMPLOYMENT PROGRAMMES,COMMUNITY ENTERPRISE DERBY CIC,2019908532,"76,500.00"
Department for Work and Pensions,Jobcentre Plus,31/03/2011,EMPLOYMENT PROGRAMMES,Balance Sheet Payments,SCVO,2020240058,"76,450.71"
Department for Work and Pensions,Jobcentre Plus,03/03/2011,EMPLOYMENT PROGRAMMES,Balance Sheet Payments,TNG LTD,2019805725,"76,408.89"
Department for Work and Pensions,Housing Benefits,14/03/2011,Housing Benefit Admin,WWG Housing Benefit,HARLOW DISTRICT COUNCIL,2019927968,"76,372.00"
Department for Work and Pensions,European Social Fund,16/03/2011,ESF NON-PREFUNDED EXPENDITURE,WWEG EUROPEAN SOCIAL FUND,SOCIAL ENTERPRISE NETWORK LTD,5000000503,"76,303.00"
Department for Work and Pensions,Housing Benefits,14/03/2011,Housing Benefit Admin,WWG Housing Benefit,BASSETLAW DISTRICT COUNCIL,2019927845,"76,155.00"
Department for Work and Pensions,Corporate,25/03/2011,MANAGEMENT CONSULTANCY,Corporate and Support Services,CABINET OFFICE,2002517,"76,000.00"
Department for Work and Pensions,Housing Benefits,14/03/2011,Housing Benefit Admin,WWG Housing Benefit,EREWASH BOROUGH COUNCIL,2019927946,"75,988.00"
Department for Work and Pensions,Employment Programmes,22/03/2011,YOUNG PERSON'S GUARANTEE,WWEG EMPLOYMENT PROGRAMMES,PINNACLE PEOPLE ENTERPRISES CIC,2020046685,"75,720.75"
Department for Work and Pensions,Housing Benefits,14/03/2011,Housing Benefit Admin,WWG Housing Benefit,LINCOLN CITY COUNCIL,2019927996,"75,618.00"
Department for Work and Pensions,Corporate,16/03/2011,COMPUTER SERVICES,Corporate IT ,HP ENTERPRISE SERVICES UK LTD,2019966328,"75,547.72"
Department for Work and Pensions,European Social Fund,28/03/2011,ESF NON-PREFUNDED EXPENDITURE,WWEG EUROPEAN SOCIAL FUND,CORNWALL COUNTY COUNCIL,5000000510,"75,508.00"
Department for Work and Pensions,Employment Programmes,03/03/2011,YOUNG PERSON'S GUARANTEE,WWEG EMPLOYMENT PROGRAMMES,CARMARTHENSHIRE COUNTY COUNCIL,2019807778,"75,450.00"
Department for Work and Pensions,Employment Programmes,11/03/2011,ND 18-24 GATEWAY,WWEG EMPLOYMENT PROGRAMMES,MANAGEMENT INTRODUCTIONS LTD,2019918848,"75,045.24"
Department for Work and Pensions,Corporate,16/03/2011,CAPITAL GRANTS,Group Finance,MANCHESTER CREDIT UNION,2019990972,"75,000.00"
Department for Work and Pensions,Corporate,30/03/2011,"OFFICE SUPPLIES, PRINTING AND PUBLICITY",Corporate and Support Services,COI TRADING FUND,2020171201,"75,000.00"
Department for Work and Pensions,Housing Benefits,14/03/2011,Housing Benefit Admin,WWG Housing Benefit,WORTHING BOROUGH COUNCIL,2019928204,"74,844.00"
Department for Work and Pensions,Housing Benefits,14/03/2011,Housing Benefit Admin,WWG Housing Benefit,EXETER CITY COUNCIL,2019927947,"74,807.00"
Department for Work and Pensions,Jobcentre Plus,03/03/2011,EMPLOYMENT PROGRAMMES,Balance Sheet Payments,STOKE ON TRENT COLLEGE,2019805571,"74,684.54"
Department for Work and Pensions,Jobcentre Plus,31/03/2011,EMPLOYMENT PROGRAMMES,Balance Sheet Payments,STOKE ON TRENT COLLEGE,2020240123,"74,684.54"
Department for Work and Pensions,Jobcentre Plus,31/03/2011,EMPLOYMENT PROGRAMMES,Balance Sheet Payments,ARGYLL & BUTE COUNCIL,2020235494,"74,609.85"
Department for Work and Pensions,Housing Benefits,14/03/2011,Housing Benefit Admin,WWG Housing Benefit,ANGUS COUNCIL,2019927834,"74,534.00"
Department for Work and Pensions,Employment Programmes,04/03/2011,FND,WWEG EMPLOYMENT PROGRAMMES,SERCO LTD,2019811374,"74,492.00"
Department for Work and Pensions,Corporate,18/03/2011,APPS DEV,Group Finance,SIEMENS IT SOLUTIONS & SERVICES LTD,2020029860,"74,438.60"
Department for Work and Pensions,Employment Programmes,18/03/2011,YOUNG PERSON'S GUARANTEE,WWEG EMPLOYMENT PROGRAMMES,SHROPSHIRE COUNCIL,2020029858,"74,400.00"
Department for Work and Pensions,Employment Programmes,21/03/2011,YOUNG PERSON'S GUARANTEE,WWEG EMPLOYMENT PROGRAMMES,SOCIAL ENTERPRISE LONDON,2020036547,"74,250.00"
Department for Work and Pensions,Corporate,10/03/2011,COMPUTER SERVICES,Corporate IT ,ACCENTURE,2019908054,"74,085.00"
Department for Work and Pensions,Corporate,17/03/2011,COMPUTER SERVICES,Corporate IT ,ATOS ORIGIN IT SERVICES UK LTD,2020017532,"74,042.10"
Department for Work and Pensions,Corporate,25/03/2011,COMPUTER SERVICES,Corporate IT ,ATOS ORIGIN IT SERVICES UK LTD,2020134351,"74,042.10"
Department for Work and Pensions,Corporate,17/03/2011,IS/IT,Corporate IT ,SPECIALIST COMPUTER CENTRES PLC,2020022198,"74,015.68"
Department for Work and Pensions,Employment Programmes,11/03/2011,EP GENERIC PROVIDER PAYMENTS,WWEG EMPLOYMENT PROGRAMMES,REED IN PARTNERSHIP,2019919464,"73,902.92"
Department for Work and Pensions,Housing Benefits,14/03/2011,Housing Benefit Admin,WWG Housing Benefit,SOUTH KESTEVEN DISTRICT COUNCIL,2019928124,"73,881.00"
Department for Work and Pensions,European Social Fund,28/03/2011,ESF NON-PREFUNDED EXPENDITURE,WWEG EUROPEAN SOCIAL FUND,PLUSS ORGANISATION LTD,5000000516,"73,632.00"
Department for Work and Pensions,Housing Benefits,14/03/2011,Housing Benefit Admin,WWG Housing Benefit,POWYS COUNTY COUNCIL,2019928080,"73,533.00"
Department for Work and Pensions,Corporate,24/03/2011,PUBLICITY,Corporate and Support Services,COI CENTRAL OFFICE OF INFO,2020127898,"73,326.80"
Department for Work and Pensions,Corporate,09/03/2011,COMPUTER SERVICES,SHARED SERVICES,FUJITSU SERVICES,2019853643,"73,114.40"
Department for Work and Pensions,Corporate,15/03/2011,COMPUTER SERVICES,CHANGE MANAGEMENT DIRECTORATE,BT GLOBAL SERVICES,2019929198,"73,047.30"
Department for Work and Pensions,Housing Benefits,14/03/2011,Housing Benefit Admin,WWG Housing Benefit,SEDGEMOOR DISTRICT COUNCIL,2019928107,"73,041.00"
Department for Work and Pensions,Housing Benefits,14/03/2011,Housing Benefit Admin,WWG Housing Benefit,WARWICK DISTRICT COUNCIL,2019928179,"72,987.00"
Department for Work and Pensions,Corporate,31/03/2011,ACCOMMODATION,Group Finance,TELEREAL TRILLIUM,2020240267,"72,889.16"
Department for Work and Pensions,Housing Benefits,14/03/2011,Housing Benefit Admin,WWG Housing Benefit,WEST LANCASHIRE DISTRICT COUNCIL,2019928189,"72,814.00"
Department for Work and Pensions,Housing Benefits,14/03/2011,Housing Benefit Admin,WWG Housing Benefit,TAUNTON DEANE BOROUGH COUNCIL,2019928158,"72,806.00"
Department for Work and Pensions,Jobcentre Plus,31/03/2011,EMPLOYMENT PROGRAMMES,Balance Sheet Payments,YMCA TRAINING LTD,2020240474,"72,506.72"
Department for Work and Pensions,Jobcentre Plus,31/03/2011,EMPLOYMENT PROGRAMMES,Balance Sheet Payments,BTCV ENTERPRISES LTD,2020235611,"72,126.59"
Department for Work and Pensions,Employment Programmes,29/03/2011,YOUNG PERSON'S GUARANTEE,WWEG EMPLOYMENT PROGRAMMES,PINNACLE PEOPLE ENTERPRISES CIC,2020154619,"72,115.00"
Department for Work and Pensions,Corporate,22/03/2011,EMPLOYMENT ZONES,WWG SUMMARY,BRITISH COUNCIL,2020039522,"72,048.50"
Department for Work and Pensions,Housing Benefits,14/03/2011,Housing Benefit Admin,WWG Housing Benefit,CAMBRIDGE CITY COUNCIL,2019927876,"71,906.00"
Department for Work and Pensions,Housing Benefits,14/03/2011,Housing Benefit Admin,WWG Housing Benefit,GRAVESHAM BOROUGH COUNCIL,2019927960,"71,734.00"
Department for Work and Pensions,Corporate,21/03/2011,TEMPORARY (TEMP) STAFF COSTS,Corporate IT ,CAPITA RESOURCING LIMITED,2020032562,"71,663.04"
Department for Work and Pensions,Housing Benefits,14/03/2011,Housing Benefit Admin,WWG Housing Benefit,BROXTOWE BOROUGH COUNCIL,2019927871,"71,616.00"
Department for Work and Pensions,Housing Benefits,14/03/2011,Housing Benefit Admin,WWG Housing Benefit,CANNOCK CHASE DISTRICT COUNCIL,2019927877,"71,541.00"
Department for Work and Pensions,Jobcentre Plus,10/03/2011,EMPLOYMENT PROGRAMMES,Balance Sheet Payments,NORTH WESSEX TRAINING,2019911614,"71,294.95"
Department for Work and Pensions,Housing Benefits,14/03/2011,Housing Benefit Admin,WWG Housing Benefit,HERTSMERE BOROUGH COUNCIL,2019927975,"71,020.00"
Department for Work and Pensions,Housing Benefits,14/03/2011,Housing Benefit Admin,WWG Housing Benefit,DENBIGHSHIRE COUNTY COUNCIL,2019927917,"70,967.00"
Department for Work and Pensions,Jobcentre Plus,24/03/2011,EMPLOYMENT PROGRAMMES,Balance Sheet Payments,TNG BUSINESS SUPPORT LTD.,2020131703,"70,945.61"
Department for Work and Pensions,"Pension, Disability Carers Services",08/03/2011,CONTRACTED OUT OFFICE SERVICES,Pensions & Disability Carers Service ,CAPITA BUSINESS SERVICES LTD,2019821120,"70,679.71"
Department for Work and Pensions,Employment Programmes,11/03/2011,YOUNG PERSON'S GUARANTEE,WWEG EMPLOYMENT PROGRAMMES,BARNARDOS,2019915494,"70,500.00"
Department for Work and Pensions,Jobcentre Plus,28/03/2011,Accommodation Costs,Jobcentre Plus,TELEREAL TRILLIUM,2020144653,"70,469.87"
Department for Work and Pensions,"Pension, Disability Carers Services",31/03/2011,MISCELLANEOUS EXPENDITURE,Pensions & Disability Carers Service ,FOREIGN & COMMONWEALTH OFFICE,2002542,"70,381.00"
Department for Work and Pensions,Jobcentre Plus,03/03/2011,EMPLOYMENT PROGRAMMES,Balance Sheet Payments,YMCA TRAINING LTD,2019805868,"70,176.22"
Department for Work and Pensions,Employment Programmes,30/03/2011,FND,WWEG EMPLOYMENT PROGRAMMES,SERCO LTD,2020226271,"70,092.00"
Department for Work and Pensions,Jobcentre Plus,03/03/2011,EMPLOYMENT PROGRAMMES,Balance Sheet Payments,RENOVO EMPLOYMENT GROUP LTD,2019805139,"69,950.00"
Department for Work and Pensions,Jobcentre Plus,03/03/2011,EMPLOYMENT PROGRAMMES,Balance Sheet Payments,ARMSTRONG LEARNING LTD,2019800901,"69,881.63"
Department for Work and Pensions,Corporate,24/03/2011,IS/IT,WWG SUMMARY,CAPGEMINI UK PLC,2020127840,"69,447.83"
Department for Work and Pensions,Housing Benefits,14/03/2011,Housing Benefit Admin,WWG Housing Benefit,WELWYN HATFIELD DISTRICT COUNCIL,2019928184,"69,302.00"
Department for Work and Pensions,Corporate,15/03/2011,APPS DEV,SHARED SERVICES,HP ENTERPRISE SERVICES UK LTD,2019932574,"69,145.48"
Department for Work and Pensions,Employment Programmes,18/03/2011,JSP ESF DEL P COSTS,WWEG EMPLOYMENT PROGRAMMES,REED IN PARTNERSHIP,2020029463,"69,022.55"
Department for Work and Pensions,Housing Benefits,14/03/2011,Housing Benefit Admin,WWG Housing Benefit,REIGATE & BANSTEAD BOROUGH COUNCIL,2019928085,"68,826.00"
Department for Work and Pensions,Employment Programmes,18/03/2011,YOUNG PERSON'S GUARANTEE,WWEG EMPLOYMENT PROGRAMMES,GROUNDWORK WREXHAM & FLINTSHIRE,2020027593,"68,785.81"
Department for Work and Pensions,Corporate,22/03/2011,COMPUTER SERVICES,Corporate IT ,ACCENTURE UK LTD,2020039243,"68,697.36"
Department for Work and Pensions,Housing Benefits,14/03/2011,Housing Benefit Admin,WWG Housing Benefit,BLAENAU GWENT COUNTY BOROUGH COUNCIL,2019927852,"68,393.00"
Department for Work and Pensions,Housing Benefits,14/03/2011,Housing Benefit Admin,WWG Housing Benefit,ARGYLL & BUTE COUNCIL,2019927835,"68,309.00"
Department for Work and Pensions,Corporate,09/03/2011,COMPUTER SERVICES,CHANGE MANAGEMENT DIRECTORATE,ACCENTURE,2019837168,"68,225.61"
Department for Work and Pensions,Housing Benefits,14/03/2011,Housing Benefit Admin,WWG Housing Benefit,NORTH DEVON DISTRICT COUNCIL,2019928051,"68,171.00"
Department for Work and Pensions,Corporate,08/03/2011,IS/IT,WWG SUMMARY,CAPGEMINI UK PLC,2019821119,"67,899.93"
Department for Work and Pensions,Jobcentre Plus,15/03/2011,APPS DEV,Jobcentre Plus,HP ENTERPRISE SERVICES UK LTD,2019932575,"67,539.00"
Department for Work and Pensions,Housing Benefits,14/03/2011,Housing Benefit Admin,WWG Housing Benefit,WINDSOR & MAIDENHEAD BOROUGH COUNCIL,2019928198,"67,393.00"
Department for Work and Pensions,Employment Programmes,10/03/2011,FND,WWEG EMPLOYMENT PROGRAMMES,SKILLS TRAINING UK LIMITED,2019912458,"67,271.00"
Department for Work and Pensions,Housing Benefits,14/03/2011,Housing Benefit Admin,WWG Housing Benefit,EAST DEVON DISTRICT COUNCIL,2019927928,"67,268.00"
Department for Work and Pensions,Employment Programmes,30/03/2011,YOUNG PERSON'S GUARANTEE,WWEG EMPLOYMENT PROGRAMMES,WALSALL METROPOLITAN BOROUGH COUNCIL,2020231597,"67,200.00"
Department for Work and Pensions,Housing Benefits,14/03/2011,Housing Benefit Admin,WWG Housing Benefit,NORTH NORFOLK DISTRICT COUNCIL,2019928059,"67,072.00"
Department for Work and Pensions,Employment Programmes,28/03/2011,YOUNG PERSON'S GUARANTEE,WWEG EMPLOYMENT PROGRAMMES,PINNACLE PEOPLE ENTERPRISES CIC,2020143942,"67,066.95"
Department for Work and Pensions,Housing Benefits,14/03/2011,Housing Benefit Admin,WWG Housing Benefit,BROXBOURNE BOROUGH COUNCIL,2019927870,"67,026.00"
Department for Work and Pensions,Jobcentre Plus,14/03/2011,APPS DEV,Jobcentre Plus,HP ENTERPRISE SERVICES UK LTD,2019924415,"66,870.14"
Department for Work and Pensions,Housing Benefits,14/03/2011,Housing Benefit Admin,WWG Housing Benefit,STROUD DISTRICT COUNCIL,2019928148,"66,741.00"
Department for Work and Pensions,Jobcentre Plus,17/03/2011,EMPLOYMENT PROGRAMMES,Balance Sheet Payments,GLOBAL SOLUTION SERVICES UK LTD,2020019725,"66,700.00"
Department for Work and Pensions,Jobcentre Plus,17/03/2011,EMPLOYMENT PROGRAMMES,Balance Sheet Payments,SHAW TRUST LTD,2020022158,"66,666.50"
Department for Work and Pensions,Corporate,30/03/2011,MANAGEMENT CONSULTANCY,Corporate IT ,BRAMBLE CC LTD,2020165630,"66,600.92"
Department for Work and Pensions,Housing Benefits,14/03/2011,Housing Benefit Admin,WWG Housing Benefit,WORCESTER CITY COUNCIL,2019928203,"66,528.00"
Department for Work and Pensions,Housing Benefits,14/03/2011,Housing Benefit Admin,WWG Housing Benefit,ASHFORD BOROUGH COUNCIL,2019927838,"66,492.00"
Department for Work and Pensions,Housing Benefits,14/03/2011,Housing Benefit Admin,WWG Housing Benefit,MENDIP DISTRICT COUNCIL,2019928034,"66,398.00"
Department for Work and Pensions,Corporate,31/03/2011,ACCOMMODATION,Group Finance,TELEREAL TRILLIUM,2020240268,"66,263.07"
Department for Work and Pensions,Housing Benefits,14/03/2011,Housing Benefit Admin,WWG Housing Benefit,CITY OF CARLISLE DISTRICT COUNCIL,2019927895,"66,218.00"
Department for Work and Pensions,Corporate,11/03/2011,COMPUTER SERVICES,Corporate IT ,HP ENTERPRISE SERVICES UK LTD,2019917581,"66,080.40"
Department for Work and Pensions,Corporate,01/03/2011,PROFESSIONAL FEES,WWG SUMMARY,INSTITUTE FOR EMPLOYMENT STUDIES,2019716927,"65,874.75"
Department for Work and Pensions,Corporate,11/03/2011,PROFESSIONAL FEES,WWG SUMMARY,INSTITUTE FOR EMPLOYMENT STUDIES,2019917634,"65,874.75"
Department for Work and Pensions,Jobcentre Plus,07/03/2011,MISCELLANEOUS EXPENDITURE,Jobcentre Plus,INSTITUTE FOR EMPLOYMENT STUDIES,2019815753,"65,773.40"
Department for Work and Pensions,Housing Benefits,14/03/2011,Housing Benefit Admin,WWG Housing Benefit,EPPING FOREST DISTRICT COUNCIL,2019927944,"65,362.00"
Department for Work and Pensions,Corporate,10/03/2011,COMPUTER SERVICES,Corporate IT ,AMTEC CONSULTING GROUP,2019908089,"65,325.75"
Department for Work and Pensions,Employment Programmes,07/03/2011,NDLP,WWEG EMPLOYMENT PROGRAMMES,WORKING LINKS,2019818141,"65,254.17"
Department for Work and Pensions,Housing Benefits,14/03/2011,Housing Benefit Admin,WWG Housing Benefit,NEWARK DISTRICT COUNCIL,2019928046,"65,235.00"
Department for Work and Pensions,Housing Benefits,14/03/2011,Housing Benefit Admin,WWG Housing Benefit,STEVENAGE BOROUGH COUNCIL,2019928142,"65,004.00"
Department for Work and Pensions,Jobcentre Plus,01/03/2011,"OFFICE SUPPLIES, PRINTING AND PUBLICITY",Jobcentre Plus,COI TRADING FUND,2019714655,"65,000.00"
Department for Work and Pensions,Jobcentre Plus,08/03/2011,"OFFICE SUPPLIES, PRINTING AND PUBLICITY",Jobcentre Plus,COI TRADING FUND,2019821153,"65,000.00"
Department for Work and Pensions,Employment Programmes,17/03/2011,YOUNG PERSON'S GUARANTEE,WWEG EMPLOYMENT PROGRAMMES,LONDON BOROUGH OF EALING,2020020768,"64,950.00"
Department for Work and Pensions,Housing Benefits,14/03/2011,Housing Benefit Admin,WWG Housing Benefit,ALLERDALE DISTRICT COUNCIL,2019927832,"64,908.00"
Department for Work and Pensions,Corporate,30/03/2011,HELP FOR UNEMPLOYED PEOPLE OTHER,WWG SUMMARY,SPECIALIST SCHOOLS & ACADEMIES TRUST,2020226507,"64,890.07"
Department for Work and Pensions,Employment Programmes,14/03/2011,YOUNG PERSON'S GUARANTEE,WWEG EMPLOYMENT PROGRAMMES,NATIONAL ASSOCIATION OF CITIZENS ADVICE BUREAUX,2019925537,"64,800.00"
Department for Work and Pensions,Housing Benefits,14/03/2011,Housing Benefit Admin,WWG Housing Benefit,CHICHESTER DISTRICT COUNCIL,2019927891,"64,721.00"
Department for Work and Pensions,Housing Benefits,14/03/2011,Housing Benefit Admin,WWG Housing Benefit,WEALDEN DISTRICT COUNCIL,2019928183,"64,676.00"
Department for Work and Pensions,Jobcentre Plus,31/03/2011,EMPLOYMENT PROGRAMMES,Balance Sheet Payments,TNG BUSINESS SUPPORT LTD,2020240297,"64,618.29"
Department for Work and Pensions,Corporate,25/03/2011,TEMPORARY (TEMP) STAFF COSTS,Corporate IT ,CAPITA RESOURCING LIMITED,2020134683,"64,468.92"
Department for Work and Pensions,Jobcentre Plus,16/03/2011,ACCOMMODATION,Jobcentre Plus,TELEREAL TRILLIUM,2020011953,"64,392.00"
Department for Work and Pensions,Housing Benefits,14/03/2011,Housing Benefit Admin,WWG Housing Benefit,EAST HERTFORDSHIRE DISTRICT COUNCIL,2019927932,"64,318.00"
Department for Work and Pensions,Employment Programmes,07/03/2011,YOUNG PERSON'S GUARANTEE,WWEG EMPLOYMENT PROGRAMMES,WARWICKSHIRE COUNTY COUNCIL,2019818110,"64,050.00"
Department for Work and Pensions,Corporate,15/03/2011,TEMPORARY (TEMP) STAFF COSTS,Corporate IT ,CAPITA RESOURCING LIMITED,2019929850,"63,828.24"
Department for Work and Pensions,Housing Benefits,14/03/2011,Housing Benefit Admin,WWG Housing Benefit,BOROUGH OF REDDITCH,2019927855,"63,674.00"
Department for Work and Pensions,Jobcentre Plus,31/03/2011,EMPLOYMENT PROGRAMMES,Balance Sheet Payments,CHESHIRE TRAINING ASSOCIATES LTD,2020235898,"63,246.55"
Department for Work and Pensions,Jobcentre Plus,17/03/2011,EMPLOYMENT PROGRAMMES,Balance Sheet Payments,WORKING LINKS,2020022500,"63,181.36"
Department for Work and Pensions,Corporate,03/03/2011,Accommodation Costs,SHARED SERVICES,COMPANIES HOUSE,1004667,"63,164.63"
Department for Work and Pensions,Employment Programmes,30/03/2011,ACCESS TO WORK,WWEG EMPLOYMENT PROGRAMMES,SCOUT ENTERPRISES WESTERN LTD,2020226231,"63,125.12"
Department for Work and Pensions,Housing Benefits,14/03/2011,Housing Benefit Admin,WWG Housing Benefit,SOUTH NORFOLK DISTRICT COUNCIL,2019928127,"63,098.00"
Department for Work and Pensions,Housing Benefits,14/03/2011,Housing Benefit Admin,WWG Housing Benefit,ROTHER DISTRICT COUNCIL,2019928093,"62,876.00"
Department for Work and Pensions,Employment Programmes,07/03/2011,NDDP,WWEG EMPLOYMENT PROGRAMMES,SEETEC,2019817758,"62,868.68"
Department for Work and Pensions,Corporate,02/03/2011,STAFF COSTS,Group Finance,ZURICH MUNICIPAL,2019798618,"62,769.00"
Department for Work and Pensions,Employment Programmes,14/03/2011,YOUNG PERSON'S GUARANTEE,WWEG EMPLOYMENT PROGRAMMES,BARNSLEY METROPOLITAN BOROUGH COUNCIL,2019922231,"62,300.00"
Department for Work and Pensions,Jobcentre Plus,17/03/2011,EMPLOYMENT PROGRAMMES,Balance Sheet Payments,THE INTRAINING GROUP,2020022340,"62,122.64"
Department for Work and Pensions,"Pension, Disability Carers Services",01/03/2011,APPS DEV,Pensions & Disability Carers Service ,ACCENTURE,2019713659,"61,879.09"
Department for Work and Pensions,Corporate,03/03/2011,TEMPORARY (TEMP) STAFF COSTS,Group Finance,CAPITA RESOURCING LIMITED,2019801272,"61,842.72"
Department for Work and Pensions,Jobcentre Plus,03/03/2011,EMPLOYMENT PROGRAMMES,Balance Sheet Payments,BISCOM RESOURCE MANAGEMENT,2019801015,"61,738.47"
Department for Work and Pensions,Housing Benefits,14/03/2011,Housing Benefit Admin,WWG Housing Benefit,RUGBY BOROUGH COUNCIL,2019928097,"61,667.00"
Department for Work and Pensions,Housing Benefits,14/03/2011,Housing Benefit Admin,WWG Housing Benefit,ST EDMUNDSBURY BOROUGH COUNCIL,2019928138,"61,558.00"
Department for Work and Pensions,Housing Benefits,14/03/2011,Housing Benefit Admin,WWG Housing Benefit,EAST LOTHIAN DISTRICT COUNCIL,2019927934,"61,457.00"
Department for Work and Pensions,Housing Benefits,14/03/2011,Housing Benefit Admin,WWG Housing Benefit,TONBRIDGE & MALLING DISTRICT COUNCIL,2019928167,"61,457.00"
Department for Work and Pensions,Corporate,25/03/2011,TEMPORARY (TEMP) STAFF COSTS,Corporate IT ,CAPITA RESOURCING LIMITED,2020134683,"61,421.81"
Department for Work and Pensions,Housing Benefits,14/03/2011,Housing Benefit Admin,WWG Housing Benefit,SUFFOLK COASTAL DISTRICT COUNCIL,2019928149,"61,137.00"
Department for Work and Pensions,Jobcentre Plus,31/03/2011,MISCELLANEOUS EXPENDITURE,Jobcentre Plus,INSTITUTE FOR EMPLOYMENT STUDIES,2020237763,"61,080.00"
Department for Work and Pensions,Housing Benefits,14/03/2011,Housing Benefit Admin,WWG Housing Benefit,BARROW BOROUGH COUNCIL,2019927842,"61,035.00"
Department for Work and Pensions,Housing Benefits,14/03/2011,Housing Benefit Admin,WWG Housing Benefit,CASTLE POINT DISTRICT COUNCIL,2019927881,"60,723.00"
Department for Work and Pensions,Corporate,11/03/2011,Accommodation Costs,Group Finance,HM REVENUE & CUSTOMS,2002481,"60,527.22"
Department for Work and Pensions,Corporate,15/03/2011,NETWORK,Corporate IT ,BT GLOBAL SERVICES,2019929198,"60,508.80"
Department for Work and Pensions,Housing Benefits,14/03/2011,Housing Benefit Admin,WWG Housing Benefit,CHORLEY BOROUGH COUNCIL,2019927893,"60,169.00"
Department for Work and Pensions,Employment Programmes,22/03/2011,YOUNG PERSON'S GUARANTEE,WWEG EMPLOYMENT PROGRAMMES,EAST AYRSHIRE COUNCIL,2020042228,"60,150.00"
Department for Work and Pensions,Employment Programmes,07/03/2011,FND,WWEG EMPLOYMENT PROGRAMMES,SERCO LTD,2019817764,"60,125.00"
Department for Work and Pensions,Corporate,04/03/2011,COMPUTER SERVICES,SHARED SERVICES,FUJITSU SERVICES LTD,2019809317,"60,000.00"
Department for Work and Pensions,Corporate,09/03/2011,CAPITAL GRANTS,Group Finance,CLOCKWISE LEICESTER CREDIT UNION,2019844327,"60,000.00"
Department for Work and Pensions,Corporate,11/03/2011,UNALLOCATED BUDGET GROUP,WWG SUMMARY,MOTABILITY,2019918888,"60,000.00"
Department for Work and Pensions,Corporate,28/03/2011,CAPITAL GRANTS,Group Finance,CHESHIRE NEIGHBOURS CREDIT UNION LIMITED,2020140442,"60,000.00"
Department for Work and Pensions,Corporate,23/03/2011,EMPLOYMENT ZONES,WWG SUMMARY,SPECIALIST SCHOOLS & ACADEMIES TRUST,2020119030,"59,991.00"
Department for Work and Pensions,Housing Benefits,14/03/2011,Housing Benefit Admin,WWG Housing Benefit,LEWES DISTRICT COUNCIL,2019927994,"59,934.00"
Department for Work and Pensions,Employment Programmes,16/03/2011,NDLP,WWEG EMPLOYMENT PROGRAMMES,CLAVERHOUSE GROUP,2019952932,"59,934.00"
Department for Work and Pensions,Housing Benefits,14/03/2011,Housing Benefit Admin,WWG Housing Benefit,WYCHAVON DISTRICT COUNCIL,2019928206,"59,906.00"
Department for Work and Pensions,Housing Benefits,14/03/2011,Housing Benefit Admin,WWG Housing Benefit,STRATFORD ON AVON DISTRICT COUNCIL,2019928147,"59,873.00"
Department for Work and Pensions,Employment Programmes,23/03/2011,NDLP,WWEG EMPLOYMENT PROGRAMMES,TRIAGE CENTRAL LTD,2020122226,"59,860.00"
Department for Work and Pensions,Housing Benefits,14/03/2011,Housing Benefit Admin,WWG Housing Benefit,GOSPORT BOROUGH COUNCIL,2019927959,"59,845.00"
Department for Work and Pensions,Jobcentre Plus,24/03/2011,EMPLOYMENT PROGRAMMES,Balance Sheet Payments,CAREERS DEVELOPMENT GROUP LTD,2020127844,"59,818.27"
Department for Work and Pensions,Jobcentre Plus,10/03/2011,EMPLOYMENT PROGRAMMES,Balance Sheet Payments,SHAW TRUST LTD,2019912440,"59,613.24"
Department for Work and Pensions,Corporate,15/03/2011,APPS DEV,EG SUMMARY,HP ENTERPRISE SERVICES UK LTD,2019932574,"59,519.57"
Department for Work and Pensions,Corporate,17/03/2011,CONFERENCES AND MEETINGS,Corporate and Support Services,NYS CORPORATE LTD,2020021338,"59,480.00"
Department for Work and Pensions,Corporate,24/03/2011,"OFFICE SUPPLIES, PRINTING AND PUBLICITY",Corporate and Support Services,COI TRADING FUND,2020127900,"59,450.00"
Department for Work and Pensions,Jobcentre Plus,02/03/2011,Accommodation Costs,Jobcentre Plus,TELEREAL TRILLIUM,2019795807,"59,384.09"
Department for Work and Pensions,Jobcentre Plus,14/03/2011,Accommodation Costs,Jobcentre Plus,TELEREAL TRILLIUM,2019926333,"59,374.05"
Department for Work and Pensions,Jobcentre Plus,28/03/2011,Accommodation Costs,Jobcentre Plus,TELEREAL TRILLIUM,2020144653,"59,328.05"
Department for Work and Pensions,Jobcentre Plus,03/03/2011,EMPLOYMENT PROGRAMMES,Balance Sheet Payments,SCOUT ENTERPRISES WESTERN LTD,2019805501,"59,304.52"
Department for Work and Pensions,Corporate,21/03/2011,TEMPORARY (TEMP) STAFF COSTS,Corporate IT ,CAPITA RESOURCING LIMITED,2020032562,"59,299.39"
Department for Work and Pensions,Housing Benefits,14/03/2011,Housing Benefit Admin,WWG Housing Benefit,ELMBRIDGE BOROUGH COUNCIL,2019927943,"59,002.00"
Department for Work and Pensions,Employment Programmes,31/03/2011,YOUNG PERSON'S GUARANTEE,WWEG EMPLOYMENT PROGRAMMES,COVENTRY CITY COUNCIL,2020235937,"58,950.00"
Department for Work and Pensions,Jobcentre Plus,03/03/2011,EMPLOYMENT PROGRAMMES,Balance Sheet Payments,PERTEMPS EMPLOYMENT ALLIANCE,2019804908,"58,695.32"
Department for Work and Pensions,Housing Benefits,14/03/2011,Housing Benefit Admin,WWG Housing Benefit,RUSHMOOR BOROUGH COUNCIL,2019928100,"58,665.00"
Department for Work and Pensions,Housing Benefits,14/03/2011,Housing Benefit Admin,WWG Housing Benefit,TUNBRIDGE WELLS BOROUGH COUNCIL,2019928172,"58,511.00"
Department for Work and Pensions,Employment Programmes,02/03/2011,YOUNG PERSON'S GUARANTEE,WWEG EMPLOYMENT PROGRAMMES,CARMARTHENSHIRE COUNTY COUNCIL,2019799888,"58,500.00"
Department for Work and Pensions,Employment Programmes,31/03/2011,JSP ESF DEL P COSTS,WWEG EMPLOYMENT PROGRAMMES,INGEUS UK LTD,2020237762,"58,409.41"
Department for Work and Pensions,Housing Benefits,14/03/2011,Housing Benefit Admin,WWG Housing Benefit,EASTLEIGH BOROUGH COUNCIL,2019927940,"58,236.00"
Department for Work and Pensions,Housing Benefits,14/03/2011,Housing Benefit Admin,WWG Housing Benefit,VALE OF WHITE HORSE DISTRICT COUNCIL,2019928175,"58,215.00"
Department for Work and Pensions,Employment Programmes,11/03/2011,YOUNG PERSON'S GUARANTEE,WWEG EMPLOYMENT PROGRAMMES,NEATH PORT TALBOT COUNTY BOROUGH COUNCIL,2019919011,"58,050.00"
Department for Work and Pensions,Corporate,21/03/2011,TOTAL SUPPLIES & SERVICES,Corporate and Support Services,CHILD POVERTY ACTION GROUP,2020032579,"58,000.00"
Department for Work and Pensions,Housing Benefits,14/03/2011,Housing Benefit Admin,WWG Housing Benefit,WATFORD BOROUGH COUNCIL,2019928180,"57,845.00"
Department for Work and Pensions,Corporate,11/03/2011,IS/IT,Corporate IT ,HP ENTERPRISE SERVICES UK LTD,2019917581,"57,758.09"
Department for Work and Pensions,Employment Programmes,02/03/2011,YOUNG PERSON'S GUARANTEE,WWEG EMPLOYMENT PROGRAMMES,WEST SUSSEX COUNTY COUNCIL,2019797790,"57,750.00"
Department for Work and Pensions,Employment Programmes,28/03/2011,YOUNG PERSON'S GUARANTEE,WWEG EMPLOYMENT PROGRAMMES,FUTURE JOBS SOUTH LONDON BUSINESS,2020142153,"57,750.00"
Department for Work and Pensions,Jobcentre Plus,31/03/2011,EMPLOYMENT PROGRAMMES,Balance Sheet Payments,SCOUT ENTERPRISES WESTERN LTD,2020240055,"57,717.02"
Department for Work and Pensions,Employment Programmes,28/03/2011,YOUNG PERSON'S GUARANTEE,WWEG EMPLOYMENT PROGRAMMES,ADCRIS CIC,2020140086,"57,715.35"
Department for Work and Pensions,Housing Benefits,14/03/2011,Housing Benefit Admin,WWG Housing Benefit,BOROUGH OF WELLINGBOROUGH,2019927857,"57,629.00"
Department for Work and Pensions,Employment Programmes,21/03/2011,YOUNG PERSON'S GUARANTEE,WWEG EMPLOYMENT PROGRAMMES,NORTH EAST LINCOLNSHIRE COUNCIL,2020035783,"57,588.30"
Department for Work and Pensions,Employment Programmes,07/03/2011,FND,WWEG EMPLOYMENT PROGRAMMES,SERCO LTD,2019817764,"57,562.00"
Department for Work and Pensions,Employment Programmes,07/03/2011,YOUNG PERSON'S GUARANTEE,WWEG EMPLOYMENT PROGRAMMES,3SC,2019812988,"57,450.00"
Department for Work and Pensions,Employment Programmes,03/03/2011,FND,WWEG EMPLOYMENT PROGRAMMES,SERCO LTD,2019805517,"57,348.00"
Department for Work and Pensions,Employment Programmes,02/03/2011,FND,WWEG EMPLOYMENT PROGRAMMES,PERTEMPS,2019780667,"57,302.00"
Department for Work and Pensions,Jobcentre Plus,10/03/2011,EMPLOYMENT PROGRAMMES,Balance Sheet Payments,CORNWALL COUNTY COUNCIL,2019908538,"57,272.70"
Department for Work and Pensions,Housing Benefits,14/03/2011,Housing Benefit Admin,WWG Housing Benefit,STAFFORD BOROUGH COUNCIL,2019928140,"57,212.00"
Department for Work and Pensions,Housing Benefits,14/03/2011,Housing Benefit Admin,WWG Housing Benefit,TEST VALLEY BOROUGH COUNCIL,2019928161,"57,082.00"
Department for Work and Pensions,Housing Benefits,14/03/2011,Housing Benefit Admin,WWG Housing Benefit,HIGH PEAK BOROUGH COUNCIL,2019927976,"57,053.00"
Department for Work and Pensions,Housing Benefits,14/03/2011,Housing Benefit Admin,WWG Housing Benefit,ST ALBANS DISTRICT COUNCIL,2019928137,"56,954.00"
Department for Work and Pensions,Corporate,16/03/2011,TOTAL SUPPLIES & SERVICES,Group Finance,DEPARTMENT FOR ENERGY & CLIMATE CHANGE,2019957564,"56,951.13"
Department for Work and Pensions,Housing Benefits,14/03/2011,Housing Benefit Admin,WWG Housing Benefit,SOUTH CAMBRIDGESHIRE DISTRICT COUNCIL,2019928119,"56,848.00"
Department for Work and Pensions,Corporate,18/03/2011,COMPUTER SERVICES,SHARED SERVICES,ATOS ORIGIN IT SERVICES UK LTD,2020025413,"56,755.66"
Department for Work and Pensions,Employment Programmes,10/03/2011,RESIDENTIAL TRAINING,WWEG EMPLOYMENT PROGRAMMES,ROYAL NATIONAL INSTITUTE FOR THE BLIND,2019912051,"56,750.00"
Department for Work and Pensions,Employment Programmes,21/03/2011,YOUNG PERSON'S GUARANTEE,WWEG EMPLOYMENT PROGRAMMES,CALDERDALE METROPOLITAN BOROUGH COUNCIL,2020032560,"56,700.00"
Department for Work and Pensions,Corporate,30/03/2011,HELP FOR UNEMPLOYED PEOPLE OTHER,WWG SUMMARY,GEMIN I ORG,2020182482,"56,668.00"
Department for Work and Pensions,Jobcentre Plus,10/03/2011,EMPLOYMENT PROGRAMMES,Balance Sheet Payments,SKILLS TRAINING UK LTD,2019912460,"56,553.19"
Department for Work and Pensions,Employment Programmes,28/03/2011,NDDP,WWEG EMPLOYMENT PROGRAMMES,WORKING LINKS,2020144815,"56,519.10"
Department for Work and Pensions,Housing Benefits,14/03/2011,Housing Benefit Admin,WWG Housing Benefit,WEST LINDSEY DISTRICT COUNCIL,2019928190,"56,434.00"
Department for Work and Pensions,Corporate,01/03/2011,MARKETING,Corporate and Support Services,COI CENTRAL OFFICE OF INFO,2019714654,"56,431.00"
Department for Work and Pensions,Housing Benefits,14/03/2011,Housing Benefit Admin,WWG Housing Benefit,MERTHYR TYDFIL BOROUGH COUNCIL,2019928035,"56,346.00"
Department for Work and Pensions,Housing Benefits,14/03/2011,Housing Benefit Admin,WWG Housing Benefit,NORTH EAST DERBYSHIRE DISTRICT COUNCIL,2019928053,"56,268.00"
Department for Work and Pensions,Employment Programmes,28/03/2011,YOUNG PERSON'S GUARANTEE,WWEG EMPLOYMENT PROGRAMMES,MEDIA TRUST,2020143587,"56,250.00"
Department for Work and Pensions,Employment Programmes,09/03/2011,YOUNG PERSON'S GUARANTEE,WWEG EMPLOYMENT PROGRAMMES,WORCESTERSHIRE COUNTY COUNCIL,2019904765,"56,164.00"
Department for Work and Pensions,Housing Benefits,14/03/2011,Housing Benefit Admin,WWG Housing Benefit,SEVENOAKS DISTRICT COUNCIL,2019928110,"56,138.00"
Department for Work and Pensions,Employment Programmes,04/03/2011,YOUNG PERSON'S GUARANTEE,WWEG EMPLOYMENT PROGRAMMES,CARMARTHENSHIRE COUNTY COUNCIL,2019812940,"55,800.00"
Department for Work and Pensions,Housing Benefits,14/03/2011,Housing Benefit Admin,WWG Housing Benefit,WAVERLEY BOROUGH COUNCIL,2019928182,"55,783.00"
Department for Work and Pensions,Employment Programmes,17/03/2011,FND,WWEG EMPLOYMENT PROGRAMMES,REMPLOY LTD,2020021765,"55,759.00"
Department for Work and Pensions,Corporate,14/03/2011,COMPUTER SERVICES,Corporate and Support Services,HP ENTERPRISE SERVICES UK LTD,2019924415,"55,744.61"
Department for Work and Pensions,Housing Benefits,14/03/2011,Housing Benefit Admin,WWG Housing Benefit,BRACKNELL FOREST BOROUGH COUNCIL,2019927860,"55,716.00"
Department for Work and Pensions,Housing Benefits,14/03/2011,Housing Benefit Admin,WWG Housing Benefit,SOUTH RIBBLE BOROUGH COUNCIL C,2019928130,"55,696.00"
Department for Work and Pensions,"Pension, Disability Carers Services",09/03/2011,PROFESSIONAL FEES,Pensions & Disability Carers Service ,TNS BMRB,2019902853,"55,570.00"
Department for Work and Pensions,Employment Programmes,07/03/2011,YOUNG PERSON'S GUARANTEE,WWEG EMPLOYMENT PROGRAMMES,NEW TESTAMENT ASSEMBLY OPEN DOOR CONSORTIUM,2019816919,"55,500.00"
Department for Work and Pensions,Housing Benefits,14/03/2011,Housing Benefit Admin,WWG Housing Benefit,DARTFORD BOROUGH COUNCIL,2019927915,"55,445.00"
Department for Work and Pensions,Corporate,03/03/2011,TEMPORARY (TEMP) STAFF COSTS,Corporate IT ,CAPITA RESOURCING LIMITED,2019801272,"55,415.11"
Department for Work and Pensions,Corporate,31/03/2011,ACCOMMODATION,Group Finance,TELEREAL TRILLIUM,2020240270,"55,214.97"
Department for Work and Pensions,Corporate,22/03/2011,COMPUTER SERVICES,Corporate IT ,FUJITSU UK & I,2020042368,"55,141.00"
Department for Work and Pensions,Housing Benefits,14/03/2011,Housing Benefit Admin,WWG Housing Benefit,KETTERING BOROUGH COUNCIL,2019927986,"55,139.00"
Department for Work and Pensions,"Pension, Disability Carers Services",15/03/2011,TELEPHONE AND POSTAGE,Pensions & Disability Carers Service ,ROYAL MAIL GROUP PLC,2019936681,"55,088.19"
Department for Work and Pensions,Employment Programmes,23/03/2011,YOUNG PERSON'S GUARANTEE,WWEG EMPLOYMENT PROGRAMMES,RESOURCE PLUS FUTURE JOB FUND,2020110231,"55,072.16"
Department for Work and Pensions,Corporate,15/03/2011,AOS CONTRACTED OUT SERVICES,SHARED SERVICES,IQOR RECOVERY SERVICES LTD,2019932692,"54,778.97"
Department for Work and Pensions,Employment Programmes,31/03/2011,YOUNG PERSON'S GUARANTEE,WWEG EMPLOYMENT PROGRAMMES,CARMARTHENSHIRE COUNTY COUNCIL,2020242846,"54,750.00"
Department for Work and Pensions,Housing Benefits,14/03/2011,Housing Benefit Admin,WWG Housing Benefit,WEST DORSET DISTRICT COUNCIL,2019928187,"54,735.00"
Department for Work and Pensions,Housing Benefits,14/03/2011,Housing Benefit Admin,WWG Housing Benefit,EAST HAMPSHIRE DISTRICT COUNCIL,2019927931,"54,709.00"
Department for Work and Pensions,Jobcentre Plus,31/03/2011,EMPLOYMENT PROGRAMMES,Balance Sheet Payments,RENOVO EMPLOYMENT GROUP LTD,2020239640,"54,700.00"
Department for Work and Pensions,Jobcentre Plus,30/03/2011,OTHER GOODS AND SERVICES,Jobcentre Plus,VALUATION OFFICE AGENCY,2020230890,"54,660.00"
Department for Work and Pensions,Employment Programmes,04/03/2011,FND,WWEG EMPLOYMENT PROGRAMMES,WORKING LINKS,2019811625,"54,565.00"
Department for Work and Pensions,Housing Benefits,14/03/2011,Housing Benefit Admin,WWG Housing Benefit,BOLSOVER DISTRICT COUNCIL,2019927853,"54,500.00"
Department for Work and Pensions,Jobcentre Plus,15/03/2011,APPS DEV,Jobcentre Plus,HP ENTERPRISE SERVICES UK LTD,2019932574,"54,314.61"
Department for Work and Pensions,Corporate,21/03/2011,EU PROGRAMMES,WWG SUMMARY,UNIVERSITY OF MANCHESTER,2020036710,"54,201.60"
Department for Work and Pensions,Employment Programmes,07/03/2011,FND,WWEG EMPLOYMENT PROGRAMMES,SERCO LTD,2019817764,"54,162.00"
Department for Work and Pensions,Employment Programmes,21/03/2011,FND,WWEG EMPLOYMENT PROGRAMMES,SERCO LTD,2020036530,"54,162.00"
Department for Work and Pensions,Housing Benefits,14/03/2011,Housing Benefit Admin,WWG Housing Benefit,MID SUSSEX DISTRICT COUNCIL,2019928038,"54,100.00"
Department for Work and Pensions,Corporate,15/03/2011,TEMPORARY (TEMP) STAFF COSTS,Corporate IT ,CAPITA RESOURCING LIMITED,2019929850,"53,833.64"
Department for Work and Pensions,Housing Benefits,14/03/2011,Housing Benefit Admin,WWG Housing Benefit,MIDLOTHIAN COUNCIL,2019928040,"53,752.00"
Department for Work and Pensions,Housing Benefits,14/03/2011,Housing Benefit Admin,WWG Housing Benefit,EAST DUNBARTONSHIRE COUNCIL,2019927930,"53,725.00"
Department for Work and Pensions,Housing Benefits,14/03/2011,Housing Benefit Admin,WWG Housing Benefit,BROADLAND DISTRICT COUNCIL,2019927868,"53,723.00"
Department for Work and Pensions,Employment Programmes,04/03/2011,YOUNG PERSON'S GUARANTEE,WWEG EMPLOYMENT PROGRAMMES,CORNWALL COUNCIL,2019808470,"53,700.00"
Department for Work and Pensions,Employment Programmes,07/03/2011,PROGRESS TO WORK,WWEG EMPLOYMENT PROGRAMMES,WORKING LINKS,2019818139,"53,686.94"
Department for Work and Pensions,Housing Benefits,14/03/2011,Housing Benefit Admin,WWG Housing Benefit,WEYMOUTH & PORTLAND BOROUGH COUNCIL,2019928194,"53,662.00"
Department for Work and Pensions,Corporate,01/03/2011,PAYMENTS TO CSAS,Corporate and Support Services,ATOS ORIGIN IT SERVICES UK LTD,2019713696,"53,637.00"
Department for Work and Pensions,"Pension, Disability Carers Services",15/03/2011,COMPUTER SERVICES,Pensions & Disability Carers Service ,BT GLOBAL SERVICES,2019929198,"53,401.45"
Department for Work and Pensions,Corporate,04/03/2011,COMPUTER SERVICES,Corporate IT ,TESCO MOBILE LTD,2019811495,"53,263.99"
Department for Work and Pensions,Housing Benefits,14/03/2011,Housing Benefit Admin,WWG Housing Benefit,NORTH KESTEVEN DISTRICT COUNCIL,2019928056,"53,156.00"
Department for Work and Pensions,Corporate,03/03/2011,TEMPORARY (TEMP) STAFF COSTS,Corporate IT ,CAPITA RESOURCING LIMITED,2019801272,"53,016.16"
Department for Work and Pensions,Corporate,31/03/2011,ACCOMMODATION,Group Finance,TELEREAL TRILLIUM,2020240270,"52,976.61"
Department for Work and Pensions,Housing Benefits,14/03/2011,Housing Benefit Admin,WWG Housing Benefit,HINCKLEY & BOSWORTH BOROUGH COUNCIL,2019927978,"52,971.00"
Department for Work and Pensions,Jobcentre Plus,31/03/2011,PRINTING STATIONERY IT CONSUMABLES,Jobcentre Plus,XEROX UK LTD 3W,2020240461,"52,728.45"
Department for Work and Pensions,Employment Programmes,11/03/2011,FND,WWEG EMPLOYMENT PROGRAMMES,SEETEC BUSINESS TECHNOLOGY CENTRE LTD,2019919867,"52,696.00"
Department for Work and Pensions,Jobcentre Plus,31/03/2011,EMPLOYMENT PROGRAMMES,Balance Sheet Payments,GLOBAL SOLUTION SERVICES UK LTD,2020237602,"52,550.00"
Department for Work and Pensions,Corporate,15/03/2011,TELEPHONE AND POSTAGE,Group Finance,ROYAL MAIL GROUP PLC,2019936681,"52,458.88"
Department for Work and Pensions,European Social Fund,28/03/2011,ESF NON-PREFUNDED EXPENDITURE,WWEG EUROPEAN SOCIAL FUND,COSMIC,5000000512,"52,394.00"
Department for Work and Pensions,Housing Benefits,14/03/2011,Housing Benefit Admin,WWG Housing Benefit,SOUTH HOLLAND DISTRICT COUNCIL,2019928123,"52,345.00"
Department for Work and Pensions,Corporate,17/03/2011,TEMPORARY (TEMP) STAFF COSTS,Group Finance,GLASGOW HOUSING ASSOCIATION,2020019721,"52,253.50"
Department for Work and Pensions,Corporate,31/03/2011,STAFF COSTS,Corporate and Support Services,CABINET OFFICE RM SHARED SERVICES,1004736,"52,250.00"
Department for Work and Pensions,Jobcentre Plus,03/03/2011,EMPLOYMENT PROGRAMMES,Balance Sheet Payments,MAY & STEPHENS LTD,2019804555,"52,250.00"
Department for Work and Pensions,Housing Benefits,14/03/2011,Housing Benefit Admin,WWG Housing Benefit,FOREST OF DEAN DISTRICT COUNCIL,2019927954,"52,014.00"
Department for Work and Pensions,Jobcentre Plus,10/03/2011,EMPLOYMENT PROGRAMMES,Balance Sheet Payments,STOKE ON TRENT COLLEGE,2019912492,"51,980.47"
Department for Work and Pensions,Corporate,30/03/2011,MANAGEMENT CONSULTANCY,Corporate IT ,TRIBAL CONSULTING LTD,2020229710,"51,866.15"
Department for Work and Pensions,Housing Benefits,14/03/2011,Housing Benefit Admin,WWG Housing Benefit,SOUTH STAFFORDSHIRE DISTRICT COUNCIL,2019928132,"51,787.00"
Department for Work and Pensions,Housing Benefits,14/03/2011,Housing Benefit Admin,WWG Housing Benefit,SPELTHORNE BOROUGH COUNCIL,2019928136,"51,605.00"
Department for Work and Pensions,Housing Benefits,14/03/2011,Housing Benefit Admin,WWG Housing Benefit,HORSHAM DISTRICT COUNCIL,2019927979,"51,597.00"
Department for Work and Pensions,Housing Benefits,14/03/2011,Housing Benefit Admin,WWG Housing Benefit,CORBY BOROUGH COUNCIL,2019927904,"51,541.00"
Department for Work and Pensions,Jobcentre Plus,17/03/2011,EMPLOYMENT PROGRAMMES,Balance Sheet Payments,SEETEC BUSINESS TECHNOLOGY CENTRE LTD,2020022148,"51,445.89"
Department for Work and Pensions,Employment Programmes,11/03/2011,PROGRESS TO WORK,WWEG EMPLOYMENT PROGRAMMES,THE LIVERPOOL SOCIAL PARTNERSHIP,2019920104,"51,444.99"
Department for Work and Pensions,Housing Benefits,14/03/2011,Housing Benefit Admin,WWG Housing Benefit,WEST OXFORDSHIRE DISTRICT COUNCIL,2019928192,"51,248.00"
Department for Work and Pensions,Housing Benefits,14/03/2011,Housing Benefit Admin,WWG Housing Benefit,SOUTH OXFORDSHIRE DISTRICT COUNCIL,2019928129,"51,014.00"
Department for Work and Pensions,European Social Fund,22/03/2011,PACS CREDITORS <1 YR,WWEG EUROPEAN SOCIAL FUND,CONSOLIDATED FUND,2002503,"50,998.18"
Department for Work and Pensions,Employment Programmes,21/03/2011,FND,WWEG EMPLOYMENT PROGRAMMES,MAXIMUS EMPLOYMENT UK LTD,2020035643,"50,842.00"
Department for Work and Pensions,Housing Benefits,14/03/2011,Housing Benefit Admin,WWG Housing Benefit,NORTH WEST LEICESTER DISTRICT COUNCIL,2019928063,"50,740.00"
Department for Work and Pensions,Employment Programmes,29/03/2011,JSP ESF DEL P COSTS,WWEG EMPLOYMENT PROGRAMMES,INGEUS UK LTD,2020151062,"50,601.11"
Department for Work and Pensions,Employment Programmes,11/03/2011,YOUNG PERSON'S GUARANTEE,WWEG EMPLOYMENT PROGRAMMES,NOTTINGHAM CITY COUNCIL,2019919044,"50,550.00"
Department for Work and Pensions,Housing Benefits,14/03/2011,Housing Benefit Admin,WWG Housing Benefit,THE MORAY COUNCIL,2019928164,"50,368.00"
Department for Work and Pensions,Employment Programmes,15/03/2011,YOUNG PERSON'S GUARANTEE,WWEG EMPLOYMENT PROGRAMMES,PERTH & KINROSS COUNCIL,2019936180,"50,100.00"
Department for Work and Pensions,Employment Programmes,18/03/2011,JSP ESF DEL P COSTS,WWEG EMPLOYMENT PROGRAMMES,THE INTRAINING GROUP,2020030023,"50,059.18"
Department for Work and Pensions,Employment Programmes,22/03/2011,RESIDENTIAL TRAINING,WWEG EMPLOYMENT PROGRAMMES,RNIB,2020047177,"50,000.00"
Department for Work and Pensions,Jobcentre Plus,31/03/2011,EMPLOYMENT PROGRAMMES,Balance Sheet Payments,MAY & STEPHENS LTD,2020238982,"49,900.00"
Department for Work and Pensions,Corporate,08/03/2011,EMPLOYMENT PROGRAMMES,Balance Sheet Payments,DFE RM SHARED SERVICES,2002474,"49,873.12"
Department for Work and Pensions,Corporate,11/03/2011,EMPLOYMENT PROGRAMMES,Balance Sheet Payments,DFE RM SHARED SERVICES,2002483,"49,873.12"
Department for Work and Pensions,Corporate,15/03/2011,EMPLOYMENT PROGRAMMES,Balance Sheet Payments,DFE RM SHARED SERVICES,2002490,"49,873.12"
Department for Work and Pensions,Housing Benefits,14/03/2011,Housing Benefit Admin,WWG Housing Benefit,COPELAND BOROUGH COUNCIL,2019927903,"49,691.00"
Department for Work and Pensions,Jobcentre Plus,14/03/2011,MEDICAL SERVICES,Jobcentre Plus,ATOS ORIGIN MEDICAL SERVICES,2019922169,"49,500.00"
Department for Work and Pensions,Housing Benefits,14/03/2011,Housing Benefit Admin,WWG Housing Benefit,LICHFIELD DISTRICT COUNCIL,2019927995,"49,293.00"
Department for Work and Pensions,Corporate,25/03/2011,COMPUTER SERVICES,SHARED SERVICES,FUJITSU SERVICES,2020136285,"49,281.30"
Department for Work and Pensions,Jobcentre Plus,28/03/2011,HELP FOR UNEMPLOYED PEOPLE OTHER,Jobcentre Plus,TNS BMRB,2020144676,"49,195.00"
Department for Work and Pensions,Housing Benefits,14/03/2011,Housing Benefit Admin,WWG Housing Benefit,WOKING BOROUGH COUNCIL,2019928200,"48,956.00"
Department for Work and Pensions,Corporate,25/03/2011,TEMPORARY (TEMP) STAFF COSTS,Group Finance,CAPITA RESOURCING LIMITED,2020134683,"48,912.38"
Department for Work and Pensions,Housing Benefits,14/03/2011,Housing Benefit Admin,WWG Housing Benefit,STIRLING COUNCIL,2019928143,"48,899.00"
Department for Work and Pensions,Employment Programmes,01/03/2011,FND,WWEG EMPLOYMENT PROGRAMMES,WORKING LINKS,2019722766,"48,825.00"
Department for Work and Pensions,Housing Benefits,14/03/2011,Housing Benefit Admin,WWG Housing Benefit,TAMWORTH BOROUGH COUNCIL,2019928156,"48,797.00"
Department for Work and Pensions,Employment Programmes,08/03/2011,RESIDENTIAL TRAINING,WWEG EMPLOYMENT PROGRAMMES,ENHAM,1004673,"48,627.08"
Department for Work and Pensions,Corporate,30/03/2011,BANKING AND ENCASHMENT COSTS,Group Finance,VOCALINK,2020230918,"48,626.00"
Department for Work and Pensions,Jobcentre Plus,29/03/2011,MEDICAL SERVICES,Jobcentre Plus,ATOS ORIGIN MEDICAL SERVICES,2020147221,"48,525.00"
Department for Work and Pensions,Corporate,07/03/2011,COMPUTER SERVICES,SHARED SERVICES,FUJITSU SERVICES,2019815477,"48,430.00"
Department for Work and Pensions,Employment Programmes,21/03/2011,FND,WWEG EMPLOYMENT PROGRAMMES,REMPLOY LTD,2020036181,"48,360.00"
Department for Work and Pensions,Housing Benefits,14/03/2011,Housing Benefit Admin,WWG Housing Benefit,ROSSENDALE BOROUGH COUNCIL,2019928092,"48,351.00"
Department for Work and Pensions,Corporate,31/03/2011,ACCOMMODATION,Group Finance,TELEREAL TRILLIUM,2020240268,"48,329.16"
Department for Work and Pensions,Employment Programmes,28/03/2011,YOUNG PERSON'S GUARANTEE,WWEG EMPLOYMENT PROGRAMMES,NEW TESTAMENT ASSEMBLY OPEN DOOR CONSORTIUM,2020143720,"48,300.00"
Department for Work and Pensions,Employment Programmes,10/03/2011,YOUNG PERSON'S GUARANTEE,WWEG EMPLOYMENT PROGRAMMES,ADCRIS CIC,2019908064,"48,271.02"
Department for Work and Pensions,Corporate,10/03/2011,HELP FOR UNEMPLOYED PEOPLE OTHER,WWG SUMMARY,GEMIN I ORG,2019910120,"48,252.00"
Department for Work and Pensions,Corporate,15/03/2011,COMPUTER SERVICES,Corporate IT ,HP ENTERPRISE SERVICES UK LTD,2019932574,"48,229.80"
Department for Work and Pensions,Employment Programmes,15/03/2011,FND,WWEG EMPLOYMENT PROGRAMMES,REMPLOY LTD,2019936661,"48,224.00"
Department for Work and Pensions,Jobcentre Plus,17/03/2011,COMPUTER SERVICES,Jobcentre Plus,ACCENTURE UK LTD,2020017480,"48,192.59"
Department for Work and Pensions,Housing Benefits,14/03/2011,Housing Benefit Admin,WWG Housing Benefit,WINCHESTER CITY COUNCIL,2019928197,"47,974.00"
Department for Work and Pensions,Employment Programmes,04/03/2011,YOUNG PERSON'S GUARANTEE,WWEG EMPLOYMENT PROGRAMMES,3SC,2019807852,"47,850.00"
Department for Work and Pensions,Employment Programmes,24/03/2011,FND,WWEG EMPLOYMENT PROGRAMMES,SERCO LTD,2020131450,"47,790.00"
Department for Work and Pensions,Employment Programmes,25/03/2011,FND,WWEG EMPLOYMENT PROGRAMMES,SERCO LTD,2020138136,"47,790.00"
Department for Work and Pensions,Jobcentre Plus,03/03/2011,EMPLOYMENT PROGRAMMES,Balance Sheet Payments,MIDDLETON MURRAY BUSINESS SOLUTIONS LTD,2019804568,"47,750.00"
Department for Work and Pensions,Corporate,14/03/2011,COMPUTER SERVICES,Corporate IT ,CAPGEMINI UK PLC,2019922428,"47,743.00"
Department for Work and Pensions,Employment Programmes,16/03/2011,YOUNG PERSON'S GUARANTEE,WWEG EMPLOYMENT PROGRAMMES,NATIONAL ASSOCIATION OF CITIZENS ADVICE BUREAUX,2019993898,"47,700.00"
Department for Work and Pensions,Corporate,15/03/2011,TEMPORARY (TEMP) STAFF COSTS,Corporate IT ,CAPITA RESOURCING LIMITED,2019929850,"47,670.13"
Department for Work and Pensions,Corporate,17/03/2011,PROFESSIONAL FEES,Corporate and Support Services,SOCIAL POLICY RESEARCH UNIT,2020022187,"47,605.00"
Department for Work and Pensions,Employment Programmes,30/03/2011,PROGRESS TO WORK,WWEG EMPLOYMENT PROGRAMMES,WORKING LINKS,2020231631,"47,551.38"
Department for Work and Pensions,Employment Programmes,11/03/2011,PROGRESS TO WORK,WWEG EMPLOYMENT PROGRAMMES,THE LIVERPOOL SOCIAL PARTNERSHIP,2019920104,"47,509.75"
Department for Work and Pensions,Corporate,31/03/2011,PUBLICITY,Corporate and Support Services,COI TRADING FUND,2020235922,"47,499.22"
Department for Work and Pensions,Housing Benefits,14/03/2011,Housing Benefit Admin,WWG Housing Benefit,SOUTH HAMS DISTRICT COUNCIL,2019928122,"47,488.00"
Department for Work and Pensions,Corporate,18/03/2011,MISCELLANEOUS EXPENDITURE,LSPG,SCOTLAND OFFICE,2002501,"47,401.68"
Department for Work and Pensions,Corporate,16/03/2011,OTHER GOODS AND SERVICES,Corporate IT ,DLA PIPER UK,2019957635,"47,277.74"
Department for Work and Pensions,Jobcentre Plus,17/03/2011,APPS DEV,Jobcentre Plus,HP ENTERPRISE SERVICES UK LTD,2020019838,"47,238.39"
Department for Work and Pensions,Corporate,31/03/2011,ACCOMMODATION,Group Finance,TELEREAL TRILLIUM,2020240267,"47,215.29"
Department for Work and Pensions,Employment Programmes,18/03/2011,YOUNG PERSON'S GUARANTEE,WWEG EMPLOYMENT PROGRAMMES,MEDIA TRUST,2020028879,"46,950.00"
Department for Work and Pensions,Jobcentre Plus,24/03/2011,EMPLOYMENT PROGRAMMES,Balance Sheet Payments,OMEGA RESOURCE GROUP PLC,2020130584,"46,850.00"
Department for Work and Pensions,"Pension, Disability Carers Services",15/03/2011,TELEPHONE AND POSTAGE,Pensions & Disability Carers Service ,ROYAL MAIL GROUP PLC,2019936681,"46,826.50"
Department for Work and Pensions,Employment Programmes,23/03/2011,YOUNG PERSON'S GUARANTEE,WWEG EMPLOYMENT PROGRAMMES,FIFE COUNCIL,2020072727,"46,800.00"
Department for Work and Pensions,Housing Benefits,14/03/2011,Housing Benefit Admin,WWG Housing Benefit,MONMOUTHSHIRE COUNTY  COUNCIL,2019928043,"46,640.00"
Department for Work and Pensions,Jobcentre Plus,14/03/2011,Accommodation Costs,Jobcentre Plus,TELEREAL TRILLIUM,2019926332,"46,389.98"
Department for Work and Pensions,Housing Benefits,14/03/2011,Housing Benefit Admin,WWG Housing Benefit,BOSTON BOROUGH COUNCIL,2019927858,"46,312.00"
Department for Work and Pensions,Housing Benefits,14/03/2011,Housing Benefit Admin,WWG Housing Benefit,CEREDIGION COUNTY COUNCIL,2019927883,"46,255.00"
Department for Work and Pensions,Jobcentre Plus,10/03/2011,EMPLOYMENT PROGRAMMES,Balance Sheet Payments,REMPLOY,2019912033,"46,155.65"
Department for Work and Pensions,Corporate,16/03/2011,TELEPHONE AND POSTAGE,Group Finance,ROYAL MAIL GROUP PLC,2020000079,"46,152.30"
Department for Work and Pensions,Employment Programmes,04/03/2011,FND,WWEG EMPLOYMENT PROGRAMMES,PERTEMPS,2019810855,"46,139.00"
Department for Work and Pensions,European Social Fund,16/03/2011,ESF NON-PREFUNDED EXPENDITURE,WWEG EUROPEAN SOCIAL FUND,THIRD SECTOR EUROPEAN NETWORK LTD,5000000505,"46,108.00"
Department for Work and Pensions,Employment Programmes,17/03/2011,ACCESS TO WORK,WWEG EMPLOYMENT PROGRAMMES,COMMUNICATION ID,2020017955,"46,027.50"
Department for Work and Pensions,Employment Programmes,08/03/2011,RESIDENTIAL TRAINING,WWEG EMPLOYMENT PROGRAMMES,RNIB,1004679,"46,000.00"
Department for Work and Pensions,Corporate,24/03/2011,IS/IT,Corporate IT ,SPECIALIST COMPUTER CENTRES PLC,2020131505,"45,986.96"
Department for Work and Pensions,Housing Benefits,14/03/2011,Housing Benefit Admin,WWG Housing Benefit,WOKINGHAM DISTRICT COUNCIL,2019928201,"45,975.00"
Department for Work and Pensions,Jobcentre Plus,03/03/2011,EMPLOYMENT PROGRAMMES,Balance Sheet Payments,CHARTER TRAINING,2019801295,"45,816.77"
Department for Work and Pensions,Corporate,10/03/2011,TOTAL SUPPLIES & SERVICES,Corporate and Support Services,ASE CORPORATE EYECARE LTD,2019908102,"45,752.72"
Department for Work and Pensions,Jobcentre Plus,31/03/2011,EMPLOYMENT PROGRAMMES,Balance Sheet Payments,WORKLIFE RS LTD,2020240456,"45,700.00"
Department for Work and Pensions,Jobcentre Plus,03/03/2011,EMPLOYMENT PROGRAMMES,Balance Sheet Payments,LIFE SKILLS CENTRAL LTD,2019804233,"45,489.98"
Department for Work and Pensions,European Social Fund,17/03/2011,ESF NON-PREFUNDED EXPENDITURE,WWEG EUROPEAN SOCIAL FUND,COVER,5000000506,"45,379.00"
Department for Work and Pensions,Corporate,18/03/2011,COMPUTER SERVICES,Corporate IT ,HP ENTERPRISE SERVICES UK LTD,2020027697,"45,366.96"
Department for Work and Pensions,Housing Benefits,14/03/2011,Housing Benefit Admin,WWG Housing Benefit,THREE RIVERS DISTRICT COUNCIL,2019928165,"45,366.00"
Department for Work and Pensions,Employment Programmes,21/03/2011,FND,WWEG EMPLOYMENT PROGRAMMES,A4E LTD,2020032241,"45,357.00"
Department for Work and Pensions,Housing Benefits,14/03/2011,Housing Benefit Admin,WWG Housing Benefit,ISLE OF ANGLESEY COUNTY COUNCIL,2019927984,"45,316.00"
Department for Work and Pensions,Employment Programmes,21/03/2011,FND,WWEG EMPLOYMENT PROGRAMMES,REMPLOY LTD,2020036181,"45,210.00"
Department for Work and Pensions,Corporate,30/03/2011,AOS CONTRACTED OUT SERVICES,SHARED SERVICES,CREDIT SOLUTIONS,2020171220,"45,155.07"
Department for Work and Pensions,Jobcentre Plus,31/03/2011,EMPLOYMENT PROGRAMMES,Balance Sheet Payments,BISCOM RESOURCE MANAGEMENT,2020235593,"45,113.19"
Department for Work and Pensions,Corporate,25/03/2011,TEMPORARY (TEMP) STAFF COSTS,Corporate IT ,CAPITA RESOURCING LIMITED,2020134683,"45,034.91"
Department for Work and Pensions,Employment Programmes,09/03/2011,RESIDENTIAL TRAINING,WWEG EMPLOYMENT PROGRAMMES,PORTLAND COLLEGE,1004684,"45,000.00"
Department for Work and Pensions,Corporate,22/03/2011,CAPITAL GRANTS,Group Finance,LASER CREDIT UNION LTD,2020045013,"45,000.00"
Department for Work and Pensions,Corporate,21/03/2011,TEMPORARY (TEMP) STAFF COSTS,Group Finance,CAPITA RESOURCING LIMITED,2020032562,"44,979.32"
Department for Work and Pensions,Housing Benefits,14/03/2011,Housing Benefit Admin,WWG Housing Benefit,BABERGH DISTRICT COUNCIL,2019927840,"44,888.00"
Department for Work and Pensions,Employment Programmes,16/03/2011,YOUNG PERSON'S GUARANTEE,WWEG EMPLOYMENT PROGRAMMES,COVENTRY CITY COUNCIL,2019952978,"44,850.00"
Department for Work and Pensions,Employment Programmes,28/03/2011,JSP ESF DEL P COSTS,WWEG EMPLOYMENT PROGRAMMES,INGEUS UK LTD,2020142442,"44,797.04"
Department for Work and Pensions,Corporate,10/03/2011,AOS CONTRACTED OUT SERVICES,Group Finance,ABCUL,2019908050,"44,775.00"
Department for Work and Pensions,Jobcentre Plus,31/03/2011,EMPLOYMENT PROGRAMMES,Balance Sheet Payments,CHARTER TRAINING,2020235894,"44,741.91"
Department for Work and Pensions,Corporate,01/03/2011,MANAGEMENT CONSULTANCY,Corporate IT ,PA CONSULTING GROUP,2019720617,"44,736.00"
Department for Work and Pensions,Employment Programmes,09/03/2011,FND,WWEG EMPLOYMENT PROGRAMMES,CALDER UK LTD,2019844171,"44,718.00"
Department for Work and Pensions,Housing Benefits,14/03/2011,Housing Benefit Admin,WWG Housing Benefit,STAFFORDSHIRE MOORLANDS DISTRICT COUNCIL,2019928141,"44,636.00"
Department for Work and Pensions,Housing Benefits,14/03/2011,Housing Benefit Admin,WWG Housing Benefit,COTSWOLD DISTRICT COUNCIL,2019927907,"44,635.00"
Department for Work and Pensions,Housing Benefits,14/03/2011,Housing Benefit Admin,WWG Housing Benefit,EAST NORTHANTS DISTRICT COUNCIL,2019927935,"44,619.00"
Department for Work and Pensions,Employment Programmes,16/03/2011,JOBCENTRE PLUS PATHWAYS TO WORK,WWEG EMPLOYMENT PROGRAMMES,NHS GREATER GLASGOW & CLYDE,2019993931,"44,612.00"
Department for Work and Pensions,Employment Programmes,23/03/2011,FND,WWEG EMPLOYMENT PROGRAMMES,SERCO LTD,2020118793,"44,604.00"
Department for Work and Pensions,Jobcentre Plus,03/03/2011,EMPLOYMENT PROGRAMMES,Balance Sheet Payments,TNG BUSINESS SUPPORT LTD,2019805723,"44,444.44"
Department for Work and Pensions,Housing Benefits,14/03/2011,Housing Benefit Admin,WWG Housing Benefit,FAREHAM BOROUGH COUNCIL,2019927949,"44,404.00"
Department for Work and Pensions,Corporate,18/03/2011,AOS CONTRACTED OUT SERVICES,SHARED SERVICES,CREDIT SOLUTIONS,2020025824,"44,354.23"
Department for Work and Pensions,Employment Programmes,18/03/2011,FND,WWEG EMPLOYMENT PROGRAMMES,REMPLOY LTD,2020029469,"44,330.00"
Department for Work and Pensions,Housing Benefits,14/03/2011,Housing Benefit Admin,WWG Housing Benefit,SOUTH LAKELAND DISTRICT COUNCIL,2019928125,"44,312.00"
Department for Work and Pensions,Housing Benefits,14/03/2011,Housing Benefit Admin,WWG Housing Benefit,TEWKESBURY BOROUGH COUNCIL,2019928162,"44,294.00"
Department for Work and Pensions,Corporate,24/03/2011,Housing Benefit Admin,WWG SUMMARY,NORTH LANARKSHIRE COUNCIL,2020130546,"44,267.00"
Department for Work and Pensions,Employment Programmes,24/03/2011,YOUNG PERSON'S GUARANTEE,WWEG EMPLOYMENT PROGRAMMES,NORTH LINCOLNSHIRE COUNCIL,2020130547,"44,100.00"
Department for Work and Pensions,Employment Programmes,30/03/2011,FND,WWEG EMPLOYMENT PROGRAMMES,SERCO LTD,2020226271,"44,064.00"
Department for Work and Pensions,Employment Programmes,16/03/2011,FND,WWEG EMPLOYMENT PROGRAMMES,SERCO LTD,2020008569,"44,018.00"
Department for Work and Pensions,Corporate,31/03/2011,ACCOMMODATION,Group Finance,TELEREAL TRILLIUM,2020240267,"43,844.73"
Department for Work and Pensions,Employment Programmes,07/03/2011,NDDP,WWEG EMPLOYMENT PROGRAMMES,SENCIA LTD,2019817763,"43,806.37"
Department for Work and Pensions,Corporate,29/03/2011,Accommodation Costs,Group Finance,HM REVENUE & CUSTOMS,2002530,"43,794.71"
Department for Work and Pensions,"Pension, Disability Carers Services",17/03/2011,PRINTING STATIONERY IT CONSUMABLES,Pensions & Disability Carers Service ,XEROX UK LTD 3W,2020022510,"43,568.43"
Department for Work and Pensions,Housing Benefits,14/03/2011,Housing Benefit Admin,WWG Housing Benefit,TORRIDGE DISTRICT COUNCIL,2019928170,"43,543.00"
Department for Work and Pensions,Jobcentre Plus,24/03/2011,EMPLOYMENT PROGRAMMES,Balance Sheet Payments,ARMSTRONG LEARNING LTD,2020127418,"43,244.88"
Department for Work and Pensions,Employment Programmes,01/03/2011,YOUNG PERSON'S GUARANTEE,WWEG EMPLOYMENT PROGRAMMES,NORTH LINCOLNSHIRE COUNCIL,2019720160,"43,050.00"
Department for Work and Pensions,Corporate,08/03/2011,CAPITAL GRANTS,Group Finance,EAST LANCS MONEYLINE,2019823647,"43,000.00"
Department for Work and Pensions,Employment Programmes,04/03/2011,FND,WWEG EMPLOYMENT PROGRAMMES,A4E LTD,2019808095,"42,883.00"
Department for Work and Pensions,Housing Benefits,14/03/2011,Housing Benefit Admin,WWG Housing Benefit,EAST CAMBRIDGESHIRE DISTRICT COUNCIL,2019927927,"42,836.00"
Department for Work and Pensions,Housing Benefits,14/03/2011,Housing Benefit Admin,WWG Housing Benefit,CLACKMANNANSHIRE COUNCIL,2019927899,"42,813.00"
Department for Work and Pensions,Jobcentre Plus,03/03/2011,EMPLOYMENT PROGRAMMES,Balance Sheet Payments,NORTH WESSEX TRAINING,2019804705,"42,804.75"
Department for Work and Pensions,Jobcentre Plus,31/03/2011,EMPLOYMENT PROGRAMMES,Balance Sheet Payments,NORTH WESSEX TRAINING,2020239178,"42,804.75"
Department for Work and Pensions,Jobcentre Plus,31/03/2011,EMPLOYMENT PROGRAMMES,Balance Sheet Payments,LIFE SKILLS CENTRAL LTD,2020238644,"42,795.34"
Department for Work and Pensions,Housing Benefits,14/03/2011,Housing Benefit Admin,WWG Housing Benefit,MID DEVON DISTRICT COUNCIL,2019928036,"42,785.00"
Department for Work and Pensions,Employment Programmes,04/03/2011,FND,WWEG EMPLOYMENT PROGRAMMES,MAXIMUS EMPLOYMENT UK LTD,2019810556,"42,559.00"
Department for Work and Pensions,Corporate,24/03/2011,PROFESSIONAL FEES,Corporate and Support Services,IMPROVEMENT & DEVELOPMENT AGENCY,1004715,"42,535.00"
Department for Work and Pensions,Corporate,31/03/2011,ACCOMMODATION,Group Finance,TELEREAL TRILLIUM,2020240267,"42,475.04"
Department for Work and Pensions,Corporate,17/03/2011,MARKETING,Corporate and Support Services,COI CENTRAL OFFICE OF INFORMATION,2020017952,"42,405.36"
Department for Work and Pensions,Corporate,30/03/2011,AOS CONTRACTED OUT SERVICES,SHARED SERVICES,COMMERCIAL COLLECTION SERVICES LTD,2020171203,"42,371.12"
Department for Work and Pensions,Employment Programmes,22/03/2011,FND,WWEG EMPLOYMENT PROGRAMMES,SERCO LTD,2020048168,"42,325.00"
Department for Work and Pensions,Employment Programmes,16/03/2011,YOUNG PERSON'S GUARANTEE,WWEG EMPLOYMENT PROGRAMMES,PROJECT SCOTLAND,2019996768,"42,300.00"
Department for Work and Pensions,Housing Benefits,14/03/2011,Housing Benefit Admin,WWG Housing Benefit,SOUTH DERBYSHIRE DISTRICT COUNCIL,2019928120,"42,241.00"
Department for Work and Pensions,Jobcentre Plus,24/03/2011,EMPLOYMENT PROGRAMMES,Balance Sheet Payments,SCVO,2020131438,"42,218.48"
Department for Work and Pensions,Employment Programmes,18/03/2011,FND,WWEG EMPLOYMENT PROGRAMMES,REMPLOY LTD,2020029469,"42,196.00"
Department for Work and Pensions,Employment Programmes,18/03/2011,HELP FOR UNEMPLOYED PEOPLE OTHER,WWEG EMPLOYMENT PROGRAMMES,LIVERPOOL CITY STRATEGY PATHFINDER,2020028543,"42,160.00"
Department for Work and Pensions,Employment Programmes,18/03/2011,HELP FOR UNEMPLOYED PEOPLE OTHER,WWEG EMPLOYMENT PROGRAMMES,SOUTH YORKSHIRE CITY STRATEGY,2020029877,"42,160.00"
Department for Work and Pensions,Corporate,28/03/2011,APPS DEV,CHANGE MANAGEMENT DIRECTORATE,ACCENTURE UK LTD,2020140082,"42,131.43"
Department for Work and Pensions,Housing Benefits,14/03/2011,Housing Benefit Admin,WWG Housing Benefit,RUNNYMEDE BOROUGH COUNCIL,2019928098,"42,095.00"
Department for Work and Pensions,Corporate,30/03/2011,HELP FOR UNEMPLOYED PEOPLE OTHER,WWG SUMMARY,DCSF RM SHARED SERVICES,2020175726,"42,000.00"
Department for Work and Pensions,Corporate,15/03/2011,APPS DEV,Group Finance,HP ENTERPRISE SERVICES UK LTD,2019932574,"41,684.06"
Department for Work and Pensions,Corporate,24/03/2011,Housing Benefit Admin,WWG SUMMARY,WEST LOTHIAN COUNCIL,2020131854,"41,662.00"
Department for Work and Pensions,Jobcentre Plus,17/03/2011,EMPLOYMENT PROGRAMMES,Balance Sheet Payments,BIRMINGHAM CHAMBER TRAINING,2020017637,"41,532.76"
Department for Work and Pensions,Employment Programmes,16/03/2011,FND,WWEG EMPLOYMENT PROGRAMMES,SKILLS TRAINING UK LIMITED,2020008710,"41,520.00"
Department for Work and Pensions,Corporate,31/03/2011,ACCOMMODATION,Group Finance,TELEREAL TRILLIUM,2020240270,"41,442.03"
Department for Work and Pensions,Corporate,24/03/2011,Housing Benefit Admin,WWG SUMMARY,FALKIRK DISTRICT COUNCIL,2020128739,"41,396.00"
Department for Work and Pensions,Employment Programmes,24/03/2011,NDDP,WWEG EMPLOYMENT PROGRAMMES,INGEUS UK LTD,2020129082,"41,320.88"
Department for Work and Pensions,Corporate,24/03/2011,Housing Benefit Admin,WWG SUMMARY,EAST AYRSHIRE COUNCIL FINANCE DEPARTMENT,2020128658,"41,283.00"
Department for Work and Pensions,Housing Benefits,14/03/2011,Housing Benefit Admin,WWG Housing Benefit,RUSHCLIFFE BOROUGH COUNCIL,2019928099,"41,187.00"
Department for Work and Pensions,Jobcentre Plus,03/03/2011,EMPLOYMENT PROGRAMMES,Balance Sheet Payments,SHAW TRUST LTD,2019805521,"41,142.96"
Department for Work and Pensions,Employment Programmes,22/03/2011,FND,WWEG EMPLOYMENT PROGRAMMES,REMPLOY LTD,2020047167,"41,106.00"
Department for Work and Pensions,Corporate,01/03/2011,PROFESSIONAL FEES,Corporate and Support Services,NATCEN,2019720143,"41,080.00"
Department for Work and Pensions,Employment Programmes,29/03/2011,ACCESS TO WORK,WWEG EMPLOYMENT PROGRAMMES,SCOUT ENTERPRISES WESTERN LTD,2020156111,"41,063.00"
Department for Work and Pensions,Corporate,31/03/2011,ACCOMMODATION,SHARED SERVICES,TELEREAL TRILLIUM,2020240270,"41,047.80"
Department for Work and Pensions,Corporate,08/03/2011,STAFF COSTS,Group Finance,OPERATIONAL RESEARCH SOCIETY LTD,2019827559,"41,000.00"
Department for Work and Pensions,Employment Programmes,15/03/2011,YOUNG PERSON'S GUARANTEE,WWEG EMPLOYMENT PROGRAMMES,ST PAULS COMMUNITY DEVELOPMENT TRUST,2019937642,"40,979.44"
Department for Work and Pensions,Employment Programmes,07/03/2011,FND,WWEG EMPLOYMENT PROGRAMMES,WORKING LINKS,2019818142,"40,950.00"
Department for Work and Pensions,Corporate,28/03/2011,TELEPHONE AND POSTAGE,Group Finance,UK MAIL,2020144693,"40,928.96"
Department for Work and Pensions,Corporate,24/03/2011,Housing Benefit Admin,WWG SUMMARY,TEIGNBRIDGE DISTRICT COUNCIL,2020131671,"40,821.00"
Department for Work and Pensions,Corporate,15/03/2011,APPS DEV,Corporate and Support Services,HP ENTERPRISE SERVICES UK LTD,2019932574,"40,789.33"
Department for Work and Pensions,Corporate,24/03/2011,Housing Benefit Admin,WWG SUMMARY,LINCOLN CITY COUNCIL,2020129954,"40,775.00"
Department for Work and Pensions,Housing Benefits,14/03/2011,Housing Benefit Admin,WWG Housing Benefit,EAST DORSET DISTRICT COUNCIL,2019927929,"40,746.00"
Department for Work and Pensions,Employment Programmes,14/03/2011,YOUNG PERSON'S GUARANTEE,WWEG EMPLOYMENT PROGRAMMES,SCOTTISH WILDLIFE TRUST,2019926179,"40,737.44"
Department for Work and Pensions,Employment Programmes,17/03/2011,YOUNG PERSON'S GUARANTEE,WWEG EMPLOYMENT PROGRAMMES,COMMUNITY SKILLS PARTNERSHIP,2020017958,"40,636.05"
Department for Work and Pensions,Corporate,24/03/2011,Housing Benefit Admin,WWG SUMMARY,NORTH NORFOLK DISTRICT COUNCIL,2020130549,"40,605.00"
Department for Work and Pensions,Corporate,24/03/2011,Housing Benefit Admin,WWG SUMMARY,HERTSMERE BOROUGH COUNCIL,2020129013,"40,602.00"
Department for Work and Pensions,Housing Benefits,14/03/2011,Housing Benefit Admin,WWG Housing Benefit,CHILTERN DISTRICT COUNCIL,2019927892,"40,559.00"
Department for Work and Pensions,Housing Benefits,14/03/2011,Housing Benefit Admin,WWG Housing Benefit,SELBY DISTRICT COUNCIL,2019928109,"40,444.00"
Department for Work and Pensions,Corporate,31/03/2011,ACCOMMODATION,Group Finance,TELEREAL TRILLIUM,2020240267,"40,425.11"
Department for Work and Pensions,Corporate,24/03/2011,Housing Benefit Admin,WWG SUMMARY,FOREST OF DEAN DISTRICT COUNCIL,2020128758,"40,354.00"
Department for Work and Pensions,Corporate,24/03/2011,Housing Benefit Admin,WWG SUMMARY,THE MORAY COUNCIL,2020131686,"40,332.00"
Department for Work and Pensions,Employment Programmes,25/03/2011,YOUNG PERSON'S GUARANTEE,WWEG EMPLOYMENT PROGRAMMES,CAMBRIDGESHIRE COUNTY COUNCIL,2020134679,"40,178.70"
Department for Work and Pensions,Employment Programmes,17/03/2011,YOUNG PERSON'S GUARANTEE,WWEG EMPLOYMENT PROGRAMMES,WARWICKSHIRE COUNTY COUNCIL,2020022487,"40,050.00"
Department for Work and Pensions,Jobcentre Plus,03/03/2011,EMPLOYMENT PROGRAMMES,Balance Sheet Payments,SHROPSHIRE COUNTY TRAINING,2019805529,"40,000.00"
Department for Work and Pensions,Corporate,28/03/2011,CAPITAL GRANTS,Group Finance,NOTTINGHAM CREDIT UNION LTD,2020143733,"40,000.00"
Department for Work and Pensions,Jobcentre Plus,31/03/2011,EMPLOYMENT PROGRAMMES,Balance Sheet Payments,SHROPSHIRE COUNTY TRAINING,2020240075,"40,000.00"
Department for Work and Pensions,Corporate,09/03/2011,IS/IT,CHANGE MANAGEMENT DIRECTORATE,SPECIALIST COMPUTER CENTRE PLC,2019899715,"39,931.78"
Department for Work and Pensions,Corporate,24/03/2011,Housing Benefit Admin,WWG SUMMARY,EDEN DISTRICT COUNCIL,2020128675,"39,876.00"
Department for Work and Pensions,Jobcentre Plus,17/03/2011,EMPLOYMENT PROGRAMMES,Balance Sheet Payments,SHROPSHIRE COUNTY TRAINING,2020022166,"39,835.60"
Department for Work and Pensions,Corporate,03/03/2011,TEMPORARY (TEMP) STAFF COSTS,Corporate IT ,CAPITA RESOURCING LIMITED,2019801272,"39,751.57"
Department for Work and Pensions,Employment Programmes,18/03/2011,JSP ESF DEL P COSTS,WWEG EMPLOYMENT PROGRAMMES,SEETEC BUSINESS TECHNOLOGY CENTRE LTD,2020029848,"39,744.47"
Department for Work and Pensions,Jobcentre Plus,03/03/2011,EMPLOYMENT PROGRAMMES,Balance Sheet Payments,SKILLS TRAINING UK LTD,2019805541,"39,636.51"
Department for Work and Pensions,Jobcentre Plus,31/03/2011,ACCOMMODATION,Jobcentre Plus,TELEREAL TRILLIUM,2020240270,"39,604.62"
Department for Work and Pensions,Housing Benefits,14/03/2011,Housing Benefit Admin,WWG Housing Benefit,HAMBLETON DISTRICT COUNCIL,2019927966,"39,528.00"
Department for Work and Pensions,Housing Benefits,14/03/2011,Housing Benefit Admin,WWG Housing Benefit,MID SUFFOLK DISTRICT COUNCIL,2019928037,"39,486.00"
Department for Work and Pensions,Housing Benefits,14/03/2011,Housing Benefit Admin,WWG Housing Benefit,MALVERN HILLS DISTRICT COUNCIL,2019928029,"39,484.00"
Department for Work and Pensions,Corporate,31/03/2011,ACCOMMODATION,Group Finance,TELEREAL TRILLIUM,2020240270,"39,405.41"
Department for Work and Pensions,Jobcentre Plus,31/03/2011,EMPLOYMENT PROGRAMMES,Balance Sheet Payments,MANPOWER UK LTD,2020238978,"39,273.60"
Department for Work and Pensions,Corporate,21/03/2011,TEMPORARY (TEMP) STAFF COSTS,Corporate IT ,CAPITA RESOURCING LIMITED,2020032562,"39,228.54"
